Workbook

Sheet Calendario (hidden)
N1: 0
B4: =(TEXT(B6,"mmmm")) & CHAR(10) & (TEXT(B6,"aaaa")) -> settembre 2021 | E4: =UPPER(TEXT(E6,"mmmm aaaa")) -> OTTOBRE 2021 | M4: =(TEXT(M6,"mmmm")) & CHAR(10) & (TEXT(M6,"aaaa")) -> novembre 2021
B6: =DATE(ANNO,MESE-1,1) -> 2021-09-01 | C6: =+B6 -> 2021-09-01 | E6: =DATE(ANNO,MESE,1) -> 2021-10-01 | F6: =+E6 -> 2021-10-01 | G6: =VLOOKUP(MONTH(E6)*100+DAY(E6),RICORRENZE,3,FALSE) ->  | I6: =+E36+1 -> 2021-10-17 | J6: =+I6 -> 2021-10-17 | K6: =VLOOKUP(MONTH(I6)*100+DAY(I6),RICORRENZE,3,FALSE) ->  | M6: =+N6 -> 2021-11-01 | N6: =DATE(ANNO,MESE+1,1) -> 2021-11-01
B7: =+B6+1 -> 2021-09-02 | C7: =+B7 -> 2021-09-02 | G7: =VLOOKUP(MONTH(E6)*100+DAY(E6),SANTI,2,FALSE) -> S. TERESA DEL B.G. | K7: =VLOOKUP(MONTH(I6)*100+DAY(I6),SANTI,2,FALSE) -> S. IGNAZIO D'A. , S. RODOLFO | M7: =+M6+1 -> 2021-11-02 | N7: =+N6+1 -> 2021-11-02
B8: =+B7+1 -> 2021-09-03 | C8: 2021-09-03 | E8: =+E6+1 -> 2021-10-02 | F8: =+E8 -> 2021-10-02 | G8: =VLOOKUP(MONTH(E8)*100+DAY(E8),RICORRENZE,3,FALSE) -> festa dei nonni | I8: =+I6+1 -> 2021-10-18 | J8: =+I8 -> 2021-10-18 | K8: =VLOOKUP(MONTH(I8)*100+DAY(I8),RICORRENZE,3,FALSE) ->  | M8: =+M7+1 -> 2021-11-03 | N8: 2021-11-03
B9: 2021-09-04 | C9: 2021-09-04 | G9: =VLOOKUP(MONTH(E8)*100+DAY(E8),SANTI,2,FALSE) -> SS. ANGELI CUSTODI | K9: =VLOOKUP(MONTH(I8)*100+DAY(I8),SANTI,2,FALSE) -> S. LUCA EVANG. | M9: 2021-11-04 | N9: 2021-11-04
B10: 2021-09-05 | C10: 2021-09-05 | E10: =+E8+1 -> 2021-10-03 | F10: =+E10 -> 2021-10-03 | G10: =VLOOKUP(MONTH(E10)*100+DAY(E10),RICORRENZE,3,FALSE) ->  | I10: =+I8+1 -> 2021-10-19 | J10: =+I10 -> 2021-10-19 | K10: =VLOOKUP(MONTH(I10)*100+DAY(I10),RICORRENZE,3,FALSE) ->  | M10: 2021-11-05 | N10: 2021-11-05
B11: 2021-09-06 | C11: 2021-09-06 | G11: =VLOOKUP(MONTH(E10)*100+DAY(E10),SANTI,2,FALSE) -> S. GERARDO AB. | K11: =VLOOKUP(MONTH(I10)*100+DAY(I10),SANTI,2,FALSE) -> S. ISACCO M. , S. LAURA | M11: 2021-11-06 | N11: 2021-11-06
B12: 2021-09-07 | C12: 2021-09-07 | E12: =+E10+1 -> 2021-10-04 | F12: =+E12 -> 2021-10-04 | G12: =VLOOKUP(MONTH(E12)*100+DAY(E12),RICORRENZE,3,FALSE) -> patrono d'Italia | I12: =+I10+1 -> 2021-10-20 | J12: =+I12 -> 2021-10-20 | K12: =VLOOKUP(MONTH(I12)*100+DAY(I12),RICORRENZE,3,FALSE) ->  | M12: 2021-11-07 | N12: 2021-11-07
B13: 2021-09-08 | C13: 2021-09-08 | G13: =VLOOKUP(MONTH(E12)*100+DAY(E12),SANTI,2,FALSE) -> S. FRANCESCO D'ASSISI | K13: =VLOOKUP(MONTH(I12)*100+DAY(I12),SANTI,2,FALSE) -> S. IRENE | M13: 2021-11-08 | N13: 2021-11-08
B14: 2021-09-09 | C14: 2021-09-09 | E14: =+E12+1 -> 2021-10-05 | F14: =+E14 -> 2021-10-05 | G14: =VLOOKUP(MONTH(E14)*100+DAY(E14),RICORRENZE,3,FALSE) ->  | I14: =+I12+1 -> 2021-10-21 | J14: =+I14 -> 2021-10-21 | K14: =VLOOKUP(MONTH(I14)*100+DAY(I14),RICORRENZE,3,FALSE) ->  | M14: 2021-11-09 | N14: 2021-11-09
B15: 2021-09-10 | C15: 2021-09-10 | G15: =VLOOKUP(MONTH(E14)*100+DAY(E14),SANTI,2,FALSE) -> S. PLACIDO MARTIRE | K15: =VLOOKUP(MONTH(I14)*100+DAY(I14),SANTI,2,FALSE) -> S. ORSOLA | M15: 2021-11-10 | N15: 2021-11-10
B16: 2021-09-11 | C16: 2021-09-11 | E16: =+E14+1 -> 2021-10-06 | F16: =+E16 -> 2021-10-06 | G16: =VLOOKUP(MONTH(E16)*100+DAY(E16),RICORRENZE,3,FALSE) ->  | I16: =+I14+1 -> 2021-10-22 | J16: =+I16 -> 2021-10-22 | K16: =VLOOKUP(MONTH(I16)*100+DAY(I16),RICORRENZE,3,FALSE) ->  | M16: 2021-11-11 | N16: 2021-11-11
B17: 2021-09-12 | C17: 2021-09-12 | G17: =VLOOKUP(MONTH(E16)*100+DAY(E16),SANTI,2,FALSE) -> S. BRUNO AB. | K17: =VLOOKUP(MONTH(I16)*100+DAY(I16),SANTI,2,FALSE) -> B.GIOVANNI PAOLO II (Papa) | M17: 2021-11-12 | N17: 2021-11-12
B18: 2021-09-13 | C18: 2021-09-13 | E18: =+E16+1 -> 2021-10-07 | F18: =+E18 -> 2021-10-07 | G18: =VLOOKUP(MONTH(E18)*100+DAY(E18),RICORRENZE,3,FALSE) ->  | I18: =+I16+1 -> 2021-10-23 | J18: =+I18 -> 2021-10-23 | K18: =VLOOKUP(MONTH(I18)*100+DAY(I18),RICORRENZE,3,FALSE) ->  | M18: 2021-11-13 | N18: 2021-11-13
B19: 2021-09-14 | C19: 2021-09-14 | G19: =VLOOKUP(MONTH(E18)*100+DAY(E18),SANTI,2,FALSE) -> N.S. DEL ROSARIO | K19: =VLOOKUP(MONTH(I18)*100+DAY(I18),SANTI,2,FALSE) -> S. GIOVANNI DA C. | M19: 2021-11-14 | N19: 2021-11-14
B20: 2021-09-15 | C20: 2021-09-15 | E20: =+E18+1 -> 2021-10-08 | F20: =+E20 -> 2021-10-08 | G20: =VLOOKUP(MONTH(E20)*100+DAY(E20),RICORRENZE,3,FALSE) ->  | I20: =+I18+1 -> 2021-10-24 | J20: =+I20 -> 2021-10-24 | K20: =VLOOKUP(MONTH(I20)*100+DAY(I20),RICORRENZE,3,FALSE) ->  | M20: 2021-11-15 | N20: 2021-11-15
B21: 2021-09-16 | C21: 2021-09-16 | G21: =VLOOKUP(MONTH(E20)*100+DAY(E20),SANTI,2,FALSE) -> S. PELAGIA, S. REPARATA | K21: =VLOOKUP(MONTH(I20)*100+DAY(I20),SANTI,2,FALSE) -> S. ANTONIO M.C. | M21: 2021-11-16 | N21: 2021-11-16
B22: 2021-09-17 | C22: 2021-09-17 | E22: =+E20+1 -> 2021-10-09 | F22: =+E22 -> 2021-10-09 | G22: =VLOOKUP(MONTH(E22)*100+DAY(E22),RICORRENZE,3,FALSE) ->  | I22: =+I20+1 -> 2021-10-25 | J22: =+I22 -> 2021-10-25 | K22: =VLOOKUP(MONTH(I22)*100+DAY(I22),RICORRENZE,3,FALSE) ->  | M22: 2021-11-17 | N22: 2021-11-17
B23: 2021-09-18 | C23: 2021-09-18 | G23: =VLOOKUP(MONTH(E22)*100+DAY(E22),SANTI,2,FALSE) -> S. DIONIGI , S. FERRUCCIO | K23: =VLOOKUP(MONTH(I22)*100+DAY(I22),SANTI,2,FALSE) -> S. CRISPINO, S. DARIA | M23: 2021-11-18 | N23: 2021-11-18
B24: 2021-09-19 | C24: 2021-09-19 | E24: =+E22+1 -> 2021-10-10 | F24: =+E24 -> 2021-10-10 | G24: =VLOOKUP(MONTH(E24)*100+DAY(E24),RICORRENZE,3,FALSE) ->  | I24: =+I22+1 -> 2021-10-26 | J24: =+I24 -> 2021-10-26 | K24: =VLOOKUP(MONTH(I24)*100+DAY(I24),RICORRENZE,3,FALSE) ->  | M24: =+M23+1 -> 2021-11-19 | N24: 2021-11-19
B25: 2021-09-20 | C25: 2021-09-20 | G25: =VLOOKUP(MONTH(E24)*100+DAY(E24),SANTI,2,FALSE) -> S. DANIELE M. | K25: =VLOOKUP(MONTH(I24)*100+DAY(I24),SANTI,2,FALSE) -> S. EVARISTO PAPA | M25: 2021-11-20 | N25: 2021-11-20
B26: 2021-09-21 | C26: 2021-09-21 | E26: =+E24+1 -> 2021-10-11 | F26: =+E26 -> 2021-10-11 | G26: =VLOOKUP(MONTH(E26)*100+DAY(E26),RICORRENZE,3,FALSE) ->  | I26: =+I24+1 -> 2021-10-27 | J26: =+I26 -> 2021-10-27 | K26: =VLOOKUP(MONTH(I26)*100+DAY(I26),RICORRENZE,3,FALSE) ->  | M26: 2021-11-21 | N26: 2021-11-21
B27: 2021-09-22 | C27: 2021-09-22 | G27: =VLOOKUP(MONTH(E26)*100+DAY(E26),SANTI,2,FALSE) -> S. FIRMINO VESCOVO | K27: =VLOOKUP(MONTH(I26)*100+DAY(I26),SANTI,2,FALSE) -> S. FIORENZO VESCOVO | M27: 2021-11-22 | N27: 2021-11-22
B28: 2021-09-23 | C28: 2021-09-23 | E28: =+E26+1 -> 2021-10-12 | F28: =+E28 -> 2021-10-12 | G28: =VLOOKUP(MONTH(E28)*100+DAY(E28),RICORRENZE,3,FALSE) ->  | I28: =+I26+1 -> 2021-10-28 | J28: =+I28 -> 2021-10-28 | K28: =VLOOKUP(MONTH(I28)*100+DAY(I28),RICORRENZE,3,FALSE) ->  | M28: 2021-11-23 | N28: 2021-11-23
B29: 2021-09-24 | C29: 2021-09-24 | G29: =VLOOKUP(MONTH(E28)*100+DAY(E28),SANTI,2,FALSE) -> S. SERAFINO CAPP. | K29: =VLOOKUP(MONTH(I28)*100+DAY(I28),SANTI,2,FALSE) -> S. SIMONE | M29: 2021-11-24 | N29: 2021-11-24
B30: 2021-09-25 | C30: 2021-09-25 | E30: =+E28+1 -> 2021-10-13 | F30: =+E30 -> 2021-10-13 | G30: =VLOOKUP(MONTH(E30)*100+DAY(E30),RICORRENZE,3,FALSE) ->  | I30: =+I28+1 -> 2021-10-29 | J30: =+I30 -> 2021-10-29 | K30: =VLOOKUP(MONTH(I30)*100+DAY(I30),RICORRENZE,3,FALSE) ->  | M30: 2021-11-25 | N30: 2021-11-25
B31: 2021-09-26 | C31: 2021-09-26 | G31: =VLOOKUP(MONTH(E30)*100+DAY(E30),SANTI,2,FALSE) -> S. EDOARDO RE | K31: =VLOOKUP(MONTH(I30)*100+DAY(I30),SANTI,2,FALSE) -> S. ERMELINDA, S. MASSIMILIANO | M31: 2021-11-26 | N31: 2021-11-26
B32: 2021-09-27 | C32: 2021-09-27 | E32: =+E30+1 -> 2021-10-14 | F32: =+E32 -> 2021-10-14 | G32: =VLOOKUP(MONTH(E32)*100+DAY(E32),RICORRENZE,3,FALSE) ->  | I32: =+I30+1 -> 2021-10-30 | J32: =+I32 -> 2021-10-30 | K32: =VLOOKUP(MONTH(I32)*100+DAY(I32),RICORRENZE,3,FALSE) ->  | M32: 2021-11-27 | N32: 2021-11-27
B33: =+B32+1 -> 2021-09-28 | C33: 2021-09-28 | G33: =VLOOKUP(MONTH(E32)*100+DAY(E32),SANTI,2,FALSE) -> S. CALLISTO I PAPA | K33: =VLOOKUP(MONTH(I32)*100+DAY(I32),SANTI,2,FALSE) -> S. GERMANO VESCOVO | M33: 2021-11-28 | N33: 2021-11-28
B34: 2021-09-29 | C34: 2021-09-29 | E34: =+E32+1 -> 2021-10-15 | F34: =+E34 -> 2021-10-15 | G34: =VLOOKUP(MONTH(E34)*100+DAY(E34),RICORRENZE,3,FALSE) ->  | I34: =+I32+1 -> 2021-10-31 | J34: =+I34 -> 2021-10-31 | K34: =VLOOKUP(MONTH(I34)*100+DAY(I34),RICORRENZE,3,FALSE) ->  | M34: 2021-11-29 | N34: 2021-11-29
B35: =+B34+1 -> 2021-09-30 | C35: 2021-09-30 | G35: =VLOOKUP(MONTH(E34)*100+DAY(E34),SANTI,2,FALSE) -> S. TERESA D'AVILA | K35: =VLOOKUP(MONTH(I34)*100+DAY(I34),SANTI,2,FALSE) -> S. LUCILLA, S. QUINTINO | M35: 2021-11-30 | N35: 2021-11-30
B36: 2021-10-01 | C36: 2021-10-01 | E36: =+E34+1 -> 2021-10-16 | F36: =+E36 -> 2021-10-16 | G36: =VLOOKUP(MONTH(E36)*100+DAY(E36),RICORRENZE,3,FALSE) ->  | M36: 2021-12-01 | N36: 2021-12-01
G37: =VLOOKUP(MONTH(E36)*100+DAY(E36),SANTI,2,FALSE) -> S. EDVIGE, S. MARGHERITA A., S. GALLO

Sheet Dati (hidden)
A2: Indice | B2: Festività / Santo | C2: Ricorrenza personale (compilare solo le caselle gialle) | D2: Giorno | E2: Mese | F2: 2021
F3: 10
A4: =E4*100+D4 -> 101 | B4: MARIA MADRE DI DIO - Capodanno | C4: Giorni Festivi | D4: 1 | E4: 1 | F4: =DATE(ANNO,E4,D4) -> 2021-01-01
A5: 106 | B5: EPIFANIA DI N.S. | D5: 6 | E5: 1 | F5: 2021-01-06 | K5: Ricorrenze personali
A6: 425 | B6: S. MARCO EVANGELISTA - ANNIV. LIBERAZIONE | D6: 25 | E6: 4 | F6: 2021-04-25 | K6: Compilare le caselle gialle per avere
A7: 501 | B7: SAN GIUSEPPE ARTIGIANO | D7: 1 | E7: 5 | F7: 2021-05-01 | K7: le proprie ricorrenze personali riportate
A8: 602 | B8: FESTA DELLA REPUBBLICA - S. MARCELLINO | D8: 2 | E8: 6 | F8: 2021-06-02 | K8: sul calendario nel giorno corretto.
A9: 815 | B9: ASSUNZIONE MARIA VERGINE | D9: 15 | E9: 8 | F9: 2021-08-15
A10: 1101 | B10: TUTTI I SANTI | D10: 1 | E10: 11 | F10: 2021-11-01 | K10: In giallo le caselle modificabili con i tuoi appunti
A11: 1208 | B11: IMMACOLATA CONCEZIONE | D11: 8 | E11: 12 | F11: 2021-12-08 | K11: In rosso le festività
A12: 1225 | B12: NATALE DEL SIGNORE | D12: 25 | E12: 12 | F12: 2021-12-25 | K12: In grigio le caselle calcolate
A13: 1226 | B13: S. STEFANO PROTOM. | D13: 26 | E13: 12 | F13: 2021-12-26
A14: 101 | B14: Patrono | D14: 1 | E14: 1 | F14: 2021-01-01 | K14: L'area "Dati" serve per memorizzare eventi speciali (colonna C)
A15: 101 | B15: Varie 1 | D15: 1 | E15: 1 | F15: 2021-01-01 | K15: che saranno riportati automaticamente nel calendario, sopra al santo del giorno.
A16: 404 | B16: SS PASQUA | D16: =DAY(F16) -> 4 | E16: =MONTH(F16) -> 4 | F16: =FLOOR(DATE(ANNO,5,DAY(MINUTE(ANNO/38)/2+56)),7)-34 -> 2021-04-04 | K16: (esempio: date di compleanno, onomastici, anniversari, ecc)
A17: 405 | B17: LUNEDI' DELL'ANGELO | D17: 5 | E17: 4 | F17: =+Pasqua+1 -> 2021-04-05
A18: 217 | B18: MERCOLEDI' DELLE CENERI | C18: Calendario Cristiano | D18: 17 | E18: 2 | F18: =+Pasqua-46 -> 2021-02-17 | K18: E' possibile scegliere un mese qualunque tra il 2009 e il 2030
A19: 221 | B19: I^ di QUARESIMA | D19: 21 | E19: 2 | F19: =+Pasqua-42 -> 2021-02-21
A20: 228 | B20: II^ di QUARESIMA | D20: 28 | E20: 2 | F20: =+Pasqua-35 -> 2021-02-28
A21: 307 | B21: III^ di QUARESIMA | D21: 7 | E21: 3 | F21: =+Pasqua-28 -> 2021-03-07
A22: 314 | B22: IV^ di QUARESIMA | D22: 14 | E22: 3 | F22: =+Pasqua-21 -> 2021-03-14
A23: 321 | B23: DOMENICA DI PASSIONE | D23: 21 | E23: 3 | F23: =+Pasqua-14 -> 2021-03-21
A24: 328 | B24: DOMENICA DELLE PALME | D24: 28 | E24: 3 | F24: =+Pasqua-7 -> 2021-03-28
A25: 516 | B25: ASCENSIONE | D25: 16 | E25: 5 | F25: =+Pasqua+42 -> 2021-05-16
A26: 523 | B26: PENTECOSTE | D26: 23 | E26: 5 | F26: =+Pasqua+49 -> 2021-05-23
A27: 530 | B27: SS TRINITA' | D27: 30 | E27: 5 | F27: =+Pasqua+56 -> 2021-05-30
A28: 606 | B28: CORPUS DOMINI | D28: 6 | E28: 6 | F28: =+Pasqua+63 -> 2021-06-06
A29: 101 | B29: MARIA MADRE DI DIO | D29: 1 | E29: 1
A30: 102 | B30: S. BASILIO VESCOVO | D30: 2 | E30: 1
A31: 103 | B31: S. GENOVEFFA | D31: 3 | E31: 1
A32: 104 | B32: S. ERMETE | D32: 4 | E32: 1
A33: 105 | B33: S. AMELIA | D33: 5 | E33: 1
A34: 106 | B34: EPIFANIA DI N.S. | D34: 6 | E34: 1
A35: 107 | B35: S. LUCIANO, S. RAIMONDO | D35: 7 | E35: 1
A36: 108 | B36: S. MASSIMO , S. SEVERINO | D36: 8 | E36: 1
A37: 109 | B37: S. GIULIANO MARTIRE | D37: 9 | E37: 1
A38: 110 | B38: S. ALDO EREMITA | D38: 10 | E38: 1
A39: 111 | B39: S. IGINO PAPA | D39: 11 | E39: 1
A40: 112 | B40: S. MODESTO M. | D40: 12 | E40: 1
A41: 113 | B41: S. ILARIO | D41: 13 | E41: 1
A42: 114 | B42: S. FELICE M. , S. BIANCA | D42: 14 | E42: 1
A43: 115 | B43: S. MAURO ABATE | D43: 15 | E43: 1
A44: 116 | B44: S. MARCELLO PAPA | D44: 16 | E44: 1
A45: 117 | B45: S. ANTONIO ABATE | D45: 17 | E45: 1
A46: 118 | B46: S. LIBERATA | D46: 18 | E46: 1
A47: 119 | B47: S. MARIO MARTIRE | D47: 19 | E47: 1
A48: 120 | B48: S. SEBASTIANO | D48: 20 | E48: 1
A49: 121 | B49: S. AGNESE | D49: 21 | E49: 1
A50: 122 | B50: S. VINCENZO MARTIRE | D50: 22 | E50: 1
A51: 123 | B51: S. EMERENZIANA | D51: 23 | E51: 1
A52: 124 | B52: S. FRANCESCO DI SALES | D52: 24 | E52: 1
A53: 125 | B53: CONVERSIONE DI S. PAOLO | D53: 25 | E53: 1
A54: 126 | B54: SS. TITO E TIMOTEO , S. PAOLA | D54: 26 | E54: 1
A55: 127 | B55: S. ANGELA MERICI | D55: 27 | E55: 1
A56: 128 | B56: S. TOMMASO D'AQ., S. VALERIO | D56: 28 | E56: 1
A57: 129 | B57: S. COSTANZO , S. CESARIO | D57: 29 | E57: 1
A58: 130 | B58: S. MARTINA, S. SAVINA | D58: 30 | E58: 1
A59: 131 | B59: S. GIOVANNI BOSCO | D59: 31 | E59: 1
A60: 201 | B60: S. VERDIANA | D60: 1 | E60: 2
A61: 202 | B61: PRES. DEL SIGNORE | D61: 2 | E61: 2
A62: 203 | B62: S. BIAGIO, S. OSCAR, S. CINZIA | D62: 3 | E62: 2
A63: 204 | B63: S. GILBERTO | D63: 4 | E63: 2
A64: 205 | B64: S. AGATA | D64: 5 | E64: 2
A65: 206 | B65: S. PAOLO MIKI | D65: 6 | E65: 2
A66: 207 | B66: S. TEODORO MARTIRE | D66: 7 | E66: 2
A67: 208 | B67: S. GIROLAMO EM. | D67: 8 | E67: 2
A68: =E68*100+D68 -> 209 | B68: S. APOLLONIA | D68: 9 | E68: 2
A69: 210 | B69: S. ARNALDO, S. SCOLASTICA | D69: 10 | E69: 2
A70: 211 | B70: S. DANTE , B.V. DI LOURDES | D70: 11 | E70: 2
A71: 212 | B71: S. EULALIA | D71: 12 | E71: 2
A72: 213 | B72: S. MAURA | D72: 13 | E72: 2
A73: 214 | B73: S. VALENTINO MARTIRE | D73: 14 | E73: 2
A74: 215 | B74: S. FAUSTINO | C74: Patrono BS | D74: 15 | E74: 2
A75: 216 | B75: S. GIULIANA VERGINE | D75: 16 | E75: 2
A76: 217 | B76: S. DONATO MARTIRE | D76: 17 | E76: 2
A77: 218 | B77: S. SIMONE VESCOVO | D77: 18 | E77: 2
A78: 219 | B78: S. MANSUETO , S. TULLIO | D78: 19 | E78: 2
A79: 220 | B79: S. SILVANO, S. ELEUTERIO V. | D79: 20 | E79: 2
A80: 221 | B80: S. PIER DAMIANI, S. ELEONORA | D80: 21 | E80: 2
A81: 222 | B81: S. MARGHERITA | D81: 22 | E81: 2
A82: 223 | B82: S. RENZO | D82: 23 | E82: 2
A83: 224 | B83: S. EDILBERTO RE, S. MATTIA | D83: 24 | E83: 2
A84: 225 | B84: S. CESARIO, S. VITTORINO | D84: 25 | E84: 2
A85: 226 | B85: S. ROMEO | D85: 26 | E85: 2
A86: 227 | B86: S. LEANDRO | D86: 27 | E86: 2
A87: 228 | B87: S. ROMANO ABATE | D87: 28 | E87: 2
A88: 229 | B88: S. GIUSTO | D88: 29 | E88: 2
A89: 301 | B89: S. ALBINO | D89: 1 | E89: 3
A90: 302 | B90: S. BASILEO MARTIRE | D90: 2 | E90: 3
A91: 303 | B91: S. CUNEGONDA | D91: 3 | E91: 3
A92: 304 | B92: S. CASIMIRO , S. LUCIO | D92: 4 | E92: 3
A93: 305 | B93: S. ADRIANO | D93: 5 | E93: 3
A94: 306 | B94: S. GIORDANO | D94: 6 | E94: 3
A95: 307 | B95: S. FELICITA, S. PERPETUA | D95: 7 | E95: 3
A96: 308 | B96: S. GIOVANNI DI DIO | D96: 8 | E96: 3
A97: 309 | B97: S. FRANCESCA R. | D97: 9 | E97: 3
A98: 310 | B98: S. SIMPLICIO PAPA | D98: 10 | E98: 3
A99: 311 | B99: S. COSTANTINO | D99: 11 | E99: 3
A100: 312 | B100: S. MASSIMILIANO, | D100: 12 | E100: 3
A101: 313 | B101: S. ARRIGO, S. EUFRASIA V. | D101: 13 | E101: 3
A102: 314 | B102: S. MATILDE REGINA | D102: 14 | E102: 3
A103: 315 | B103: S. LONGINO , S. LUISA | D103: 15 | E103: 3
A104: 316 | B104: S. ERIBERTO VESCOVO | D104: 16 | E104: 3
A105: 317 | B105: S. PATRIZIO | D105: 17 | E105: 3
A106: 318 | B106: S. SALVATORE, S. CIRILLO | D106: 18 | E106: 3
A107: 319 | B107: S. GIUSEPPE | D107: 19 | E107: 3
A108: 320 | B108: S. ALESSANDRA MARTIRE | D108: 20 | E108: 3
A109: 321 | B109: S. BENEDETTO | D109: 21 | E109: 3
A110: 322 | B110: S. LEA | D110: 22 | E110: 3
A111: 323 | B111: S. TURIBIO DI M. | D111: 23 | E111: 3
A112: 324 | B112: S. ROMOLO | D112: 24 | E112: 3
A113: 325 | B113: ANNUNC. DEL SIGNORE | D113: 25 | E113: 3
A114: 326 | B114: S. TEODORO, S. ROMOLO, S. EMANUELE | D114: 26 | E114: 3
A115: 327 | B115: S. AUGUSTO | D115: 27 | E115: 3
A116: 328 | B116: S. SISTO III PAPA | D116: 28 | E116: 3
A117: 329 | B117: S. SECONDO MARTIRE | D117: 29 | E117: 3
A118: 330 | B118: S. AMEDEO | D118: 30 | E118: 3
A119: 331 | B119: S. BENIAMINO MARTIRE | D119: 31 | E119: 3
A120: 401 | B120: S. UGO VESCOVO | D120: 1 | E120: 4
A121: 402 | B121: S. FRANCESCO DI P. | D121: 2 | E121: 4
A122: 403 | B122: S. RICCARDO VESCOVO | D122: 3 | E122: 4
A123: 404 | B123: S. ISIDORO VESCOVO | D123: 4 | E123: 4
A124: 405 | B124: S. VINCENZO FERRER | D124: 5 | E124: 4
A125: 406 | B125: S. GUGLIELMO, S. DIOGENE | D125: 6 | E125: 4
A126: 407 | B126: S. ERMANNO | D126: 7 | E126: 4
A127: 408 | B127: S. ALBERTO DIONIGI, S. WALTER | D127: 8 | E127: 4
A128: 409 | B128: S. MARIA CLEOFE | D128: 9 | E128: 4
A129: 410 | B129: S. TERENZIO MARTIRE | D129: 10 | E129: 4
A130: 411 | B130: S. STANISLAO VESCOVO | D130: 11 | E130: 4
A131: 412 | B131: S. GIULIO PAPA | D131: 12 | E131: 4
A132: =E132*100+D132 -> 413 | B132: S. MARTINO PAPA | D132: 13 | E132: 4
A133: 414 | B133: S. ABBONDIO | D133: 14 | E133: 4
A134: 415 | B134: S. ANNIBALE | D134: 15 | E134: 4
A135: 416 | B135: S. LAMBERTO | D135: 16 | E135: 4
A136: 417 | B136: S. ANICETO PAPA | D136: 17 | E136: 4
A137: 418 | B137: S. GALDINO VESCOVO | D137: 18 | E137: 4
A138: 419 | B138: S. ERMOGENE MARTIRE | D138: 19 | E138: 4
A139: 420 | B139: S. ADALGISA VERGINE | D139: 20 | E139: 4
A140: 421 | B140: S. ANSELMO , S. SILVIO | D140: 21 | E140: 4
A141: 422 | B141: S. CAIO | D141: 22 | E141: 4
A142: 423 | B142: S. GIORGIO MARTIRE | D142: 23 | E142: 4
A143: 424 | B143: S. FEDELE , S. GASTONE | D143: 24 | E143: 4
A144: 425 | B144: S. MARCO EVANGELISTA - ANNIV. LIBERAZIONE | C144: Festa Liberazione | D144: 25 | E144: 4
A145: 426 | B145: S. CLETO, S. MARCELLINO MART. | D145: 26 | E145: 4
A146: 427 | B146: S. ZITA | D146: 27 | E146: 4
A147: 428 | B147: S. VALERIA, S. PIETRO CHANEL | D147: 28 | E147: 4
A148: 429 | B148: S. CATERINA DA SIENA | D148: 29 | E148: 4
A149: 430 | B149: S. PIO V PAPA , S. MARIANO | D149: 30 | E149: 4
A150: 501 | B150: SAN GIUSEPPE ARTIGIANO | C150: Festa Lavoro | D150: 1 | E150: 5
A151: 502 | B151: S. CESARE, S. ATANASIO | D151: 2 | E151: 5
A152: 503 | B152: S. FILIPPO, S. GIACOMO | D152: 3 | E152: 5
A153: 504 | B153: S. SILVANO, S. NEREO | D153: 4 | E153: 5
A154: 505 | B154: S. PELLEGRINO MARTIRE | D154: 5 | E154: 5
A155: 506 | B155: S. GIUDITTA MARTIRE | D155: 6 | E155: 5
A156: 507 | B156: S. FLAVIA , S. FULVIO | D156: 7 | E156: 5
A157: 508 | B157: S. DESIDERATO, S. VITTORE M. | D157: 8 | E157: 5
A158: 509 | B158: S. GREGORIO V., S.E DUILIO | D158: 9 | E158: 5
A159: 510 | B159: S. ANTONINO , S. CATALDO | D159: 10 | E159: 5
A160: 511 | B160: S. FABIO MARTIRE | D160: 11 | E160: 5
A161: 512 | B161: S. ROSSANA | D161: 12 | E161: 5
A162: 513 | B162: S. EMMA | D162: 13 | E162: 5
A163: 514 | B163: S. MATTIA AP. | D163: 14 | E163: 5
A164: 515 | B164: S. TORQUATO , S. ACHILLE | D164: 15 | E164: 5
A165: 516 | B165: S. UBALDO VESCOVO | D165: 16 | E165: 5
A166: 517 | B166: S. PASQUALE CONF. | D166: 17 | E166: 5
A167: 518 | B167: S. GIOVANNI I PAPA | D167: 18 | E167: 5
A168: 519 | B168: S. PIETRO DI M. | D168: 19 | E168: 5
A169: 520 | B169: S. BERNARDINO DA S. | D169: 20 | E169: 5
A170: 521 | B170: S. VITTORIO MARTIRE | D170: 21 | E170: 5
A171: 522 | B171: S. RITA DA CASCIA | D171: 22 | E171: 5
A172: 523 | B172: S. DESIDERIO VESCOVO | D172: 23 | E172: 5
A173: 524 | B173: B.V. MARIA AUSILIATRICE | D173: 24 | E173: 5
A174: 525 | B174: S. BEDA CONF. , S. URBANO | D174: 25 | E174: 5
A175: 526 | B175: S. FILIPPO NERI | D175: 26 | E175: 5
A176: 527 | B176: S. AGOSTINO | D176: 27 | E176: 5
A177: 528 | B177: S. EMILIO M. , S. ERCOLE | D177: 28 | E177: 5
A178: 529 | B178: S. MASSIMINO VESCOVO | D178: 29 | E178: 5
A179: 530 | B179: S. FELICE I PAPA, S. FERDINANDO | D179: 30 | E179: 5
A180: 531 | B180: VISITAZ. B.M.V. | D180: 31 | E180: 5
A181: 601 | B181: S. GIUSTINO MARTIRE | D181: 1 | E181: 6
A182: 602 | B182: FESTA DELLA REPUBBLICA - S. MARCELLINO | D182: 2 | E182: 6
A183: 603 | B183: S. CARLO L.LIST | D183: 3 | E183: 6
A184: 604 | B184: S. QUIRINO VESCOVO | D184: 4 | E184: 6
A185: 605 | B185: S. BONIFACIO VESCOVO | D185: 5 | E185: 6
A186: 606 | B186: S. NORBERTO VESCOVO | D186: 6 | E186: 6
A187: 607 | B187: S. ROBERTO VESCOVO | D187: 7 | E187: 6
A188: 608 | B188: S. MEDARDO VESCOVO | D188: 8 | E188: 6
A189: 609 | B189: S. PRIMO, S. EFREM | D189: 9 | E189: 6
A190: 610 | B190: S. DIANA, S. MARCELLA | D190: 10 | E190: 6
A191: 611 | B191: S. BARNABA AP. | D191: 11 | E191: 6
A192: 612 | B192: S. GUIDO, S. ONOFRIO | D192: 12 | E192: 6
A193: 613 | B193: S. ANTONIO DA P. | D193: 13 | E193: 6
A194: 614 | B194: S. ELISEO | D194: 14 | E194: 6
A195: 615 | B195: S. GERMANA , S. VITO | D195: 15 | E195: 6
A196: =E196*100+D196 -> 616 | B196: S. AURELIANO | D196: 16 | E196: 6
A197: 617 | B197: S. GREGORIO B. , S. ADOLFO | D197: 17 | E197: 6
A198: 618 | B198: S. MARINA | D198: 18 | E198: 6
A199: 619 | B199: S. GERVASIO, S. ROMUALDO AB. | D199: 19 | E199: 6
A200: 620 | B200: S. SILVERIO PAPA , S. ETTORE | D200: 20 | E200: 6
A201: 621 | B201: S. LUIGI GONZAGA | D201: 21 | E201: 6
... 193 more rows

Sheet Archivio
A1: =MAX($A$3:$A$6049) -> 9994 | B1: =IFERROR(VLOOKUP(A1,$A$3:$B$5049,2,0),"") -> 127 | C1: =IFERROR(VLOOKUP($A$1,$A$3:$C$5049,3,0),"") -> 2021-10-23 | I1: Archivio Lotto | S1: Dal | U1: =$C$3 -> 2020-05-30 | X1: al | Y1: =$C$1 -> 2021-10-23 | AJ1: 38
A2: Record | B2: Pr | C2: Data | D2: Bari | I2: Cagliari | N2: Firenze | S2: Genova | X2: Milano | AC2: Napoli | AH2: Palermo | AM2: Roma | AR2: Torino | AW2: Venezia | BB2: Nazionale
A3: 9775 | B3: 47 | C3: 2020-05-30 | D3: 60 | E3: 36 | F3: 84 | G3: 30 | H3: 73 | I3: 41 | J3: 42 | K3: 31 | L3: 55 | M3: 70 | N3: 66 | O3: 79 | P3: 32 | Q3: 77 | R3: 55 | S3: 54 | T3: 83 | U3: 39 | V3: 65 | W3: 43 | X3: 21 | Y3: 53 | Z3: 19 | AA3: 90 | AB3: 63 | AC3: 41 | AD3: 2 | AE3: 58 | AF3: 85 | AG3: 3 | AH3: 52 | AI3: 45 | AJ3: 10 | AK3: 14 | AL3: 40 | AM3: 32 | AN3: 27 | AO3: 36 | AP3: 15 | AQ3: 13 | AR3: 66 | AS3: 49 | AT3: 45 | AU3: 55 | AV3: 81 | AW3: 2 | AX3: 12 | AY3: 77 | AZ3: 88 | BA3: 54 | BB3: 82 | BC3: 79 | BD3: 33 | BE3: 55 | BF3: 45
A4: 9776 | B4: 48 | C4: 2020-06-03 | D4: 31 | E4: 54 | F4: 23 | G4: 65 | H4: 77 | I4: 25 | J4: 89 | K4: 33 | L4: 52 | M4: 10 | N4: 44 | O4: 2 | P4: 15 | Q4: 55 | R4: 90 | S4: 52 | T4: 19 | U4: 86 | V4: 46 | W4: 51 | X4: 51 | Y4: 89 | Z4: 79 | AA4: 75 | AB4: 27 | AC4: 9 | AD4: 56 | AE4: 35 | AF4: 85 | AG4: 28 | AH4: 38 | AI4: 86 | AJ4: 19 | AK4: 61 | AL4: 41 | AM4: 80 | AN4: 40 | AO4: 70 | AP4: 6 | AQ4: 69 | AR4: 31 | AS4: 72 | AT4: 82 | AU4: 50 | AV4: 20 | AW4: 45 | AX4: 82 | AY4: 52 | AZ4: 12 | BA4: 89 | BB4: 31 | BC4: 9 | BD4: 22 | BE4: 15 | BF4: 46
A5: 9777 | B5: 49 | C5: 2020-06-04 | D5: 66 | E5: 16 | F5: 84 | G5: 79 | H5: 42 | I5: 12 | J5: 89 | K5: 70 | L5: 50 | M5: 65 | N5: 10 | O5: 14 | P5: 28 | Q5: 58 | R5: 27 | S5: 74 | T5: 68 | U5: 77 | V5: 64 | W5: 31 | X5: 85 | Y5: 64 | Z5: 15 | AA5: 67 | AB5: 28 | AC5: 33 | AD5: 80 | AE5: 12 | AF5: 11 | AG5: 20 | AH5: 42 | AI5: 24 | AJ5: 79 | AK5: 45 | AL5: 48 | AM5: 52 | AN5: 77 | AO5: 39 | AP5: 1 | AQ5: 56 | AR5: 66 | AS5: 20 | AT5: 62 | AU5: 64 | AV5: 26 | AW5: 31 | AX5: 30 | AY5: 66 | AZ5: 68 | BA5: 88 | BB5: 25 | BC5: 10 | BD5: 89 | BE5: 39 | BF5: 18
A6: 9778 | B6: 50 | C6: 2020-06-06 | D6: 68 | E6: 48 | F6: 37 | G6: 22 | H6: 27 | I6: 33 | J6: 52 | K6: 81 | L6: 56 | M6: 3 | N6: 73 | O6: 81 | P6: 75 | Q6: 67 | R6: 35 | S6: 27 | T6: 54 | U6: 21 | V6: 40 | W6: 72 | X6: 31 | Y6: 11 | Z6: 58 | AA6: 16 | AB6: 79 | AC6: 23 | AD6: 88 | AE6: 80 | AF6: 73 | AG6: 28 | AH6: 77 | AI6: 59 | AJ6: 2 | AK6: 3 | AL6: 4 | AM6: 68 | AN6: 85 | AO6: 73 | AP6: 24 | AQ6: 34 | AR6: 25 | AS6: 46 | AT6: 17 | AU6: 52 | AV6: 84 | AW6: 15 | AX6: 60 | AY6: 64 | AZ6: 51 | BA6: 72 | BB6: 3 | BC6: 46 | BD6: 25 | BE6: 9 | BF6: 5
A7: 9779 | B7: 51 | C7: 2020-06-09 | D7: 43 | E7: 81 | F7: 72 | G7: 33 | H7: 69 | I7: 50 | J7: 68 | K7: 89 | L7: 13 | M7: 28 | N7: 80 | O7: 6 | P7: 24 | Q7: 46 | R7: 14 | S7: 52 | T7: 66 | U7: 1 | V7: 71 | W7: 27 | X7: 62 | Y7: 20 | Z7: 13 | AA7: 15 | AB7: 66 | AC7: 3 | AD7: 75 | AE7: 47 | AF7: 72 | AG7: 31 | AH7: 81 | AI7: 52 | AJ7: 47 | AK7: 38 | AL7: 77 | AM7: 1 | AN7: 45 | AO7: 79 | AP7: 89 | AQ7: 31 | AR7: 87 | AS7: 49 | AT7: 38 | AU7: 68 | AV7: 28 | AW7: 70 | AX7: 7 | AY7: 74 | AZ7: 54 | BA7: 26 | BB7: 20 | BC7: 5 | BD7: 74 | BE7: 82 | BF7: 70
A8: 9780 | B8: 52 | C8: 2020-06-11 | D8: 48 | E8: 33 | F8: 53 | G8: 35 | H8: 86 | I8: 1 | J8: 40 | K8: 18 | L8: 28 | M8: 5 | N8: 67 | O8: 9 | P8: 35 | Q8: 47 | R8: 64 | S8: 19 | T8: 25 | U8: 31 | V8: 27 | W8: 42 | X8: 40 | Y8: 72 | Z8: 2 | AA8: 5 | AB8: 44 | AC8: 47 | AD8: 62 | AE8: 84 | AF8: 66 | AG8: 14 | AH8: 32 | AI8: 66 | AJ8: 1 | AK8: 80 | AL8: 56 | AM8: 10 | AN8: 30 | AO8: 81 | AP8: 3 | AQ8: 57 | AR8: 88 | AS8: 64 | AT8: 15 | AU8: 46 | AV8: 2 | AW8: 41 | AX8: 80 | AY8: 35 | AZ8: 42 | BA8: 68 | BB8: 15 | BC8: 82 | BD8: 77 | BE8: 28 | BF8: 66
A9: 9781 | B9: 53 | C9: 2020-06-13 | D9: 47 | E9: 29 | F9: 83 | G9: 23 | H9: 35 | I9: 52 | J9: 59 | K9: 47 | L9: 90 | M9: 58 | N9: 39 | O9: 27 | P9: 69 | Q9: 57 | R9: 66 | S9: 56 | T9: 60 | U9: 84 | V9: 13 | W9: 15 | X9: 61 | Y9: 9 | Z9: 63 | AA9: 14 | AB9: 20 | AC9: 71 | AD9: 22 | AE9: 31 | AF9: 34 | AG9: 38 | AH9: 48 | AI9: 77 | AJ9: 14 | AK9: 71 | AL9: 61 | AM9: 68 | AN9: 70 | AO9: 10 | AP9: 39 | AQ9: 86 | AR9: 20 | AS9: 53 | AT9: 90 | AU9: 69 | AV9: 66 | AW9: 84 | AX9: 28 | AY9: 5 | AZ9: 13 | BA9: 56 | BB9: 57 | BC9: 7 | BD9: 52 | BE9: 84 | BF9: 75
A10: 9782 | B10: 54 | C10: 2020-06-16 | D10: 90 | E10: 22 | F10: 52 | G10: 65 | H10: 67 | I10: 26 | J10: 71 | K10: 70 | L10: 49 | M10: 65 | N10: 59 | O10: 40 | P10: 18 | Q10: 36 | R10: 42 | S10: 31 | T10: 78 | U10: 8 | V10: 15 | W10: 65 | X10: 58 | Y10: 14 | Z10: 48 | AA10: 5 | AB10: 7 | AC10: 39 | AD10: 46 | AE10: 79 | AF10: 59 | AG10: 19 | AH10: 83 | AI10: 53 | AJ10: 13 | AK10: 45 | AL10: 41 | AM10: 37 | AN10: 2 | AO10: 26 | AP10: 28 | AQ10: 20 | AR10: 76 | AS10: 18 | AT10: 15 | AU10: 8 | AV10: 67 | AW10: 89 | AX10: 2 | AY10: 46 | AZ10: 48 | BA10: 87 | BB10: 24 | BC10: 68 | BD10: 54 | BE10: 31 | BF10: 10
A11: 9783 | B11: 55 | C11: 2020-06-18 | D11: 33 | E11: 9 | F11: 46 | G11: 78 | H11: 65 | I11: 37 | J11: 90 | K11: 11 | L11: 58 | M11: 16 | N11: 77 | O11: 49 | P11: 86 | Q11: 19 | R11: 73 | S11: 29 | T11: 83 | U11: 53 | V11: 45 | W11: 35 | X11: 19 | Y11: 15 | Z11: 82 | AA11: 41 | AB11: 88 | AC11: 62 | AD11: 65 | AE11: 60 | AF11: 8 | AG11: 66 | AH11: 48 | AI11: 7 | AJ11: 74 | AK11: 32 | AL11: 27 | AM11: 44 | AN11: 27 | AO11: 52 | AP11: 31 | AQ11: 13 | AR11: 69 | AS11: 37 | AT11: 60 | AU11: 15 | AV11: 81 | AW11: 45 | AX11: 23 | AY11: 90 | AZ11: 80 | BA11: 41 | BB11: 5 | BC11: 30 | BD11: 61 | BE11: 78 | BF11: 55
A12: 9784 | B12: 56 | C12: 2020-06-20 | D12: 32 | E12: 73 | F12: 29 | G12: 80 | H12: 14 | I12: 41 | J12: 59 | K12: 30 | L12: 79 | M12: 22 | N12: 66 | O12: 47 | P12: 1 | Q12: 13 | R12: 49 | S12: 8 | T12: 67 | U12: 13 | V12: 59 | W12: 55 | X12: 13 | Y12: 57 | Z12: 37 | AA12: 53 | AB12: 59 | AC12: 78 | AD12: 18 | AE12: 63 | AF12: 83 | AG12: 61 | AH12: 57 | AI12: 25 | AJ12: 26 | AK12: 48 | AL12: 65 | AM12: 90 | AN12: 68 | AO12: 34 | AP12: 54 | AQ12: 50 | AR12: 52 | AS12: 74 | AT12: 26 | AU12: 66 | AV12: 44 | AW12: 64 | AX12: 36 | AY12: 74 | AZ12: 51 | BA12: 16 | BB12: 75 | BC12: 43 | BD12: 24 | BE12: 25 | BF12: 88
A13: 9785 | B13: 57 | C13: 2020-06-23 | D13: 16 | E13: 20 | F13: 55 | G13: 66 | H13: 51 | I13: 65 | J13: 15 | K13: 88 | L13: 51 | M13: 86 | N13: 42 | O13: 38 | P13: 48 | Q13: 90 | R13: 14 | S13: 60 | T13: 24 | U13: 9 | V13: 65 | W13: 5 | X13: 20 | Y13: 88 | Z13: 79 | AA13: 73 | AB13: 27 | AC13: 43 | AD13: 9 | AE13: 75 | AF13: 23 | AG13: 2 | AH13: 46 | AI13: 10 | AJ13: 38 | AK13: 49 | AL13: 42 | AM13: 70 | AN13: 27 | AO13: 22 | AP13: 40 | AQ13: 12 | AR13: 25 | AS13: 28 | AT13: 15 | AU13: 11 | AV13: 66 | AW13: 78 | AX13: 31 | AY13: 47 | AZ13: 65 | BA13: 55 | BB13: 42 | BC13: 78 | BD13: 10 | BE13: 65 | BF13: 69
A14: 9786 | B14: 58 | C14: 2020-06-25 | D14: 26 | E14: 50 | F14: 20 | G14: 27 | H14: 64 | I14: 52 | J14: 36 | K14: 25 | L14: 37 | M14: 9 | N14: 63 | O14: 31 | P14: 41 | Q14: 50 | R14: 7 | S14: 30 | T14: 48 | U14: 85 | V14: 81 | W14: 68 | X14: 80 | Y14: 15 | Z14: 77 | AA14: 29 | AB14: 90 | AC14: 47 | AD14: 67 | AE14: 51 | AF14: 85 | AG14: 80 | AH14: 88 | AI14: 28 | AJ14: 46 | AK14: 29 | AL14: 13 | AM14: 89 | AN14: 75 | AO14: 74 | AP14: 46 | AQ14: 48 | AR14: 7 | AS14: 22 | AT14: 8 | AU14: 51 | AV14: 11 | AW14: 65 | AX14: 90 | AY14: 14 | AZ14: 71 | BA14: 53 | BB14: 56 | BC14: 52 | BD14: 31 | BE14: 86 | BF14: 17
A15: 9787 | B15: 59 | C15: 2020-06-27 | D15: 2 | E15: 41 | F15: 33 | G15: 40 | H15: 88 | I15: 33 | J15: 49 | K15: 72 | L15: 78 | M15: 86 | N15: 85 | O15: 2 | P15: 54 | Q15: 35 | R15: 12 | S15: 23 | T15: 19 | U15: 20 | V15: 49 | W15: 40 | X15: 9 | Y15: 32 | Z15: 82 | AA15: 4 | AB15: 1 | AC15: 43 | AD15: 47 | AE15: 49 | AF15: 45 | AG15: 3 | AH15: 18 | AI15: 45 | AJ15: 79 | AK15: 2 | AL15: 65 | AM15: 21 | AN15: 14 | AO15: 35 | AP15: 9 | AQ15: 64 | AR15: 87 | AS15: 59 | AT15: 67 | AU15: 65 | AV15: 81 | AW15: 1 | AX15: 20 | AY15: 55 | AZ15: 66 | BA15: 51 | BB15: 47 | BC15: 90 | BD15: 35 | BE15: 48 | BF15: 81
A16: 9788 | B16: 60 | C16: 2020-06-30 | D16: 24 | E16: 74 | F16: 68 | G16: 69 | H16: 45 | I16: 74 | J16: 32 | K16: 58 | L16: 1 | M16: 84 | N16: 50 | O16: 63 | P16: 60 | Q16: 11 | R16: 69 | S16: 86 | T16: 82 | U16: 34 | V16: 68 | W16: 29 | X16: 20 | Y16: 63 | Z16: 71 | AA16: 75 | AB16: 11 | AC16: 17 | AD16: 27 | AE16: 76 | AF16: 15 | AG16: 57 | AH16: 37 | AI16: 61 | AJ16: 25 | AK16: 68 | AL16: 10 | AM16: 85 | AN16: 61 | AO16: 54 | AP16: 7 | AQ16: 43 | AR16: 51 | AS16: 53 | AT16: 1 | AU16: 44 | AV16: 41 | AW16: 77 | AX16: 22 | AY16: 85 | AZ16: 32 | BA16: 69 | BB16: 13 | BC16: 75 | BD16: 44 | BE16: 72 | BF16: 10
A17: 9789 | B17: 61 | C17: 2020-07-02 | D17: 73 | E17: 64 | F17: 20 | G17: 32 | H17: 57 | I17: 34 | J17: 78 | K17: 85 | L17: 12 | M17: 32 | N17: 13 | O17: 2 | P17: 73 | Q17: 9 | R17: 36 | S17: 10 | T17: 33 | U17: 67 | V17: 28 | W17: 56 | X17: 33 | Y17: 5 | Z17: 40 | AA17: 81 | AB17: 35 | AC17: 59 | AD17: 9 | AE17: 63 | AF17: 70 | AG17: 18 | AH17: 67 | AI17: 72 | AJ17: 9 | AK17: 65 | AL17: 47 | AM17: 11 | AN17: 63 | AO17: 59 | AP17: 49 | AQ17: 83 | AR17: 64 | AS17: 67 | AT17: 63 | AU17: 2 | AV17: 84 | AW17: 64 | AX17: 19 | AY17: 8 | AZ17: 65 | BA17: 12 | BB17: 32 | BC17: 55 | BD17: 40 | BE17: 64 | BF17: 84
A18: 9790 | B18: 62 | C18: 2020-07-04 | D18: 87 | E18: 44 | F18: 78 | G18: 34 | H18: 62 | I18: 54 | J18: 86 | K18: 73 | L18: 43 | M18: 3 | N18: 40 | O18: 1 | P18: 34 | Q18: 67 | R18: 50 | S18: 41 | T18: 11 | U18: 84 | V18: 14 | W18: 80 | X18: 30 | Y18: 81 | Z18: 59 | AA18: 43 | AB18: 42 | AC18: 61 | AD18: 21 | AE18: 32 | AF18: 34 | AG18: 31 | AH18: 53 | AI18: 70 | AJ18: 47 | AK18: 69 | AL18: 79 | AM18: 72 | AN18: 50 | AO18: 58 | AP18: 35 | AQ18: 10 | AR18: 35 | AS18: 67 | AT18: 2 | AU18: 77 | AV18: 1 | AW18: 70 | AX18: 38 | AY18: 77 | AZ18: 67 | BA18: 27 | BB18: 29 | BC18: 74 | BD18: 45 | BE18: 86 | BF18: 61
A19: 9791 | B19: 63 | C19: 2020-07-07 | D19: 78 | E19: 54 | F19: 63 | G19: 51 | H19: 49 | I19: 70 | J19: 3 | K19: 20 | L19: 57 | M19: 60 | N19: 65 | O19: 32 | P19: 57 | Q19: 81 | R19: 52 | S19: 43 | T19: 66 | U19: 36 | V19: 76 | W19: 1 | X19: 50 | Y19: 22 | Z19: 54 | AA19: 86 | AB19: 85 | AC19: 88 | AD19: 44 | AE19: 31 | AF19: 6 | AG19: 8 | AH19: 82 | AI19: 4 | AJ19: 88 | AK19: 31 | AL19: 59 | AM19: 7 | AN19: 70 | AO19: 90 | AP19: 83 | AQ19: 86 | AR19: 71 | AS19: 15 | AT19: 8 | AU19: 73 | AV19: 27 | AW19: 82 | AX19: 62 | AY19: 87 | AZ19: 73 | BA19: 59 | BB19: 16 | BC19: 76 | BD19: 18 | BE19: 75 | BF19: 42
A20: 9792 | B20: 64 | C20: 2020-07-09 | D20: 14 | E20: 87 | F20: 1 | G20: 29 | H20: 50 | I20: 9 | J20: 81 | K20: 57 | L20: 28 | M20: 36 | N20: 26 | O20: 46 | P20: 59 | Q20: 33 | R20: 17 | S20: 6 | T20: 2 | U20: 77 | V20: 17 | W20: 71 | X20: 22 | Y20: 7 | Z20: 21 | AA20: 76 | AB20: 19 | AC20: 7 | AD20: 3 | AE20: 69 | AF20: 17 | AG20: 54 | AH20: 52 | AI20: 8 | AJ20: 42 | AK20: 26 | AL20: 12 | AM20: 68 | AN20: 9 | AO20: 47 | AP20: 69 | AQ20: 26 | AR20: 73 | AS20: 53 | AT20: 13 | AU20: 54 | AV20: 4 | AW20: 90 | AX20: 74 | AY20: 87 | AZ20: 45 | BA20: 88 | BB20: 79 | BC20: 12 | BD20: 62 | BE20: 72 | BF20: 56
A21: 9793 | B21: 65 | C21: 2020-07-11 | D21: 61 | E21: 70 | F21: 43 | G21: 74 | H21: 79 | I21: 35 | J21: 90 | K21: 63 | L21: 30 | M21: 10 | N21: 59 | O21: 60 | P21: 70 | Q21: 24 | R21: 11 | S21: 1 | T21: 57 | U21: 53 | V21: 63 | W21: 10 | X21: 77 | Y21: 40 | Z21: 13 | AA21: 58 | AB21: 83 | AC21: 2 | AD21: 40 | AE21: 88 | AF21: 61 | AG21: 90 | AH21: 2 | AI21: 80 | AJ21: 3 | AK21: 87 | AL21: 63 | AM21: 27 | AN21: 14 | AO21: 76 | AP21: 66 | AQ21: 72 | AR21: 50 | AS21: 90 | AT21: 7 | AU21: 23 | AV21: 89 | AW21: 38 | AX21: 60 | AY21: 29 | AZ21: 89 | BA21: 31 | BB21: 2 | BC21: 26 | BD21: 63 | BE21: 77 | BF21: 48
A22: 9794 | B22: 66 | C22: 2020-07-14 | D22: 24 | E22: 40 | F22: 10 | G22: 8 | H22: 36 | I22: 77 | J22: 42 | K22: 15 | L22: 74 | M22: 81 | N22: 78 | O22: 86 | P22: 18 | Q22: 25 | R22: 10 | S22: 26 | T22: 1 | U22: 56 | V22: 51 | W22: 49 | X22: 49 | Y22: 79 | Z22: 60 | AA22: 23 | AB22: 72 | AC22: 49 | AD22: 84 | AE22: 88 | AF22: 48 | AG22: 85 | AH22: 26 | AI22: 11 | AJ22: 81 | AK22: 87 | AL22: 34 | AM22: 43 | AN22: 69 | AO22: 35 | AP22: 21 | AQ22: 47 | AR22: 37 | AS22: 9 | AT22: 85 | AU22: 6 | AV22: 5 | AW22: 76 | AX22: 47 | AY22: 54 | AZ22: 12 | BA22: 65 | BB22: 23 | BC22: 60 | BD22: 2 | BE22: 17 | BF22: 43
A23: 9795 | B23: 67 | C23: 2020-07-16 | D23: 12 | E23: 59 | F23: 20 | G23: 60 | H23: 27 | I23: 86 | J23: 66 | K23: 90 | L23: 44 | M23: 10 | N23: 18 | O23: 35 | P23: 47 | Q23: 66 | R23: 2 | S23: 28 | T23: 79 | U23: 64 | V23: 63 | W23: 26 | X23: 59 | Y23: 80 | Z23: 39 | AA23: 64 | AB23: 38 | AC23: 18 | AD23: 82 | AE23: 86 | AF23: 89 | AG23: 44 | AH23: 15 | AI23: 81 | AJ23: 30 | AK23: 40 | AL23: 51 | AM23: 54 | AN23: 43 | AO23: 8 | AP23: 26 | AQ23: 28 | AR23: 50 | AS23: 66 | AT23: 24 | AU23: 60 | AV23: 4 | AW23: 29 | AX23: 18 | AY23: 30 | AZ23: 89 | BA23: 15 | BB23: 75 | BC23: 43 | BD23: 50 | BE23: 83 | BF23: 42
A24: 9796 | B24: 68 | C24: 2020-07-18 | D24: 45 | E24: 48 | F24: 9 | G24: 11 | H24: 2 | I24: 23 | J24: 85 | K24: 29 | L24: 5 | M24: 34 | N24: 60 | O24: 34 | P24: 84 | Q24: 66 | R24: 70 | S24: 42 | T24: 44 | U24: 4 | V24: 62 | W24: 32 | X24: 32 | Y24: 41 | Z24: 31 | AA24: 16 | AB24: 23 | AC24: 2 | AD24: 73 | AE24: 34 | AF24: 29 | AG24: 90 | AH24: 30 | AI24: 13 | AJ24: 38 | AK24: 82 | AL24: 66 | AM24: 12 | AN24: 16 | AO24: 19 | AP24: 72 | AQ24: 13 | AR24: 63 | AS24: 90 | AT24: 45 | AU24: 21 | AV24: 64 | AW24: 45 | AX24: 50 | AY24: 80 | AZ24: 43 | BA24: 55 | BB24: 13 | BC24: 81 | BD24: 66 | BE24: 47 | BF24: 25
A25: 9797 | B25: 69 | C25: 2020-07-21 | D25: 86 | E25: 33 | F25: 47 | G25: 58 | H25: 83 | I25: 88 | J25: 60 | K25: 27 | L25: 34 | M25: 54 | N25: 72 | O25: 68 | P25: 50 | Q25: 73 | R25: 56 | S25: 85 | T25: 3 | U25: 2 | V25: 20 | W25: 52 | X25: 68 | Y25: 37 | Z25: 59 | AA25: 29 | AB25: 73 | AC25: 73 | AD25: 48 | AE25: 2 | AF25: 63 | AG25: 8 | AH25: 73 | AI25: 61 | AJ25: 52 | AK25: 33 | AL25: 25 | AM25: 17 | AN25: 57 | AO25: 28 | AP25: 24 | AQ25: 89 | AR25: 48 | AS25: 69 | AT25: 23 | AU25: 89 | AV25: 4 | AW25: 19 | AX25: 32 | AY25: 35 | AZ25: 29 | BA25: 20 | BB25: 74 | BC25: 45 | BD25: 85 | BE25: 6 | BF25: 7
A26: 9798 | B26: 70 | C26: 2020-07-23 | D26: 61 | E26: 7 | F26: 77 | G26: 64 | H26: 25 | I26: 41 | J26: 78 | K26: 15 | L26: 8 | M26: 12 | N26: 82 | O26: 33 | P26: 31 | Q26: 18 | R26: 32 | S26: 35 | T26: 46 | U26: 32 | V26: 19 | W26: 84 | X26: 40 | Y26: 84 | Z26: 80 | AA26: 76 | AB26: 62 | AC26: 49 | AD26: 42 | AE26: 25 | AF26: 2 | AG26: 53 | AH26: 69 | AI26: 65 | AJ26: 10 | AK26: 40 | AL26: 44 | AM26: 41 | AN26: 29 | AO26: 49 | AP26: 70 | AQ26: 37 | AR26: 52 | AS26: 65 | AT26: 62 | AU26: 12 | AV26: 38 | AW26: 61 | AX26: 38 | AY26: 17 | AZ26: 16 | BA26: 23 | BB26: 20 | BC26: 61 | BD26: 5 | BE26: 68 | BF26: 2
A27: 9799 | B27: 71 | C27: 2020-07-25 | D27: 39 | E27: 2 | F27: 71 | G27: 66 | H27: 3 | I27: 67 | J27: 20 | K27: 32 | L27: 82 | M27: 6 | N27: 2 | O27: 41 | P27: 14 | Q27: 17 | R27: 61 | S27: 90 | T27: 28 | U27: 1 | V27: 69 | W27: 10 | X27: 69 | Y27: 40 | Z27: 64 | AA27: 58 | AB27: 12 | AC27: 52 | AD27: 90 | AE27: 34 | AF27: 60 | AG27: 54 | AH27: 40 | AI27: 13 | AJ27: 49 | AK27: 43 | AL27: 66 | AM27: 90 | AN27: 80 | AO27: 81 | AP27: 44 | AQ27: 75 | AR27: 31 | AS27: 45 | AT27: 86 | AU27: 23 | AV27: 79 | AW27: 52 | AX27: 33 | AY27: 84 | AZ27: 42 | BA27: 56 | BB27: 49 | BC27: 25 | BD27: 19 | BE27: 7 | BF27: 17
A28: 9800 | B28: 72 | C28: 2020-07-28 | D28: 35 | E28: 61 | F28: 6 | G28: 37 | H28: 66 | I28: 48 | J28: 56 | K28: 21 | L28: 87 | M28: 22 | N28: 45 | O28: 46 | P28: 5 | Q28: 47 | R28: 60 | S28: 3 | T28: 53 | U28: 48 | V28: 43 | W28: 36 | X28: 45 | Y28: 82 | Z28: 30 | AA28: 68 | AB28: 26 | AC28: 21 | AD28: 76 | AE28: 77 | AF28: 7 | AG28: 19 | AH28: 70 | AI28: 65 | AJ28: 63 | AK28: 20 | AL28: 40 | AM28: 54 | AN28: 5 | AO28: 53 | AP28: 25 | AQ28: 21 | AR28: 3 | AS28: 10 | AT28: 2 | AU28: 18 | AV28: 34 | AW28: 38 | AX28: 30 | AY28: 13 | AZ28: 76 | BA28: 10 | BB28: 82 | BC28: 53 | BD28: 19 | BE28: 66 | BF28: 81
A29: 9801 | B29: 73 | C29: 2020-07-30 | D29: 18 | E29: 52 | F29: 16 | G29: 17 | H29: 70 | I29: 30 | J29: 11 | K29: 45 | L29: 21 | M29: 78 | N29: 77 | O29: 2 | P29: 61 | Q29: 4 | R29: 76 | S29: 62 | T29: 16 | U29: 63 | V29: 73 | W29: 78 | X29: 52 | Y29: 68 | Z29: 35 | AA29: 69 | AB29: 70 | AC29: 58 | AD29: 12 | AE29: 38 | AF29: 59 | AG29: 26 | AH29: 56 | AI29: 35 | AJ29: 88 | AK29: 33 | AL29: 18 | AM29: 64 | AN29: 34 | AO29: 84 | AP29: 77 | AQ29: 33 | AR29: 64 | AS29: 18 | AT29: 45 | AU29: 79 | AV29: 1 | AW29: 77 | AX29: 90 | AY29: 12 | AZ29: 88 | BA29: 86 | BB29: 12 | BC29: 81 | BD29: 3 | BE29: 20 | BF29: 6
A30: 9802 | B30: 74 | C30: 2020-08-01 | D30: 76 | E30: 69 | F30: 56 | G30: 19 | H30: 61 | I30: 1 | J30: 57 | K30: 40 | L30: 51 | M30: 30 | N30: 22 | O30: 5 | P30: 79 | Q30: 48 | R30: 60 | S30: 65 | T30: 51 | U30: 1 | V30: 62 | W30: 2 | X30: 22 | Y30: 10 | Z30: 34 | AA30: 9 | AB30: 19 | AC30: 73 | AD30: 2 | AE30: 31 | AF30: 15 | AG30: 79 | AH30: 68 | AI30: 45 | AJ30: 87 | AK30: 55 | AL30: 71 | AM30: 78 | AN30: 1 | AO30: 67 | AP30: 74 | AQ30: 21 | AR30: 83 | AS30: 36 | AT30: 67 | AU30: 23 | AV30: 76 | AW30: 32 | AX30: 30 | AY30: 58 | AZ30: 43 | BA30: 66 | BB30: 21 | BC30: 67 | BD30: 77 | BE30: 32 | BF30: 13
A31: 9803 | B31: 75 | C31: 2020-08-04 | D31: 37 | E31: 51 | F31: 75 | G31: 89 | H31: 6 | I31: 18 | J31: 44 | K31: 89 | L31: 16 | M31: 17 | N31: 43 | O31: 22 | P31: 24 | Q31: 45 | R31: 87 | S31: 79 | T31: 19 | U31: 2 | V31: 68 | W31: 34 | X31: 19 | Y31: 8 | Z31: 85 | AA31: 12 | AB31: 48 | AC31: 83 | AD31: 4 | AE31: 82 | AF31: 76 | AG31: 7 | AH31: 16 | AI31: 80 | AJ31: 78 | AK31: 6 | AL31: 66 | AM31: 26 | AN31: 17 | AO31: 50 | AP31: 23 | AQ31: 35 | AR31: 83 | AS31: 7 | AT31: 77 | AU31: 43 | AV31: 33 | AW31: 11 | AX31: 81 | AY31: 73 | AZ31: 68 | BA31: 33 | BB31: 54 | BC31: 5 | BD31: 69 | BE31: 84 | BF31: 25
A32: 9804 | B32: 76 | C32: 2020-08-06 | D32: 17 | E32: 88 | F32: 49 | G32: 90 | H32: 62 | I32: 39 | J32: 59 | K32: 66 | L32: 24 | M32: 21 | N32: 58 | O32: 64 | P32: 4 | Q32: 29 | R32: 79 | S32: 58 | T32: 11 | U32: 19 | V32: 35 | W32: 4 | X32: 38 | Y32: 12 | Z32: 70 | AA32: 4 | AB32: 19 | AC32: 50 | AD32: 66 | AE32: 43 | AF32: 87 | AG32: 55 | AH32: 25 | AI32: 22 | AJ32: 52 | AK32: 62 | AL32: 5 | AM32: 79 | AN32: 28 | AO32: 20 | AP32: 64 | AQ32: 46 | AR32: 42 | AS32: 49 | AT32: 5 | AU32: 14 | AV32: 41 | AW32: 24 | AX32: 73 | AY32: 22 | AZ32: 46 | BA32: 19 | BB32: 58 | BC32: 76 | BD32: 81 | BE32: 64 | BF32: 59
A33: 9805 | B33: 77 | C33: 2020-08-08 | D33: 67 | E33: 68 | F33: 65 | G33: 64 | H33: 79 | I33: 58 | J33: 72 | K33: 16 | L33: 48 | M33: 60 | N33: 9 | O33: 44 | P33: 66 | Q33: 48 | R33: 10 | S33: 13 | T33: 20 | U33: 34 | V33: 41 | W33: 9 | X33: 87 | Y33: 73 | Z33: 59 | AA33: 32 | AB33: 15 | AC33: 74 | AD33: 58 | AE33: 75 | AF33: 71 | AG33: 11 | AH33: 30 | AI33: 38 | AJ33: 81 | AK33: 20 | AL33: 32 | AM33: 29 | AN33: 52 | AO33: 41 | AP33: 48 | AQ33: 28 | AR33: 61 | AS33: 78 | AT33: 71 | AU33: 76 | AV33: 25 | AW33: 63 | AX33: 24 | AY33: 82 | AZ33: 40 | BA33: 52 | BB33: 22 | BC33: 60 | BD33: 68 | BE33: 69 | BF33: 53
A34: 9806 | B34: 78 | C34: 2020-08-11 | D34: 39 | E34: 20 | F34: 62 | G34: 35 | H34: 7 | I34: 34 | J34: 70 | K34: 31 | L34: 37 | M34: 66 | N34: 82 | O34: 28 | P34: 43 | Q34: 48 | R34: 47 | S34: 13 | T34: 70 | U34: 7 | V34: 8 | W34: 69 | X34: 52 | Y34: 15 | Z34: 2 | AA34: 35 | AB34: 14 | AC34: 19 | AD34: 41 | AE34: 78 | AF34: 11 | AG34: 47 | AH34: 57 | AI34: 56 | AJ34: 65 | AK34: 20 | AL34: 40 | AM34: 6 | AN34: 10 | AO34: 44 | AP34: 72 | AQ34: 11 | AR34: 52 | AS34: 30 | AT34: 56 | AU34: 9 | AV34: 81 | AW34: 43 | AX34: 52 | AY34: 3 | AZ34: 26 | BA34: 10 | BB34: 52 | BC34: 69 | BD34: 60 | BE34: 64 | BF34: 6
A35: 9807 | B35: 79 | C35: 2020-08-13 | D35: 85 | E35: 14 | F35: 3 | G35: 88 | H35: 26 | I35: 75 | J35: 85 | K35: 81 | L35: 77 | M35: 13 | N35: 69 | O35: 86 | P35: 10 | Q35: 60 | R35: 36 | S35: 2 | T35: 57 | U35: 16 | V35: 9 | W35: 59 | X35: 83 | Y35: 6 | Z35: 51 | AA35: 18 | AB35: 46 | AC35: 75 | AD35: 80 | AE35: 20 | AF35: 52 | AG35: 47 | AH35: 64 | AI35: 5 | AJ35: 73 | AK35: 89 | AL35: 88 | AM35: 67 | AN35: 2 | AO35: 60 | AP35: 74 | AQ35: 63 | AR35: 83 | AS35: 42 | AT35: 23 | AU35: 3 | AV35: 35 | AW35: 83 | AX35: 87 | AY35: 86 | AZ35: 72 | BA35: 88 | BB35: 12 | BC35: 77 | BD35: 42 | BE35: 19 | BF35: 32
A36: 9808 | B36: 80 | C36: 2020-08-17 | D36: 50 | E36: 48 | F36: 30 | G36: 74 | H36: 14 | I36: 59 | J36: 56 | K36: 67 | L36: 57 | M36: 23 | N36: 18 | O36: 26 | P36: 39 | Q36: 68 | R36: 44 | S36: 24 | T36: 87 | U36: 6 | V36: 52 | W36: 77 | X36: 21 | Y36: 72 | Z36: 15 | AA36: 40 | AB36: 2 | AC36: 54 | AD36: 65 | AE36: 76 | AF36: 39 | AG36: 63 | AH36: 64 | AI36: 24 | AJ36: 72 | AK36: 58 | AL36: 67 | AM36: 53 | AN36: 89 | AO36: 62 | AP36: 90 | AQ36: 56 | AR36: 34 | AS36: 45 | AT36: 55 | AU36: 70 | AV36: 28 | AW36: 62 | AX36: 75 | AY36: 53 | AZ36: 21 | BA36: 26 | BB36: 45 | BC36: 79 | BD36: 15 | BE36: 89 | BF36: 78
A37: 9809 | B37: 81 | C37: 2020-08-18 | D37: 20 | E37: 39 | F37: 57 | G37: 89 | H37: 22 | I37: 70 | J37: 50 | K37: 54 | L37: 65 | M37: 16 | N37: 1 | O37: 44 | P37: 47 | Q37: 4 | R37: 22 | S37: 72 | T37: 71 | U37: 39 | V37: 49 | W37: 42 | X37: 59 | Y37: 16 | Z37: 86 | AA37: 57 | AB37: 26 | AC37: 80 | AD37: 30 | AE37: 22 | AF37: 42 | AG37: 60 | AH37: 55 | AI37: 7 | AJ37: 9 | AK37: 80 | AL37: 45 | AM37: 70 | AN37: 4 | AO37: 81 | AP37: 65 | AQ37: 15 | AR37: 44 | AS37: 76 | AT37: 80 | AU37: 4 | AV37: 16 | AW37: 65 | AX37: 31 | AY37: 2 | AZ37: 22 | BA37: 15 | BB37: 36 | BC37: 90 | BD37: 75 | BE37: 59 | BF37: 21
A38: 9810 | B38: 82 | C38: 2020-08-20 | D38: 21 | E38: 52 | F38: 23 | G38: 56 | H38: 2 | I38: 61 | J38: 29 | K38: 49 | L38: 79 | M38: 30 | N38: 28 | O38: 56 | P38: 9 | Q38: 81 | R38: 86 | S38: 8 | T38: 48 | U38: 36 | V38: 38 | W38: 84 | X38: 35 | Y38: 52 | Z38: 34 | AA38: 86 | AB38: 83 | AC38: 53 | AD38: 7 | AE38: 59 | AF38: 68 | AG38: 60 | AH38: 38 | AI38: 71 | AJ38: 3 | AK38: 86 | AL38: 57 | AM38: 53 | AN38: 13 | AO38: 3 | AP38: 44 | AQ38: 59 | AR38: 63 | AS38: 8 | AT38: 88 | AU38: 54 | AV38: 73 | AW38: 28 | AX38: 38 | AY38: 66 | AZ38: 22 | BA38: 63 | BB38: 68 | BC38: 29 | BD38: 38 | BE38: 87 | BF38: 54
A39: 9811 | B39: 83 | C39: 2020-08-22 | D39: 10 | E39: 74 | F39: 25 | G39: 57 | H39: 65 | I39: 67 | J39: 8 | K39: 82 | L39: 80 | M39: 71 | N39: 49 | O39: 55 | P39: 32 | Q39: 77 | R39: 64 | S39: 64 | T39: 62 | U39: 52 | V39: 2 | W39: 41 | X39: 6 | Y39: 87 | Z39: 88 | AA39: 51 | AB39: 75 | AC39: 11 | AD39: 77 | AE39: 48 | AF39: 52 | AG39: 85 | AH39: 40 | AI39: 16 | AJ39: 47 | AK39: 89 | AL39: 50 | AM39: 63 | AN39: 30 | AO39: 55 | AP39: 84 | AQ39: 7 | AR39: 1 | AS39: 85 | AT39: 57 | AU39: 47 | AV39: 19 | AW39: 85 | AX39: 83 | AY39: 42 | AZ39: 6 | BA39: 36 | BB39: 70 | BC39: 59 | BD39: 72 | BE39: 82 | BF39: 4
A40: 9812 | B40: 84 | C40: 2020-08-25 | D40: 77 | E40: 72 | F40: 10 | G40: 53 | H40: 34 | I40: 24 | J40: 19 | K40: 53 | L40: 37 | M40: 68 | N40: 69 | O40: 33 | P40: 31 | Q40: 36 | R40: 46 | S40: 47 | T40: 13 | U40: 49 | V40: 2 | W40: 14 | X40: 11 | Y40: 1 | Z40: 52 | AA40: 16 | AB40: 83 | AC40: 7 | AD40: 58 | AE40: 2 | AF40: 73 | AG40: 25 | AH40: 27 | AI40: 14 | AJ40: 90 | AK40: 74 | AL40: 13 | AM40: 30 | AN40: 79 | AO40: 51 | AP40: 35 | AQ40: 46 | AR40: 35 | AS40: 47 | AT40: 20 | AU40: 7 | AV40: 15 | AW40: 78 | AX40: 24 | AY40: 84 | AZ40: 81 | BA40: 51 | BB40: 74 | BC40: 35 | BD40: 30 | BE40: 1 | BF40: 3
A41: 9813 | B41: 85 | C41: 2020-08-27 | D41: 31 | E41: 55 | F41: 80 | G41: 47 | H41: 40 | I41: 72 | J41: 64 | K41: 43 | L41: 22 | M41: 51 | N41: 14 | O41: 3 | P41: 37 | Q41: 84 | R41: 78 | S41: 17 | T41: 60 | U41: 79 | V41: 6 | W41: 2 | X41: 40 | Y41: 49 | Z41: 57 | AA41: 42 | AB41: 23 | AC41: 33 | AD41: 54 | AE41: 63 | AF41: 53 | AG41: 31 | AH41: 72 | AI41: 83 | AJ41: 5 | AK41: 3 | AL41: 63 | AM41: 57 | AN41: 52 | AO41: 54 | AP41: 51 | AQ41: 80 | AR41: 46 | AS41: 9 | AT41: 68 | AU41: 65 | AV41: 85 | AW41: 83 | AX41: 48 | AY41: 58 | AZ41: 19 | BA41: 71 | BB41: 44 | BC41: 55 | BD41: 84 | BE41: 86 | BF41: 33
A42: 9814 | B42: 86 | C42: 2020-08-29 | D42: 61 | E42: 19 | F42: 89 | G42: 53 | H42: 56 | I42: 63 | J42: 80 | K42: 48 | L42: 19 | M42: 53 | N42: 89 | O42: 78 | P42: 25 | Q42: 87 | R42: 14 | S42: 52 | T42: 68 | U42: 32 | V42: 81 | W42: 74 | X42: 13 | Y42: 3 | Z42: 52 | AA42: 65 | AB42: 63 | AC42: 81 | AD42: 45 | AE42: 67 | AF42: 66 | AG42: 20 | AH42: 58 | AI42: 76 | AJ42: 35 | AK42: 36 | AL42: 25 | AM42: 79 | AN42: 76 | AO42: 73 | AP42: 67 | AQ42: 18 | AR42: 40 | AS42: 56 | AT42: 26 | AU42: 2 | AV42: 47 | AW42: 82 | AX42: 9 | AY42: 50 | AZ42: 24 | BA42: 33 | BB42: 59 | BC42: 75 | BD42: 37 | BE42: 21 | BF42: 39
A43: 9815 | B43: 87 | C43: 2020-09-01 | D43: 61 | E43: 20 | F43: 27 | G43: 74 | H43: 52 | I43: 31 | J43: 46 | K43: 32 | L43: 62 | M43: 25 | N43: 56 | O43: 51 | P43: 48 | Q43: 87 | R43: 29 | S43: 75 | T43: 69 | U43: 87 | V43: 89 | W43: 56 | X43: 35 | Y43: 63 | Z43: 81 | AA43: 90 | AB43: 16 | AC43: 43 | AD43: 74 | AE43: 32 | AF43: 70 | AG43: 48 | AH43: 45 | AI43: 12 | AJ43: 89 | AK43: 65 | AL43: 10 | AM43: 60 | AN43: 56 | AO43: 27 | AP43: 79 | AQ43: 71 | AR43: 37 | AS43: 71 | AT43: 72 | AU43: 11 | AV43: 44 | AW43: 75 | AX43: 23 | AY43: 74 | AZ43: 39 | BA43: 46 | BB43: 86 | BC43: 7 | BD43: 9 | BE43: 80 | BF43: 45
A44: 9816 | B44: 88 | C44: 2020-09-03 | D44: 19 | E44: 2 | F44: 16 | G44: 36 | H44: 56 | I44: 82 | J44: 26 | K44: 87 | L44: 47 | M44: 75 | N44: 66 | O44: 55 | P44: 85 | Q44: 44 | R44: 35 | S44: 81 | T44: 88 | U44: 30 | V44: 7 | W44: 15 | X44: 30 | Y44: 34 | Z44: 42 | AA44: 46 | AB44: 58 | AC44: 28 | AD44: 70 | AE44: 47 | AF44: 61 | AG44: 51 | AH44: 84 | AI44: 89 | AJ44: 79 | AK44: 71 | AL44: 56 | AM44: 38 | AN44: 57 | AO44: 71 | AP44: 27 | AQ44: 5 | AR44: 58 | AS44: 53 | AT44: 22 | AU44: 16 | AV44: 30 | AW44: 69 | AX44: 67 | AY44: 84 | AZ44: 54 | BA44: 41 | BB44: 6 | BC44: 2 | BD44: 88 | BE44: 70 | BF44: 39
A45: 9817 | B45: 89 | C45: 2020-09-05 | D45: 5 | E45: 50 | F45: 39 | G45: 64 | H45: 15 | I45: 43 | J45: 83 | K45: 23 | L45: 50 | M45: 76 | N45: 1 | O45: 74 | P45: 82 | Q45: 6 | R45: 63 | S45: 87 | T45: 4 | U45: 31 | V45: 16 | W45: 58 | X45: 25 | Y45: 86 | Z45: 33 | AA45: 24 | AB45: 5 | AC45: 3 | AD45: 21 | AE45: 50 | AF45: 7 | AG45: 13 | AH45: 26 | AI45: 14 | AJ45: 65 | AK45: 62 | AL45: 86 | AM45: 32 | AN45: 26 | AO45: 43 | AP45: 33 | AQ45: 17 | AR45: 17 | AS45: 49 | AT45: 1 | AU45: 36 | AV45: 56 | AW45: 44 | AX45: 79 | AY45: 68 | AZ45: 66 | BA45: 34 | BB45: 6 | BC45: 10 | BD45: 25 | BE45: 90 | BF45: 47
A46: 9818 | B46: 90 | C46: 2020-09-08 | D46: 13 | E46: 6 | F46: 24 | G46: 58 | H46: 38 | I46: 56 | J46: 51 | K46: 34 | L46: 37 | M46: 36 | N46: 35 | O46: 61 | P46: 68 | Q46: 82 | R46: 15 | S46: 69 | T46: 47 | U46: 3 | V46: 49 | W46: 83 | X46: 71 | Y46: 23 | Z46: 1 | AA46: 7 | AB46: 47 | AC46: 59 | AD46: 4 | AE46: 25 | AF46: 18 | AG46: 41 | AH46: 54 | AI46: 80 | AJ46: 34 | AK46: 61 | AL46: 30 | AM46: 68 | AN46: 69 | AO46: 64 | AP46: 66 | AQ46: 23 | AR46: 34 | AS46: 1 | AT46: 74 | AU46: 26 | AV46: 53 | AW46: 19 | AX46: 90 | AY46: 65 | AZ46: 21 | BA46: 70 | BB46: 86 | BC46: 72 | BD46: 18 | BE46: 51 | BF46: 4
A47: 9819 | B47: 91 | C47: 2020-09-10 | D47: 60 | E47: 58 | F47: 72 | G47: 22 | H47: 14 | I47: 76 | J47: 53 | K47: 55 | L47: 86 | M47: 16 | N47: 25 | O47: 65 | P47: 84 | Q47: 41 | R47: 4 | S47: 89 | T47: 86 | U47: 40 | V47: 47 | W47: 51 | X47: 74 | Y47: 50 | Z47: 66 | AA47: 75 | AB47: 1 | AC47: 7 | AD47: 63 | AE47: 60 | AF47: 44 | AG47: 28 | AH47: 38 | AI47: 63 | AJ47: 41 | AK47: 83 | AL47: 39 | AM47: 67 | AN47: 37 | AO47: 35 | AP47: 82 | AQ47: 72 | AR47: 70 | AS47: 34 | AT47: 83 | AU47: 77 | AV47: 14 | AW47: 74 | AX47: 77 | AY47: 79 | AZ47: 54 | BA47: 19 | BB47: 74 | BC47: 18 | BD47: 37 | BE47: 45 | BF47: 64
A48: 9820 | B48: 92 | C48: 2020-09-12 | D48: 87 | E48: 74 | F48: 26 | G48: 66 | H48: 13 | I48: 58 | J48: 37 | K48: 56 | L48: 72 | M48: 86 | N48: 89 | O48: 5 | P48: 47 | Q48: 37 | R48: 71 | S48: 3 | T48: 38 | U48: 1 | V48: 47 | W48: 69 | X48: 64 | Y48: 9 | Z48: 89 | AA48: 27 | AB48: 33 | AC48: 14 | AD48: 17 | AE48: 63 | AF48: 75 | AG48: 20 | AH48: 6 | AI48: 29 | AJ48: 77 | AK48: 9 | AL48: 2 | AM48: 83 | AN48: 77 | AO48: 89 | AP48: 62 | AQ48: 35 | AR48: 53 | AS48: 32 | AT48: 29 | AU48: 39 | AV48: 66 | AW48: 21 | AX48: 42 | AY48: 60 | AZ48: 83 | BA48: 39 | BB48: 34 | BC48: 10 | BD48: 9 | BE48: 2 | BF48: 6
A49: 9821 | B49: 93 | C49: 2020-09-15 | D49: 85 | E49: 84 | F49: 65 | G49: 30 | H49: 18 | I49: 38 | J49: 80 | K49: 55 | L49: 43 | M49: 21 | N49: 24 | O49: 8 | P49: 13 | Q49: 14 | R49: 1 | S49: 72 | T49: 70 | U49: 8 | V49: 26 | W49: 73 | X49: 65 | Y49: 50 | Z49: 88 | AA49: 59 | AB49: 26 | AC49: 45 | AD49: 50 | AE49: 29 | AF49: 8 | AG49: 38 | AH49: 74 | AI49: 52 | AJ49: 37 | AK49: 33 | AL49: 39 | AM49: 32 | AN49: 74 | AO49: 48 | AP49: 78 | AQ49: 36 | AR49: 33 | AS49: 34 | AT49: 60 | AU49: 79 | AV49: 64 | AW49: 8 | AX49: 16 | AY49: 29 | AZ49: 14 | BA49: 34 | BB49: 62 | BC49: 85 | BD49: 2 | BE49: 64 | BF49: 31
A50: 9822 | B50: 94 | C50: 2020-09-17 | D50: 77 | E50: 23 | F50: 45 | G50: 54 | H50: 86 | I50: 57 | J50: 81 | K50: 85 | L50: 39 | M50: 21 | N50: 12 | O50: 86 | P50: 38 | Q50: 52 | R50: 81 | S50: 71 | T50: 11 | U50: 62 | V50: 85 | W50: 12 | X50: 10 | Y50: 47 | Z50: 71 | AA50: 45 | AB50: 58 | AC50: 88 | AD50: 50 | AE50: 77 | AF50: 54 | AG50: 33 | AH50: 29 | AI50: 32 | AJ50: 27 | AK50: 4 | AL50: 28 | AM50: 22 | AN50: 14 | AO50: 21 | AP50: 19 | AQ50: 64 | AR50: 57 | AS50: 12 | AT50: 78 | AU50: 67 | AV50: 62 | AW50: 4 | AX50: 37 | AY50: 70 | AZ50: 3 | BA50: 79 | BB50: 52 | BC50: 80 | BD50: 15 | BE50: 13 | BF50: 59
A51: 9823 | B51: 95 | C51: 2020-09-19 | D51: 18 | E51: 20 | F51: 9 | G51: 74 | H51: 3 | I51: 22 | J51: 72 | K51: 21 | L51: 74 | M51: 66 | N51: 55 | O51: 7 | P51: 37 | Q51: 27 | R51: 8 | S51: 35 | T51: 89 | U51: 31 | V51: 8 | W51: 67 | X51: 77 | Y51: 87 | Z51: 48 | AA51: 33 | AB51: 41 | AC51: 53 | AD51: 78 | AE51: 88 | AF51: 10 | AG51: 20 | AH51: 29 | AI51: 39 | AJ51: 26 | AK51: 51 | AL51: 54 | AM51: 42 | AN51: 32 | AO51: 33 | AP51: 28 | AQ51: 83 | AR51: 53 | AS51: 46 | AT51: 62 | AU51: 1 | AV51: 90 | AW51: 71 | AX51: 27 | AY51: 49 | AZ51: 89 | BA51: 64 | BB51: 60 | BC51: 73 | BD51: 34 | BE51: 10 | BF51: 78
A52: 9824 | B52: 96 | C52: 2020-09-22 | D52: 7 | E52: 10 | F52: 21 | G52: 80 | H52: 4 | I52: 25 | J52: 9 | K52: 4 | L52: 29 | M52: 78 | N52: 8 | O52: 57 | P52: 19 | Q52: 82 | R52: 62 | S52: 49 | T52: 40 | U52: 51 | V52: 23 | W52: 79 | X52: 72 | Y52: 84 | Z52: 69 | AA52: 13 | AB52: 7 | AC52: 26 | AD52: 28 | AE52: 47 | AF52: 16 | AG52: 79 | AH52: 33 | AI52: 70 | AJ52: 28 | AK52: 79 | AL52: 29 | AM52: 6 | AN52: 82 | AO52: 34 | AP52: 70 | AQ52: 9 | AR52: 49 | AS52: 30 | AT52: 26 | AU52: 2 | AV52: 70 | AW52: 33 | AX52: 43 | AY52: 37 | AZ52: 19 | BA52: 8 | BB52: 53 | BC52: 72 | BD52: 55 | BE52: 78 | BF52: 68
A53: 9825 | B53: 97 | C53: 2020-09-24 | D53: 4 | E53: 30 | F53: 73 | G53: 82 | H53: 79 | I53: 32 | J53: 17 | K53: 7 | L53: 74 | M53: 66 | N53: 65 | O53: 41 | P53: 23 | Q53: 88 | R53: 85 | S53: 79 | T53: 78 | U53: 60 | V53: 88 | W53: 73 | X53: 22 | Y53: 69 | Z53: 2 | AA53: 80 | AB53: 27 | AC53: 59 | AD53: 53 | AE53: 67 | AF53: 13 | AG53: 86 | AH53: 81 | AI53: 90 | AJ53: 39 | AK53: 11 | AL53: 65 | AM53: 53 | AN53: 72 | AO53: 39 | AP53: 54 | AQ53: 52 | AR53: 62 | AS53: 70 | AT53: 10 | AU53: 54 | AV53: 82 | AW53: 52 | AX53: 43 | AY53: 10 | AZ53: 80 | BA53: 75 | BB53: 17 | BC53: 23 | BD53: 52 | BE53: 76 | BF53: 78
A54: 9826 | B54: 98 | C54: 2020-09-26 | D54: 14 | E54: 86 | F54: 85 | G54: 68 | H54: 16 | I54: 31 | J54: 45 | K54: 42 | L54: 79 | M54: 21 | N54: 74 | O54: 69 | P54: 10 | Q54: 63 | R54: 35 | S54: 67 | T54: 32 | U54: 79 | V54: 36 | W54: 66 | X54: 89 | Y54: 59 | Z54: 36 | AA54: 77 | AB54: 90 | AC54: 58 | AD54: 33 | AE54: 6 | AF54: 18 | AG54: 56 | AH54: 30 | AI54: 19 | AJ54: 62 | AK54: 90 | AL54: 17 | AM54: 33 | AN54: 70 | AO54: 35 | AP54: 75 | AQ54: 21 | AR54: 15 | AS54: 20 | AT54: 57 | AU54: 21 | AV54: 35 | AW54: 36 | AX54: 29 | AY54: 71 | AZ54: 15 | BA54: 26 | BB54: 73 | BC54: 2 | BD54: 20 | BE54: 72 | BF54: 10
A55: 9827 | B55: 99 | C55: 2020-09-29 | D55: 26 | E55: 24 | F55: 40 | G55: 80 | H55: 49 | I55: 7 | J55: 33 | K55: 55 | L55: 89 | M55: 81 | N55: 53 | O55: 20 | P55: 13 | Q55: 75 | R55: 41 | S55: 19 | T55: 47 | U55: 62 | V55: 29 | W55: 6 | X55: 82 | Y55: 17 | Z55: 24 | AA55: 21 | AB55: 50 | AC55: 39 | AD55: 2 | AE55: 72 | AF55: 42 | AG55: 78 | AH55: 4 | AI55: 74 | AJ55: 78 | AK55: 38 | AL55: 61 | AM55: 19 | AN55: 14 | AO55: 20 | AP55: 90 | AQ55: 82 | AR55: 47 | AS55: 41 | AT55: 57 | AU55: 70 | AV55: 2 | AW55: 33 | AX55: 48 | AY55: 75 | AZ55: 23 | BA55: 49 | BB55: 56 | BC55: 16 | BD55: 62 | BE55: 43 | BF55: 15
A56: 9828 | B56: 100 | C56: 2020-10-01 | D56: 88 | E56: 21 | F56: 77 | G56: 69 | H56: 70 | I56: 11 | J56: 15 | K56: 74 | L56: 51 | M56: 4 | N56: 30 | O56: 8 | P56: 68 | Q56: 32 | R56: 37 | S56: 3 | T56: 21 | U56: 15 | V56: 42 | W56: 36 | X56: 25 | Y56: 87 | Z56: 17 | AA56: 6 | AB56: 78 | AC56: 73 | AD56: 43 | AE56: 87 | AF56: 18 | AG56: 52 | AH56: 24 | AI56: 72 | AJ56: 33 | AK56: 87 | AL56: 85 | AM56: 82 | AN56: 14 | AO56: 74 | AP56: 8 | AQ56: 2 | AR56: 26 | AS56: 90 | AT56: 31 | AU56: 3 | AV56: 5 | AW56: 31 | AX56: 40 | AY56: 48 | AZ56: 63 | BA56: 29 | BB56: 18 | BC56: 87 | BD56: 29 | BE56: 13 | BF56: 10
A57: 9829 | B57: 101 | C57: 2020-10-03 | D57: 90 | E57: 48 | F57: 11 | G57: 49 | H57: 31 | I57: 7 | J57: 56 | K57: 50 | L57: 62 | M57: 63 | N57: 74 | O57: 88 | P57: 65 | Q57: 46 | R57: 66 | S57: 60 | T57: 28 | U57: 22 | V57: 39 | W57: 72 | X57: 64 | Y57: 86 | Z57: 68 | AA57: 65 | AB57: 82 | AC57: 6 | AD57: 35 | AE57: 61 | AF57: 74 | AG57: 51 | AH57: 35 | AI57: 44 | AJ57: 48 | AK57: 25 | AL57: 67 | AM57: 68 | AN57: 43 | AO57: 57 | AP57: 88 | AQ57: 49 | AR57: 14 | AS57: 84 | AT57: 49 | AU57: 79 | AV57: 75 | AW57: 36 | AX57: 90 | AY57: 12 | AZ57: 24 | BA57: 74 | BB57: 62 | BC57: 10 | BD57: 34 | BE57: 17 | BF57: 4
A58: 9830 | B58: 102 | C58: 2020-10-06 | D58: 17 | E58: 24 | F58: 26 | G58: 12 | H58: 18 | I58: 80 | J58: 86 | K58: 46 | L58: 81 | M58: 74 | N58: 85 | O58: 34 | P58: 65 | Q58: 50 | R58: 83 | S58: 14 | T58: 90 | U58: 63 | V58: 35 | W58: 83 | X58: 43 | Y58: 17 | Z58: 25 | AA58: 6 | AB58: 49 | AC58: 44 | AD58: 72 | AE58: 46 | AF58: 76 | AG58: 80 | AH58: 83 | AI58: 87 | AJ58: 24 | AK58: 54 | AL58: 35 | AM58: 83 | AN58: 39 | AO58: 25 | AP58: 19 | AQ58: 36 | AR58: 48 | AS58: 7 | AT58: 47 | AU58: 70 | AV58: 6 | AW58: 84 | AX58: 65 | AY58: 79 | AZ58: 32 | BA58: 16 | BB58: 2 | BC58: 28 | BD58: 41 | BE58: 4 | BF58: 34
A59: 9831 | B59: 103 | C59: 2020-10-08 | D59: 71 | E59: 49 | F59: 2 | G59: 50 | H59: 88 | I59: 49 | J59: 61 | K59: 70 | L59: 33 | M59: 48 | N59: 60 | O59: 71 | P59: 2 | Q59: 22 | R59: 88 | S59: 30 | T59: 10 | U59: 56 | V59: 38 | W59: 5 | X59: 78 | Y59: 29 | Z59: 30 | AA59: 36 | AB59: 15 | AC59: 53 | AD59: 19 | AE59: 76 | AF59: 4 | AG59: 88 | AH59: 83 | AI59: 85 | AJ59: 55 | AK59: 31 | AL59: 84 | AM59: 81 | AN59: 58 | AO59: 46 | AP59: 52 | AQ59: 60 | AR59: 53 | AS59: 36 | AT59: 85 | AU59: 87 | AV59: 52 | AW59: 47 | AX59: 72 | AY59: 52 | AZ59: 79 | BA59: 15 | BB59: 58 | BC59: 69 | BD59: 54 | BE59: 83 | BF59: 71
A60: 9832 | B60: 104 | C60: 2020-10-10 | D60: 49 | E60: 57 | F60: 23 | G60: 84 | H60: 18 | I60: 1 | J60: 41 | K60: 36 | L60: 73 | M60: 17 | N60: 4 | O60: 18 | P60: 29 | Q60: 76 | R60: 81 | S60: 31 | T60: 83 | U60: 57 | V60: 90 | W60: 32 | X60: 56 | Y60: 45 | Z60: 74 | AA60: 71 | AB60: 7 | AC60: 42 | AD60: 61 | AE60: 40 | AF60: 51 | AG60: 53 | AH60: 60 | AI60: 36 | AJ60: 84 | AK60: 50 | AL60: 1 | AM60: 16 | AN60: 14 | AO60: 18 | AP60: 13 | AQ60: 78 | AR60: 19 | AS60: 62 | AT60: 85 | AU60: 78 | AV60: 11 | AW60: 20 | AX60: 55 | AY60: 39 | AZ60: 45 | BA60: 84 | BB60: 82 | BC60: 32 | BD60: 88 | BE60: 84 | BF60: 89
A61: 9833 | B61: 105 | C61: 2020-10-13 | D61: 83 | E61: 66 | F61: 9 | G61: 89 | H61: 16 | I61: 80 | J61: 81 | K61: 15 | L61: 9 | M61: 54 | N61: 57 | O61: 39 | P61: 80 | Q61: 3 | R61: 52 | S61: 47 | T61: 75 | U61: 78 | V61: 4 | W61: 84 | X61: 35 | Y61: 18 | Z61: 75 | AA61: 25 | AB61: 66 | AC61: 13 | AD61: 62 | AE61: 40 | AF61: 31 | AG61: 56 | AH61: 23 | AI61: 59 | AJ61: 30 | AK61: 65 | AL61: 27 | AM61: 22 | AN61: 8 | AO61: 77 | AP61: 49 | AQ61: 60 | AR61: 78 | AS61: 14 | AT61: 20 | AU61: 38 | AV61: 8 | AW61: 71 | AX61: 39 | AY61: 10 | AZ61: 78 | BA61: 83 | BB61: 22 | BC61: 27 | BD61: 56 | BE61: 86 | BF61: 87
A62: 9834 | B62: 106 | C62: 2020-10-15 | D62: 6 | E62: 9 | F62: 89 | G62: 86 | H62: 27 | I62: 5 | J62: 61 | K62: 54 | L62: 3 | M62: 41 | N62: 12 | O62: 60 | P62: 26 | Q62: 18 | R62: 39 | S62: 5 | T62: 45 | U62: 9 | V62: 71 | W62: 34 | X62: 36 | Y62: 84 | Z62: 7 | AA62: 30 | AB62: 23 | AC62: 43 | AD62: 48 | AE62: 79 | AF62: 27 | AG62: 39 | AH62: 39 | AI62: 29 | AJ62: 21 | AK62: 53 | AL62: 74 | AM62: 22 | AN62: 63 | AO62: 73 | AP62: 9 | AQ62: 83 | AR62: 68 | AS62: 30 | AT62: 44 | AU62: 71 | AV62: 65 | AW62: 21 | AX62: 39 | AY62: 32 | AZ62: 35 | BA62: 19 | BB62: 47 | BC62: 33 | BD62: 65 | BE62: 21 | BF62: 18
A63: 9835 | B63: 107 | C63: 2020-10-17 | D63: 47 | E63: 24 | F63: 50 | G63: 84 | H63: 17 | I63: 19 | J63: 11 | K63: 50 | L63: 89 | M63: 68 | N63: 44 | O63: 7 | P63: 43 | Q63: 23 | R63: 11 | S63: 27 | T63: 24 | U63: 60 | V63: 34 | W63: 5 | X63: 27 | Y63: 31 | Z63: 10 | AA63: 14 | AB63: 47 | AC63: 21 | AD63: 40 | AE63: 24 | AF63: 68 | AG63: 85 | AH63: 67 | AI63: 4 | AJ63: 11 | AK63: 63 | AL63: 49 | AM63: 28 | AN63: 32 | AO63: 49 | AP63: 81 | AQ63: 72 | AR63: 50 | AS63: 28 | AT63: 40 | AU63: 22 | AV63: 18 | AW63: 21 | AX63: 49 | AY63: 29 | AZ63: 47 | BA63: 12 | BB63: 90 | BC63: 32 | BD63: 20 | BE63: 10 | BF63: 63
A64: 9836 | B64: 108 | C64: 2020-10-20 | D64: 79 | E64: 28 | F64: 63 | G64: 61 | H64: 45 | I64: 28 | J64: 34 | K64: 81 | L64: 48 | M64: 89 | N64: 29 | O64: 27 | P64: 12 | Q64: 37 | R64: 17 | S64: 56 | T64: 55 | U64: 44 | V64: 30 | W64: 7 | X64: 47 | Y64: 90 | Z64: 64 | AA64: 49 | AB64: 14 | AC64: 34 | AD64: 19 | AE64: 84 | AF64: 65 | AG64: 5 | AH64: 88 | AI64: 57 | AJ64: 87 | AK64: 10 | AL64: 18 | AM64: 29 | AN64: 11 | AO64: 2 | AP64: 16 | AQ64: 65 | AR64: 70 | AS64: 61 | AT64: 29 | AU64: 47 | AV64: 25 | AW64: 1 | AX64: 76 | AY64: 78 | AZ64: 77 | BA64: 74 | BB64: 65 | BC64: 57 | BD64: 24 | BE64: 40 | BF64: 34
A65: 9837 | B65: 109 | C65: 2020-10-22 | D65: 70 | E65: 31 | F65: 13 | G65: 7 | H65: 89 | I65: 71 | J65: 72 | K65: 5 | L65: 37 | M65: 13 | N65: 10 | O65: 86 | P65: 25 | Q65: 29 | R65: 79 | S65: 53 | T65: 34 | U65: 69 | V65: 60 | W65: 33 | X65: 66 | Y65: 90 | Z65: 4 | AA65: 86 | AB65: 47 | AC65: 89 | AD65: 71 | AE65: 31 | AF65: 5 | AG65: 32 | AH65: 10 | AI65: 28 | AJ65: 73 | AK65: 56 | AL65: 76 | AM65: 13 | AN65: 65 | AO65: 18 | AP65: 84 | AQ65: 25 | AR65: 14 | AS65: 15 | AT65: 70 | AU65: 18 | AV65: 49 | AW65: 35 | AX65: 78 | AY65: 23 | AZ65: 32 | BA65: 18 | BB65: 2 | BC65: 43 | BD65: 32 | BE65: 64 | BF65: 84
A66: 9838 | B66: 110 | C66: 2020-10-24 | D66: 40 | E66: 30 | F66: 77 | G66: 81 | H66: 51 | I66: 87 | J66: 17 | K66: 62 | L66: 70 | M66: 86 | N66: 25 | O66: 23 | P66: 35 | Q66: 16 | R66: 58 | S66: 74 | T66: 59 | U66: 40 | V66: 37 | W66: 16 | X66: 73 | Y66: 39 | Z66: 57 | AA66: 36 | AB66: 25 | AC66: 72 | AD66: 6 | AE66: 50 | AF66: 77 | AG66: 68 | AH66: 58 | AI66: 63 | AJ66: 65 | AK66: 54 | AL66: 38 | AM66: 58 | AN66: 67 | AO66: 20 | AP66: 84 | AQ66: 13 | AR66: 88 | AS66: 45 | AT66: 51 | AU66: 66 | AV66: 77 | AW66: 82 | AX66: 62 | AY66: 60 | AZ66: 58 | BA66: 24 | BB66: 62 | BC66: 26 | BD66: 9 | BE66: 2 | BF66: 68
A67: 9839 | B67: 111 | C67: 2020-10-27 | D67: 88 | E67: 72 | F67: 12 | G67: 87 | H67: 49 | I67: 22 | J67: 20 | K67: 56 | L67: 59 | M67: 30 | N67: 5 | O67: 39 | P67: 74 | Q67: 53 | R67: 86 | S67: 57 | T67: 72 | U67: 7 | V67: 46 | W67: 2 | X67: 88 | Y67: 40 | Z67: 30 | AA67: 33 | AB67: 38 | AC67: 23 | AD67: 14 | AE67: 11 | AF67: 90 | AG67: 20 | AH67: 12 | AI67: 18 | AJ67: 89 | AK67: 6 | AL67: 20 | AM67: 76 | AN67: 3 | AO67: 45 | AP67: 20 | AQ67: 44 | AR67: 64 | AS67: 30 | AT67: 43 | AU67: 69 | AV67: 16 | AW67: 56 | AX67: 60 | AY67: 32 | AZ67: 17 | BA67: 46 | BB67: 59 | BC67: 74 | BD67: 12 | BE67: 50 | BF67: 54
A68: 9840 | B68: 112 | C68: 2020-10-29 | D68: 26 | E68: 78 | F68: 70 | G68: 83 | H68: 51 | I68: 62 | J68: 21 | K68: 12 | L68: 11 | M68: 44 | N68: 48 | O68: 38 | P68: 85 | Q68: 90 | R68: 79 | S68: 81 | T68: 57 | U68: 25 | V68: 32 | W68: 34 | X68: 13 | Y68: 49 | Z68: 15 | AA68: 82 | AB68: 27 | AC68: 31 | AD68: 9 | AE68: 27 | AF68: 24 | AG68: 33 | AH68: 8 | AI68: 25 | AJ68: 31 | AK68: 86 | AL68: 40 | AM68: 10 | AN68: 6 | AO68: 39 | AP68: 57 | AQ68: 85 | AR68: 77 | AS68: 39 | AT68: 71 | AU68: 74 | AV68: 22 | AW68: 67 | AX68: 76 | AY68: 29 | AZ68: 28 | BA68: 56 | BB68: 30 | BC68: 40 | BD68: 42 | BE68: 26 | BF68: 16
A69: 9841 | B69: 113 | C69: 2020-10-31 | D69: 83 | E69: 79 | F69: 69 | G69: 87 | H69: 59 | I69: 65 | J69: 47 | K69: 52 | L69: 43 | M69: 7 | N69: 80 | O69: 9 | P69: 50 | Q69: 63 | R69: 30 | S69: 49 | T69: 39 | U69: 64 | V69: 11 | W69: 25 | X69: 72 | Y69: 82 | Z69: 64 | AA69: 6 | AB69: 9 | AC69: 28 | AD69: 72 | AE69: 33 | AF69: 87 | AG69: 40 | AH69: 48 | AI69: 33 | AJ69: 7 | AK69: 12 | AL69: 62 | AM69: 32 | AN69: 20 | AO69: 83 | AP69: 48 | AQ69: 40 | AR69: 63 | AS69: 35 | AT69: 73 | AU69: 2 | AV69: 28 | AW69: 23 | AX69: 8 | AY69: 37 | AZ69: 27 | BA69: 35 | BB69: 44 | BC69: 25 | BD69: 81 | BE69: 72 | BF69: 77
A70: 9842 | B70: 114 | C70: 2020-11-03 | D70: 89 | E70: 2 | F70: 13 | G70: 67 | H70: 57 | I70: 44 | J70: 67 | K70: 27 | L70: 81 | M70: 5 | N70: 82 | O70: 29 | P70: 16 | Q70: 13 | R70: 47 | S70: 28 | T70: 61 | U70: 15 | V70: 20 | W70: 90 | X70: 23 | Y70: 28 | Z70: 15 | AA70: 71 | AB70: 37 | AC70: 66 | AD70: 39 | AE70: 25 | AF70: 81 | AG70: 51 | AH70: 57 | AI70: 30 | AJ70: 35 | AK70: 64 | AL70: 18 | AM70: 81 | AN70: 72 | AO70: 20 | AP70: 9 | AQ70: 19 | AR70: 25 | AS70: 42 | AT70: 20 | AU70: 54 | AV70: 17 | AW70: 10 | AX70: 29 | AY70: 13 | AZ70: 35 | BA70: 17 | BB70: 18 | BC70: 57 | BD70: 39 | BE70: 52 | BF70: 46
A71: 9843 | B71: 115 | C71: 2020-11-05 | D71: 66 | E71: 85 | F71: 12 | G71: 38 | H71: 77 | I71: 30 | J71: 13 | K71: 58 | L71: 43 | M71: 79 | N71: 18 | O71: 67 | P71: 52 | Q71: 42 | R71: 63 | S71: 61 | T71: 12 | U71: 66 | V71: 74 | W71: 89 | X71: 90 | Y71: 58 | Z71: 73 | AA71: 26 | AB71: 33 | AC71: 72 | AD71: 38 | AE71: 43 | AF71: 70 | AG71: 42 | AH71: 73 | AI71: 22 | AJ71: 67 | AK71: 24 | AL71: 69 | AM71: 39 | AN71: 38 | AO71: 42 | AP71: 61 | AQ71: 4 | AR71: 83 | AS71: 12 | AT71: 45 | AU71: 61 | AV71: 55 | AW71: 64 | AX71: 83 | AY71: 52 | AZ71: 28 | BA71: 68 | BB71: 83 | BC71: 58 | BD71: 76 | BE71: 38 | BF71: 5
A72: 9844 | B72: 116 | C72: 2020-11-07 | D72: 84 | E72: 83 | F72: 14 | G72: 11 | H72: 8 | I72: 31 | J72: 40 | K72: 27 | L72: 62 | M72: 39 | N72: 87 | O72: 20 | P72: 59 | Q72: 22 | R72: 80 | S72: 6 | T72: 64 | U72: 2 | V72: 26 | W72: 61 | X72: 77 | Y72: 85 | Z72: 58 | AA72: 79 | AB72: 87 | AC72: 10 | AD72: 56 | AE72: 18 | AF72: 46 | AG72: 44 | AH72: 50 | AI72: 10 | AJ72: 61 | AK72: 14 | AL72: 40 | AM72: 63 | AN72: 81 | AO72: 16 | AP72: 54 | AQ72: 84 | AR72: 52 | AS72: 49 | AT72: 31 | AU72: 58 | AV72: 34 | AW72: 89 | AX72: 83 | AY72: 54 | AZ72: 67 | BA72: 12 | BB72: 16 | BC72: 38 | BD72: 48 | BE72: 73 | BF72: 11
A73: 9845 | B73: 117 | C73: 2020-11-10 | D73: 54 | E73: 64 | F73: 49 | G73: 45 | H73: 65 | I73: 45 | J73: 10 | K73: 76 | L73: 1 | M73: 69 | N73: 34 | O73: 6 | P73: 76 | Q73: 2 | R73: 50 | S73: 20 | T73: 66 | U73: 4 | V73: 23 | W73: 63 | X73: 24 | Y73: 6 | Z73: 75 | AA73: 74 | AB73: 39 | AC73: 69 | AD73: 6 | AE73: 51 | AF73: 4 | AG73: 8 | AH73: 22 | AI73: 31 | AJ73: 63 | AK73: 8 | AL73: 35 | AM73: 85 | AN73: 90 | AO73: 33 | AP73: 67 | AQ73: 5 | AR73: 25 | AS73: 80 | AT73: 75 | AU73: 88 | AV73: 18 | AW73: 65 | AX73: 53 | AY73: 45 | AZ73: 17 | BA73: 75 | BB73: 21 | BC73: 46 | BD73: 55 | BE73: 37 | BF73: 47
A74: 9846 | B74: 118 | C74: 2020-11-12 | D74: 77 | E74: 20 | F74: 34 | G74: 21 | H74: 52 | I74: 30 | J74: 9 | K74: 63 | L74: 20 | M74: 33 | N74: 32 | O74: 16 | P74: 2 | Q74: 63 | R74: 29 | S74: 16 | T74: 3 | U74: 11 | V74: 30 | W74: 40 | X74: 44 | Y74: 84 | Z74: 72 | AA74: 58 | AB74: 78 | AC74: 28 | AD74: 12 | AE74: 88 | AF74: 60 | AG74: 77 | AH74: 61 | AI74: 74 | AJ74: 71 | AK74: 7 | AL74: 13 | AM74: 78 | AN74: 37 | AO74: 19 | AP74: 35 | AQ74: 90 | AR74: 27 | AS74: 62 | AT74: 34 | AU74: 76 | AV74: 31 | AW74: 36 | AX74: 90 | AY74: 58 | AZ74: 66 | BA74: 57 | BB74: 44 | BC74: 56 | BD74: 69 | BE74: 12 | BF74: 1
A75: 9847 | B75: 119 | C75: 2020-11-14 | D75: 20 | E75: 23 | F75: 34 | G75: 18 | H75: 72 | I75: 34 | J75: 89 | K75: 36 | L75: 57 | M75: 18 | N75: 3 | O75: 67 | P75: 47 | Q75: 15 | R75: 5 | S75: 39 | T75: 47 | U75: 4 | V75: 15 | W75: 3 | X75: 5 | Y75: 12 | Z75: 4 | AA75: 29 | AB75: 60 | AC75: 15 | AD75: 50 | AE75: 90 | AF75: 31 | AG75: 38 | AH75: 25 | AI75: 26 | AJ75: 8 | AK75: 42 | AL75: 76 | AM75: 6 | AN75: 45 | AO75: 74 | AP75: 12 | AQ75: 78 | AR75: 26 | AS75: 36 | AT75: 49 | AU75: 67 | AV75: 2 | AW75: 45 | AX75: 87 | AY75: 21 | AZ75: 63 | BA75: 46 | BB75: 11 | BC75: 86 | BD75: 71 | BE75: 13 | BF75: 3
A76: 9848 | B76: 120 | C76: 2020-11-17 | D76: 15 | E76: 82 | F76: 83 | G76: 61 | H76: 29 | I76: 14 | J76: 78 | K76: 41 | L76: 38 | M76: 83 | N76: 61 | O76: 44 | P76: 80 | Q76: 22 | R76: 89 | S76: 31 | T76: 86 | U76: 75 | V76: 13 | W76: 25 | X76: 74 | Y76: 75 | Z76: 40 | AA76: 24 | AB76: 60 | AC76: 34 | AD76: 74 | AE76: 35 | AF76: 20 | AG76: 38 | AH76: 27 | AI76: 67 | AJ76: 47 | AK76: 36 | AL76: 9 | AM76: 31 | AN76: 75 | AO76: 4 | AP76: 30 | AQ76: 57 | AR76: 80 | AS76: 53 | AT76: 7 | AU76: 11 | AV76: 12 | AW76: 50 | AX76: 67 | AY76: 65 | AZ76: 18 | BA76: 7 | BB76: 58 | BC76: 74 | BD76: 69 | BE76: 73 | BF76: 32
A77: 9849 | B77: 121 | C77: 2020-11-19 | D77: 43 | E77: 51 | F77: 8 | G77: 70 | H77: 76 | I77: 89 | J77: 37 | K77: 84 | L77: 79 | M77: 30 | N77: 51 | O77: 4 | P77: 27 | Q77: 37 | R77: 36 | S77: 22 | T77: 67 | U77: 42 | V77: 51 | W77: 48 | X77: 56 | Y77: 24 | Z77: 28 | AA77: 79 | AB77: 23 | AC77: 57 | AD77: 27 | AE77: 74 | AF77: 41 | AG77: 2 | AH77: 11 | AI77: 2 | AJ77: 61 | AK77: 69 | AL77: 84 | AM77: 1 | AN77: 9 | AO77: 42 | AP77: 11 | AQ77: 63 | AR77: 81 | AS77: 49 | AT77: 78 | AU77: 33 | AV77: 15 | AW77: 69 | AX77: 18 | AY77: 25 | AZ77: 37 | BA77: 43 | BB77: 88 | BC77: 8 | BD77: 69 | BE77: 82 | BF77: 33
A78: 9850 | B78: 122 | C78: 2020-11-21 | D78: 47 | E78: 67 | F78: 9 | G78: 60 | H78: 21 | I78: 67 | J78: 76 | K78: 61 | L78: 81 | M78: 78 | N78: 7 | O78: 43 | P78: 4 | Q78: 16 | R78: 61 | S78: 34 | T78: 79 | U78: 89 | V78: 25 | W78: 15 | X78: 10 | Y78: 69 | Z78: 46 | AA78: 17 | AB78: 60 | AC78: 86 | AD78: 89 | AE78: 19 | AF78: 24 | AG78: 49 | AH78: 57 | AI78: 76 | AJ78: 85 | AK78: 47 | AL78: 54 | AM78: 38 | AN78: 57 | AO78: 55 | AP78: 23 | AQ78: 67 | AR78: 49 | AS78: 29 | AT78: 75 | AU78: 36 | AV78: 51 | AW78: 52 | AX78: 67 | AY78: 2 | AZ78: 64 | BA78: 42 | BB78: 84 | BC78: 26 | BD78: 11 | BE78: 6 | BF78: 60
A79: 9851 | B79: 123 | C79: 2020-11-24 | D79: 56 | E79: 45 | F79: 69 | G79: 74 | H79: 10 | I79: 3 | J79: 75 | K79: 10 | L79: 33 | M79: 68 | N79: 6 | O79: 46 | P79: 45 | Q79: 22 | R79: 66 | S79: 21 | T79: 90 | U79: 46 | V79: 69 | W79: 56 | X79: 58 | Y79: 56 | Z79: 44 | AA79: 45 | AB79: 21 | AC79: 20 | AD79: 32 | AE79: 7 | AF79: 62 | AG79: 56 | AH79: 48 | AI79: 20 | AJ79: 22 | AK79: 38 | AL79: 66 | AM79: 84 | AN79: 61 | AO79: 37 | AP79: 4 | AQ79: 73 | AR79: 31 | AS79: 27 | AT79: 16 | AU79: 64 | AV79: 38 | AW79: 45 | AX79: 18 | AY79: 13 | AZ79: 75 | BA79: 82 | BB79: 52 | BC79: 82 | BD79: 57 | BE79: 61 | BF79: 7
A80: 9852 | B80: 124 | C80: 2020-11-26 | D80: 15 | E80: 72 | F80: 17 | G80: 27 | H80: 6 | I80: 67 | J80: 27 | K80: 63 | L80: 44 | M80: 78 | N80: 80 | O80: 71 | P80: 1 | Q80: 59 | R80: 16 | S80: 73 | T80: 36 | U80: 34 | V80: 52 | W80: 5 | X80: 4 | Y80: 77 | Z80: 44 | AA80: 43 | AB80: 31 | AC80: 53 | AD80: 3 | AE80: 4 | AF80: 24 | AG80: 90 | AH80: 52 | AI80: 53 | AJ80: 46 | AK80: 71 | AL80: 64 | AM80: 39 | AN80: 8 | AO80: 5 | AP80: 33 | AQ80: 62 | AR80: 66 | AS80: 12 | AT80: 47 | AU80: 68 | AV80: 6 | AW80: 88 | AX80: 57 | AY80: 66 | AZ80: 52 | BA80: 34 | BB80: 4 | BC80: 80 | BD80: 34 | BE80: 76 | BF80: 45
A81: 9853 | B81: 125 | C81: 2020-11-28 | D81: 61 | E81: 80 | F81: 40 | G81: 26 | H81: 16 | I81: 14 | J81: 12 | K81: 83 | L81: 85 | M81: 28 | N81: 76 | O81: 40 | P81: 31 | Q81: 53 | R81: 61 | S81: 58 | T81: 2 | U81: 50 | V81: 34 | W81: 30 | X81: 86 | Y81: 62 | Z81: 14 | AA81: 54 | AB81: 23 | AC81: 81 | AD81: 26 | AE81: 19 | AF81: 35 | AG81: 9 | AH81: 26 | AI81: 39 | AJ81: 31 | AK81: 16 | AL81: 51 | AM81: 11 | AN81: 58 | AO81: 68 | AP81: 23 | AQ81: 85 | AR81: 59 | AS81: 74 | AT81: 88 | AU81: 1 | AV81: 22 | AW81: 35 | AX81: 57 | AY81: 28 | AZ81: 36 | BA81: 90 | BB81: 26 | BC81: 80 | BD81: 87 | BE81: 36 | BF81: 77
A82: 9854 | B82: 126 | C82: 2020-12-01 | D82: 65 | E82: 80 | F82: 1 | G82: 13 | H82: 85 | I82: 51 | J82: 71 | K82: 84 | L82: 16 | M82: 65 | N82: 65 | O82: 64 | P82: 1 | Q82: 35 | R82: 85 | S82: 47 | T82: 74 | U82: 46 | V82: 56 | W82: 18 | X82: 54 | Y82: 90 | Z82: 5 | AA82: 23 | AB82: 53 | AC82: 42 | AD82: 89 | AE82: 17 | AF82: 67 | AG82: 25 | AH82: 77 | AI82: 1 | AJ82: 54 | AK82: 76 | AL82: 29 | AM82: 32 | AN82: 89 | AO82: 76 | AP82: 64 | AQ82: 28 | AR82: 88 | AS82: 86 | AT82: 63 | AU82: 68 | AV82: 26 | AW82: 43 | AX82: 42 | AY82: 15 | AZ82: 46 | BA82: 35 | BB82: 42 | BC82: 19 | BD82: 50 | BE82: 25 | BF82: 29
A83: 9855 | B83: 127 | C83: 2020-12-03 | D83: 27 | E83: 31 | F83: 12 | G83: 54 | H83: 68 | I83: 54 | J83: 63 | K83: 16 | L83: 57 | M83: 73 | N83: 34 | O83: 54 | P83: 62 | Q83: 53 | R83: 39 | S83: 88 | T83: 79 | U83: 33 | V83: 39 | W83: 19 | X83: 14 | Y83: 34 | Z83: 51 | AA83: 50 | AB83: 47 | AC83: 71 | AD83: 82 | AE83: 13 | AF83: 77 | AG83: 5 | AH83: 1 | AI83: 24 | AJ83: 51 | AK83: 71 | AL83: 65 | AM83: 79 | AN83: 15 | AO83: 80 | AP83: 4 | AQ83: 8 | AR83: 88 | AS83: 55 | AT83: 14 | AU83: 50 | AV83: 3 | AW83: 25 | AX83: 85 | AY83: 27 | AZ83: 55 | BA83: 81 | BB83: 44 | BC83: 64 | BD83: 45 | BE83: 54 | BF83: 68
A84: 9856 | B84: 128 | C84: 2020-12-05 | D84: 21 | E84: 65 | F84: 7 | G84: 84 | H84: 13 | I84: 71 | J84: 65 | K84: 72 | L84: 89 | M84: 24 | N84: 76 | O84: 68 | P84: 71 | Q84: 35 | R84: 34 | S84: 2 | T84: 28 | U84: 62 | V84: 73 | W84: 79 | X84: 49 | Y84: 48 | Z84: 47 | AA84: 24 | AB84: 61 | AC84: 28 | AD84: 48 | AE84: 25 | AF84: 58 | AG84: 44 | AH84: 48 | AI84: 28 | AJ84: 43 | AK84: 53 | AL84: 34 | AM84: 9 | AN84: 38 | AO84: 84 | AP84: 33 | AQ84: 51 | AR84: 39 | AS84: 3 | AT84: 66 | AU84: 60 | AV84: 30 | AW84: 30 | AX84: 53 | AY84: 27 | AZ84: 38 | BA84: 58 | BB84: 78 | BC84: 31 | BD84: 82 | BE84: 75 | BF84: 3
A85: 9857 | B85: 129 | C85: 2020-12-09 | D85: 30 | E85: 74 | F85: 23 | G85: 68 | H85: 65 | I85: 26 | J85: 30 | K85: 89 | L85: 88 | M85: 3 | N85: 20 | O85: 33 | P85: 70 | Q85: 51 | R85: 39 | S85: 58 | T85: 66 | U85: 87 | V85: 27 | W85: 35 | X85: 32 | Y85: 41 | Z85: 52 | AA85: 25 | AB85: 89 | AC85: 69 | AD85: 54 | AE85: 75 | AF85: 68 | AG85: 15 | AH85: 15 | AI85: 78 | AJ85: 60 | AK85: 24 | AL85: 90 | AM85: 15 | AN85: 52 | AO85: 4 | AP85: 24 | AQ85: 55 | AR85: 11 | AS85: 50 | AT85: 5 | AU85: 30 | AV85: 48 | AW85: 23 | AX85: 52 | AY85: 3 | AZ85: 72 | BA85: 68 | BB85: 13 | BC85: 37 | BD85: 53 | BE85: 39 | BF85: 12
A86: 9858 | B86: 130 | C86: 2020-12-10 | D86: 80 | E86: 71 | F86: 22 | G86: 85 | H86: 17 | I86: 18 | J86: 84 | K86: 2 | L86: 37 | M86: 62 | N86: 18 | O86: 17 | P86: 66 | Q86: 30 | R86: 46 | S86: 19 | T86: 26 | U86: 1 | V86: 69 | W86: 17 | X86: 5 | Y86: 84 | Z86: 29 | AA86: 81 | AB86: 61 | AC86: 19 | AD86: 49 | AE86: 80 | AF86: 16 | AG86: 9 | AH86: 51 | AI86: 85 | AJ86: 84 | AK86: 29 | AL86: 40 | AM86: 3 | AN86: 53 | AO86: 17 | AP86: 64 | AQ86: 58 | AR86: 10 | AS86: 18 | AT86: 33 | AU86: 36 | AV86: 43 | AW86: 38 | AX86: 7 | AY86: 81 | AZ86: 20 | BA86: 15 | BB86: 10 | BC86: 64 | BD86: 13 | BE86: 9 | BF86: 55
A87: 9859 | B87: 131 | C87: 2020-12-12 | D87: 29 | E87: 27 | F87: 11 | G87: 6 | H87: 89 | I87: 14 | J87: 63 | K87: 54 | L87: 66 | M87: 87 | N87: 84 | O87: 60 | P87: 51 | Q87: 47 | R87: 40 | S87: 11 | T87: 20 | U87: 48 | V87: 75 | W87: 64 | X87: 28 | Y87: 78 | Z87: 64 | AA87: 21 | AB87: 27 | AC87: 64 | AD87: 36 | AE87: 63 | AF87: 80 | AG87: 59 | AH87: 44 | AI87: 32 | AJ87: 30 | AK87: 41 | AL87: 23 | AM87: 86 | AN87: 44 | AO87: 11 | AP87: 57 | AQ87: 50 | AR87: 63 | AS87: 46 | AT87: 71 | AU87: 7 | AV87: 89 | AW87: 74 | AX87: 87 | AY87: 81 | AZ87: 16 | BA87: 38 | BB87: 34 | BC87: 55 | BD87: 76 | BE87: 51 | BF87: 88
A88: 9860 | B88: 132 | C88: 2020-12-15 | D88: 16 | E88: 89 | F88: 13 | G88: 35 | H88: 60 | I88: 26 | J88: 61 | K88: 50 | L88: 17 | M88: 83 | N88: 17 | O88: 88 | P88: 54 | Q88: 41 | R88: 6 | S88: 25 | T88: 35 | U88: 11 | V88: 1 | W88: 70 | X88: 87 | Y88: 76 | Z88: 55 | AA88: 18 | AB88: 9 | AC88: 70 | AD88: 15 | AE88: 58 | AF88: 62 | AG88: 31 | AH88: 84 | AI88: 25 | AJ88: 89 | AK88: 62 | AL88: 31 | AM88: 85 | AN88: 7 | AO88: 31 | AP88: 78 | AQ88: 16 | AR88: 16 | AS88: 86 | AT88: 48 | AU88: 75 | AV88: 43 | AW88: 87 | AX88: 45 | AY88: 44 | AZ88: 61 | BA88: 65 | BB88: 65 | BC88: 41 | BD88: 34 | BE88: 90 | BF88: 8
A89: 9861 | B89: 133 | C89: 2020-12-17 | D89: 30 | E89: 24 | F89: 69 | G89: 7 | H89: 55 | I89: 16 | J89: 43 | K89: 13 | L89: 49 | M89: 81 | N89: 82 | O89: 50 | P89: 39 | Q89: 72 | R89: 48 | S89: 88 | T89: 52 | U89: 60 | V89: 36 | W89: 25 | X89: 15 | Y89: 29 | Z89: 80 | AA89: 42 | AB89: 75 | AC89: 88 | AD89: 85 | AE89: 58 | AF89: 45 | AG89: 75 | AH89: 6 | AI89: 71 | AJ89: 90 | AK89: 87 | AL89: 13 | AM89: 70 | AN89: 67 | AO89: 50 | AP89: 57 | AQ89: 79 | AR89: 30 | AS89: 23 | AT89: 5 | AU89: 67 | AV89: 40 | AW89: 1 | AX89: 63 | AY89: 34 | AZ89: 22 | BA89: 36 | BB89: 46 | BC89: 23 | BD89: 33 | BE89: 27 | BF89: 61
A90: 9862 | B90: 134 | C90: 2020-12-19 | D90: 38 | E90: 53 | F90: 50 | G90: 59 | H90: 75 | I90: 59 | J90: 67 | K90: 31 | L90: 15 | M90: 50 | N90: 74 | O90: 25 | P90: 45 | Q90: 32 | R90: 17 | S90: 23 | T90: 43 | U90: 58 | V90: 8 | W90: 16 | X90: 48 | Y90: 16 | Z90: 7 | AA90: 25 | AB90: 15 | AC90: 5 | AD90: 79 | AE90: 49 | AF90: 14 | AG90: 76 | AH90: 20 | AI90: 53 | AJ90: 24 | AK90: 56 | AL90: 44 | AM90: 56 | AN90: 6 | AO90: 1 | AP90: 73 | AQ90: 61 | AR90: 79 | AS90: 6 | AT90: 69 | AU90: 18 | AV90: 88 | AW90: 27 | AX90: 73 | AY90: 63 | AZ90: 71 | BA90: 85 | BB90: 14 | BC90: 32 | BD90: 15 | BE90: 17 | BF90: 29
A91: 9863 | B91: 135 | C91: 2020-12-22 | D91: 85 | E91: 51 | F91: 74 | G91: 44 | H91: 30 | I91: 82 | J91: 27 | K91: 21 | L91: 6 | M91: 89 | N91: 47 | O91: 46 | P91: 60 | Q91: 63 | R91: 28 | S91: 63 | T91: 90 | U91: 40 | V91: 28 | W91: 34 | X91: 5 | Y91: 59 | Z91: 37 | AA91: 53 | AB91: 73 | AC91: 16 | AD91: 78 | AE91: 65 | AF91: 33 | AG91: 83 | AH91: 39 | AI91: 35 | AJ91: 36 | AK91: 79 | AL91: 80 | AM91: 67 | AN91: 8 | AO91: 81 | AP91: 49 | AQ91: 23 | AR91: 31 | AS91: 2 | AT91: 81 | AU91: 64 | AV91: 18 | AW91: 37 | AX91: 6 | AY91: 82 | AZ91: 54 | BA91: 60 | BB91: 85 | BC91: 8 | BD91: 78 | BE91: 48 | BF91: 13
A92: 9864 | B92: 136 | C92: 2020-12-24 | D92: 56 | E92: 17 | F92: 30 | G92: 3 | H92: 15 | I92: 60 | J92: 37 | K92: 84 | L92: 30 | M92: 81 | N92: 74 | O92: 15 | P92: 8 | Q92: 42 | R92: 55 | S92: 84 | T92: 26 | U92: 4 | V92: 59 | W92: 25 | X92: 54 | Y92: 67 | Z92: 13 | AA92: 46 | AB92: 89 | AC92: 35 | AD92: 20 | AE92: 83 | AF92: 32 | AG92: 22 | AH92: 41 | AI92: 13 | AJ92: 2 | AK92: 53 | AL92: 73 | AM92: 58 | AN92: 74 | AO92: 71 | AP92: 50 | AQ92: 24 | AR92: 8 | AS92: 60 | AT92: 79 | AU92: 47 | AV92: 72 | AW92: 24 | AX92: 47 | AY92: 55 | AZ92: 52 | BA92: 29 | BB92: 10 | BC92: 28 | BD92: 76 | BE92: 63 | BF92: 88
A93: 9865 | B93: 137 | C93: 2020-12-28 | D93: 62 | E93: 66 | F93: 89 | G93: 42 | H93: 27 | I93: 16 | J93: 79 | K93: 54 | L93: 82 | M93: 44 | N93: 21 | O93: 7 | P93: 49 | Q93: 34 | R93: 13 | S93: 25 | T93: 86 | U93: 54 | V93: 3 | W93: 64 | X93: 61 | Y93: 1 | Z93: 41 | AA93: 37 | AB93: 36 | AC93: 40 | AD93: 32 | AE93: 65 | AF93: 8 | AG93: 10 | AH93: 37 | AI93: 26 | AJ93: 54 | AK93: 88 | AL93: 8 | AM93: 65 | AN93: 77 | AO93: 76 | AP93: 59 | AQ93: 79 | AR93: 17 | AS93: 23 | AT93: 20 | AU93: 25 | AV93: 89 | AW93: 57 | AX93: 52 | AY93: 36 | AZ93: 80 | BA93: 89 | BB93: 10 | BC93: 43 | BD93: 90 | BE93: 18 | BF93: 16
A94: 9866 | B94: 138 | C94: 2020-12-29 | D94: 88 | E94: 58 | F94: 67 | G94: 27 | H94: 14 | I94: 58 | J94: 13 | K94: 70 | L94: 83 | M94: 48 | N94: 30 | O94: 90 | P94: 57 | Q94: 88 | R94: 21 | S94: 16 | T94: 59 | U94: 74 | V94: 33 | W94: 28 | X94: 71 | Y94: 18 | Z94: 87 | AA94: 85 | AB94: 40 | AC94: 31 | AD94: 54 | AE94: 70 | AF94: 90 | AG94: 51 | AH94: 21 | AI94: 17 | AJ94: 30 | AK94: 46 | AL94: 18 | AM94: 54 | AN94: 34 | AO94: 10 | AP94: 65 | AQ94: 33 | AR94: 20 | AS94: 58 | AT94: 62 | AU94: 38 | AV94: 51 | AW94: 88 | AX94: 37 | AY94: 45 | AZ94: 60 | BA94: 62 | BB94: 58 | BC94: 61 | BD94: 19 | BE94: 26 | BF94: 40
A95: 9867 | B95: 139 | C95: 2020-12-31 | D95: 44 | E95: 55 | F95: 41 | G95: 85 | H95: 29 | I95: 31 | J95: 66 | K95: 8 | L95: 2 | M95: 30 | N95: 34 | O95: 72 | P95: 43 | Q95: 60 | R95: 9 | S95: 41 | T95: 36 | U95: 72 | V95: 73 | W95: 49 | X95: 13 | Y95: 39 | Z95: 18 | AA95: 24 | AB95: 83 | AC95: 80 | AD95: 78 | AE95: 16 | AF95: 83 | AG95: 65 | AH95: 23 | AI95: 40 | AJ95: 11 | AK95: 22 | AL95: 73 | AM95: 46 | AN95: 11 | AO95: 20 | AP95: 41 | AQ95: 27 | AR95: 67 | AS95: 32 | AT95: 4 | AU95: 85 | AV95: 88 | AW95: 66 | AX95: 77 | AY95: 20 | AZ95: 22 | BA95: 10 | BB95: 55 | BC95: 49 | BD95: 5 | BE95: 45 | BF95: 33
A96: 9868 | B96: 1 | C96: 2021-01-02 | D96: 36 | E96: 62 | F96: 47 | G96: 72 | H96: 85 | I96: 7 | J96: 21 | K96: 63 | L96: 75 | M96: 50 | N96: 83 | O96: 21 | P96: 53 | Q96: 63 | R96: 56 | S96: 65 | T96: 10 | U96: 27 | V96: 20 | W96: 82 | X96: 14 | Y96: 55 | Z96: 76 | AA96: 80 | AB96: 65 | AC96: 78 | AD96: 36 | AE96: 48 | AF96: 60 | AG96: 84 | AH96: 48 | AI96: 42 | AJ96: 75 | AK96: 47 | AL96: 78 | AM96: 33 | AN96: 71 | AO96: 46 | AP96: 63 | AQ96: 89 | AR96: 78 | AS96: 66 | AT96: 42 | AU96: 82 | AV96: 54 | AW96: 38 | AX96: 55 | AY96: 69 | AZ96: 70 | BA96: 83 | BB96: 23 | BC96: 15 | BD96: 46 | BE96: 85 | BF96: 83
A97: 9869 | B97: 2 | C97: 2021-01-05 | D97: 24 | E97: 37 | F97: 69 | G97: 26 | H97: 35 | I97: 15 | J97: 79 | K97: 12 | L97: 16 | M97: 52 | N97: 47 | O97: 30 | P97: 33 | Q97: 18 | R97: 6 | S97: 41 | T97: 18 | U97: 40 | V97: 25 | W97: 39 | X97: 14 | Y97: 40 | Z97: 1 | AA97: 8 | AB97: 19 | AC97: 27 | AD97: 33 | AE97: 26 | AF97: 80 | AG97: 41 | AH97: 26 | AI97: 83 | AJ97: 15 | AK97: 77 | AL97: 50 | AM97: 34 | AN97: 24 | AO97: 25 | AP97: 18 | AQ97: 90 | AR97: 85 | AS97: 3 | AT97: 79 | AU97: 50 | AV97: 84 | AW97: 39 | AX97: 58 | AY97: 71 | AZ97: 37 | BA97: 30 | BB97: 46 | BC97: 65 | BD97: 78 | BE97: 11 | BF97: 79
A98: 9870 | B98: 3 | C98: 2021-01-07 | D98: 47 | E98: 5 | F98: 59 | G98: 7 | H98: 41 | I98: 7 | J98: 1 | K98: 68 | L98: 30 | M98: 84 | N98: 28 | O98: 84 | P98: 59 | Q98: 50 | R98: 70 | S98: 52 | T98: 10 | U98: 60 | V98: 65 | W98: 76 | X98: 69 | Y98: 47 | Z98: 4 | AA98: 7 | AB98: 33 | AC98: 80 | AD98: 55 | AE98: 26 | AF98: 90 | AG98: 63 | AH98: 8 | AI98: 22 | AJ98: 9 | AK98: 23 | AL98: 17 | AM98: 71 | AN98: 4 | AO98: 31 | AP98: 13 | AQ98: 87 | AR98: 72 | AS98: 82 | AT98: 18 | AU98: 7 | AV98: 67 | AW98: 51 | AX98: 48 | AY98: 35 | AZ98: 24 | BA98: 64 | BB98: 83 | BC98: 7 | BD98: 35 | BE98: 48 | BF98: 57
A99: 9871 | B99: 4 | C99: 2021-01-09 | D99: 25 | E99: 87 | F99: 48 | G99: 88 | H99: 8 | I99: 53 | J99: 59 | K99: 47 | L99: 24 | M99: 67 | N99: 76 | O99: 42 | P99: 84 | Q99: 61 | R99: 85 | S99: 6 | T99: 67 | U99: 51 | V99: 85 | W99: 55 | X99: 79 | Y99: 3 | Z99: 29 | AA99: 30 | AB99: 68 | AC99: 4 | AD99: 53 | AE99: 7 | AF99: 83 | AG99: 19 | AH99: 28 | AI99: 12 | AJ99: 25 | AK99: 49 | AL99: 71 | AM99: 69 | AN99: 5 | AO99: 29 | AP99: 86 | AQ99: 68 | AR99: 23 | AS99: 45 | AT99: 60 | AU99: 58 | AV99: 43 | AW99: 86 | AX99: 68 | AY99: 34 | AZ99: 50 | BA99: 73 | BB99: 87 | BC99: 45 | BD99: 3 | BE99: 4 | BF99: 51
A100: 9872 | B100: 5 | C100: 2021-01-12 | D100: 90 | E100: 85 | F100: 78 | G100: 75 | H100: 64 | I100: 15 | J100: 82 | K100: 13 | L100: 17 | M100: 79 | N100: 36 | O100: 88 | P100: 14 | Q100: 5 | R100: 11 | S100: 84 | T100: 51 | U100: 20 | V100: 38 | W100: 71 | X100: 50 | Y100: 6 | Z100: 84 | AA100: 72 | AB100: 25 | AC100: 33 | AD100: 16 | AE100: 13 | AF100: 53 | AG100: 56 | AH100: 20 | AI100: 49 | AJ100: 44 | AK100: 30 | AL100: 78 | AM100: 28 | AN100: 21 | AO100: 5 | AP100: 90 | AQ100: 88 | AR100: 42 | AS100: 47 | AT100: 36 | AU100: 15 | AV100: 53 | AW100: 22 | AX100: 38 | AY100: 2 | AZ100: 43 | BA100: 75 | BB100: 36 | BC100: 38 | BD100: 87 | BE100: 40 | BF100: 58
A101: 9873 | B101: 6 | C101: 2021-01-14 | D101: 9 | E101: 40 | F101: 47 | G101: 26 | H101: 49 | I101: 34 | J101: 64 | K101: 43 | L101: 78 | M101: 31 | N101: 45 | O101: 32 | P101: 17 | Q101: 65 | R101: 37 | S101: 65 | T101: 10 | U101: 81 | V101: 28 | W101: 29 | X101: 59 | Y101: 46 | Z101: 84 | AA101: 58 | AB101: 3 | AC101: 84 | AD101: 41 | AE101: 81 | AF101: 25 | AG101: 4 | AH101: 20 | AI101: 58 | AJ101: 29 | AK101: 9 | AL101: 69 | AM101: 56 | AN101: 73 | AO101: 61 | AP101: 64 | AQ101: 3 | AR101: 19 | AS101: 1 | AT101: 6 | AU101: 34 | AV101: 39 | AW101: 8 | AX101: 85 | AY101: 30 | AZ101: 45 | BA101: 83 | BB101: 65 | BC101: 71 | BD101: 45 | BE101: 73 | BF101: 35
A102: 9874 | B102: 7 | C102: 2021-01-16 | D102: 20 | E102: 1 | F102: 13 | G102: 6 | H102: 50 | I102: 42 | J102: 34 | K102: 14 | L102: 21 | M102: 44 | N102: 63 | O102: 46 | P102: 80 | Q102: 4 | R102: 5 | S102: 84 | T102: 38 | U102: 72 | V102: 89 | W102: 90 | X102: 83 | Y102: 90 | Z102: 45 | AA102: 54 | AB102: 27 | AC102: 58 | AD102: 45 | AE102: 68 | AF102: 44 | AG102: 4 | AH102: 42 | AI102: 86 | AJ102: 57 | AK102: 71 | AL102: 45 | AM102: 51 | AN102: 46 | AO102: 8 | AP102: 18 | AQ102: 90 | AR102: 90 | AS102: 76 | AT102: 28 | AU102: 26 | AV102: 7 | AW102: 38 | AX102: 80 | AY102: 73 | AZ102: 1 | BA102: 21 | BB102: 73 | BC102: 38 | BD102: 4 | BE102: 23 | BF102: 64
A103: 9875 | B103: 8 | C103: 2021-01-19 | D103: 82 | E103: 32 | F103: 35 | G103: 54 | H103: 87 | I103: 19 | J103: 27 | K103: 10 | L103: 60 | M103: 86 | N103: 58 | O103: 65 | P103: 62 | Q103: 37 | R103: 90 | S103: 56 | T103: 35 | U103: 87 | V103: 6 | W103: 59 | X103: 29 | Y103: 68 | Z103: 45 | AA103: 15 | AB103: 70 | AC103: 47 | AD103: 26 | AE103: 5 | AF103: 81 | AG103: 52 | AH103: 15 | AI103: 85 | AJ103: 84 | AK103: 20 | AL103: 65 | AM103: 83 | AN103: 64 | AO103: 75 | AP103: 36 | AQ103: 78 | AR103: 7 | AS103: 59 | AT103: 68 | AU103: 44 | AV103: 61 | AW103: 79 | AX103: 22 | AY103: 80 | AZ103: 83 | BA103: 17 | BB103: 69 | BC103: 38 | BD103: 23 | BE103: 16 | BF103: 52
A104: 9876 | B104: 9 | C104: 2021-01-21 | D104: 18 | E104: 43 | F104: 19 | G104: 69 | H104: 15 | I104: 17 | J104: 27 | K104: 61 | L104: 9 | M104: 76 | N104: 69 | O104: 63 | P104: 81 | Q104: 26 | R104: 61 | S104: 89 | T104: 36 | U104: 7 | V104: 81 | W104: 66 | X104: 39 | Y104: 82 | Z104: 74 | AA104: 12 | AB104: 40 | AC104: 7 | AD104: 53 | AE104: 5 | AF104: 73 | AG104: 88 | AH104: 27 | AI104: 58 | AJ104: 8 | AK104: 52 | AL104: 19 | AM104: 17 | AN104: 38 | AO104: 39 | AP104: 40 | AQ104: 29 | AR104: 66 | AS104: 90 | AT104: 17 | AU104: 74 | AV104: 29 | AW104: 8 | AX104: 12 | AY104: 88 | AZ104: 40 | BA104: 87 | BB104: 71 | BC104: 21 | BD104: 54 | BE104: 79 | BF104: 77
A105: 9877 | B105: 10 | C105: 2021-01-23 | D105: 53 | E105: 48 | F105: 56 | G105: 25 | H105: 3 | I105: 77 | J105: 9 | K105: 19 | L105: 18 | M105: 56 | N105: 69 | O105: 46 | P105: 88 | Q105: 53 | R105: 22 | S105: 22 | T105: 49 | U105: 74 | V105: 62 | W105: 55 | X105: 7 | Y105: 20 | Z105: 30 | AA105: 51 | AB105: 33 | AC105: 29 | AD105: 35 | AE105: 79 | AF105: 4 | AG105: 65 | AH105: 7 | AI105: 72 | AJ105: 47 | AK105: 44 | AL105: 79 | AM105: 62 | AN105: 17 | AO105: 46 | AP105: 47 | AQ105: 33 | AR105: 56 | AS105: 29 | AT105: 25 | AU105: 9 | AV105: 67 | AW105: 53 | AX105: 17 | AY105: 26 | AZ105: 19 | BA105: 4 | BB105: 69 | BC105: 42 | BD105: 25 | BE105: 41 | BF105: 52
A106: 9878 | B106: 11 | C106: 2021-01-26 | D106: 21 | E106: 55 | F106: 1 | G106: 42 | H106: 88 | I106: 75 | J106: 28 | K106: 81 | L106: 6 | M106: 88 | N106: 53 | O106: 63 | P106: 35 | Q106: 90 | R106: 83 | S106: 3 | T106: 64 | U106: 78 | V106: 66 | W106: 60 | X106: 31 | Y106: 48 | Z106: 47 | AA106: 8 | AB106: 37 | AC106: 87 | AD106: 65 | AE106: 76 | AF106: 42 | AG106: 54 | AH106: 85 | AI106: 64 | AJ106: 66 | AK106: 20 | AL106: 78 | AM106: 61 | AN106: 31 | AO106: 45 | AP106: 60 | AQ106: 20 | AR106: 35 | AS106: 83 | AT106: 53 | AU106: 81 | AV106: 11 | AW106: 17 | AX106: 26 | AY106: 45 | AZ106: 77 | BA106: 61 | BB106: 13 | BC106: 49 | BD106: 82 | BE106: 80 | BF106: 47
A107: 9879 | B107: 12 | C107: 2021-01-28 | D107: 52 | E107: 41 | F107: 5 | G107: 39 | H107: 51 | I107: 84 | J107: 3 | K107: 32 | L107: 41 | M107: 45 | N107: 79 | O107: 53 | P107: 77 | Q107: 47 | R107: 38 | S107: 22 | T107: 87 | U107: 63 | V107: 24 | W107: 88 | X107: 29 | Y107: 80 | Z107: 4 | AA107: 2 | AB107: 28 | AC107: 81 | AD107: 38 | AE107: 82 | AF107: 17 | AG107: 89 | AH107: 62 | AI107: 81 | AJ107: 58 | AK107: 60 | AL107: 33 | AM107: 68 | AN107: 26 | AO107: 66 | AP107: 27 | AQ107: 28 | AR107: 43 | AS107: 67 | AT107: 42 | AU107: 30 | AV107: 7 | AW107: 11 | AX107: 17 | AY107: 57 | AZ107: 83 | BA107: 4 | BB107: 61 | BC107: 37 | BD107: 69 | BE107: 26 | BF107: 82
A108: 9880 | B108: 13 | C108: 2021-01-30 | D108: 40 | E108: 27 | F108: 73 | G108: 30 | H108: 67 | I108: 37 | J108: 79 | K108: 1 | L108: 44 | M108: 3 | N108: 5 | O108: 54 | P108: 82 | Q108: 63 | R108: 81 | S108: 53 | T108: 49 | U108: 28 | V108: 70 | W108: 56 | X108: 10 | Y108: 84 | Z108: 47 | AA108: 81 | AB108: 44 | AC108: 48 | AD108: 54 | AE108: 37 | AF108: 44 | AG108: 84 | AH108: 30 | AI108: 6 | AJ108: 65 | AK108: 32 | AL108: 78 | AM108: 64 | AN108: 74 | AO108: 60 | AP108: 86 | AQ108: 18 | AR108: 63 | AS108: 5 | AT108: 23 | AU108: 85 | AV108: 21 | AW108: 36 | AX108: 83 | AY108: 4 | AZ108: 21 | BA108: 50 | BB108: 61 | BC108: 52 | BD108: 63 | BE108: 15 | BF108: 41
A109: 9881 | B109: 14 | C109: 2021-02-02 | D109: 38 | E109: 87 | F109: 12 | G109: 59 | H109: 1 | I109: 62 | J109: 21 | K109: 77 | L109: 41 | M109: 28 | N109: 77 | O109: 89 | P109: 27 | Q109: 62 | R109: 26 | S109: 20 | T109: 10 | U109: 87 | V109: 13 | W109: 28 | X109: 76 | Y109: 68 | Z109: 56 | AA109: 4 | AB109: 82 | AC109: 22 | AD109: 31 | AE109: 9 | AF109: 82 | AG109: 49 | AH109: 48 | AI109: 54 | AJ109: 6 | AK109: 55 | AL109: 27 | AM109: 72 | AN109: 9 | AO109: 52 | AP109: 31 | AQ109: 41 | AR109: 25 | AS109: 21 | AT109: 69 | AU109: 74 | AV109: 46 | AW109: 10 | AX109: 6 | AY109: 54 | AZ109: 51 | BA109: 75 | BB109: 16 | BC109: 71 | BD109: 9 | BE109: 85 | BF109: 89
A110: 9882 | B110: 15 | C110: 2021-02-04 | D110: 46 | E110: 2 | F110: 84 | G110: 50 | H110: 61 | I110: 62 | J110: 77 | K110: 61 | L110: 43 | M110: 76 | N110: 29 | O110: 45 | P110: 13 | Q110: 9 | R110: 46 | S110: 30 | T110: 70 | U110: 79 | V110: 8 | W110: 39 | X110: 85 | Y110: 68 | Z110: 11 | AA110: 62 | AB110: 40 | AC110: 77 | AD110: 60 | AE110: 46 | AF110: 71 | AG110: 25 | AH110: 78 | AI110: 77 | AJ110: 17 | AK110: 18 | AL110: 90 | AM110: 18 | AN110: 4 | AO110: 12 | AP110: 87 | AQ110: 76 | AR110: 24 | AS110: 6 | AT110: 51 | AU110: 82 | AV110: 89 | AW110: 63 | AX110: 69 | AY110: 45 | AZ110: 7 | BA110: 30 | BB110: 8 | BC110: 35 | BD110: 63 | BE110: 57 | BF110: 84
A111: 9883 | B111: 16 | C111: 2021-02-06 | D111: 28 | E111: 22 | F111: 88 | G111: 83 | H111: 70 | I111: 35 | J111: 7 | K111: 52 | L111: 72 | M111: 77 | N111: 19 | O111: 25 | P111: 58 | Q111: 65 | R111: 35 | S111: 31 | T111: 52 | U111: 87 | V111: 27 | W111: 71 | X111: 32 | Y111: 22 | Z111: 27 | AA111: 14 | AB111: 28 | AC111: 75 | AD111: 19 | AE111: 28 | AF111: 80 | AG111: 62 | AH111: 36 | AI111: 78 | AJ111: 82 | AK111: 86 | AL111: 45 | AM111: 68 | AN111: 50 | AO111: 73 | AP111: 11 | AQ111: 67 | AR111: 26 | AS111: 36 | AT111: 53 | AU111: 52 | AV111: 21 | AW111: 49 | AX111: 61 | AY111: 2 | AZ111: 12 | BA111: 47 | BB111: 62 | BC111: 27 | BD111: 5 | BE111: 57 | BF111: 19
A112: 9884 | B112: 17 | C112: 2021-02-09 | D112: 13 | E112: 11 | F112: 88 | G112: 20 | H112: 64 | I112: 65 | J112: 27 | K112: 7 | L112: 51 | M112: 26 | N112: 6 | O112: 63 | P112: 64 | Q112: 35 | R112: 44 | S112: 26 | T112: 27 | U112: 76 | V112: 11 | W112: 72 | X112: 53 | Y112: 43 | Z112: 86 | AA112: 2 | AB112: 50 | AC112: 15 | AD112: 1 | AE112: 5 | AF112: 60 | AG112: 75 | AH112: 4 | AI112: 85 | AJ112: 60 | AK112: 57 | AL112: 63 | AM112: 77 | AN112: 79 | AO112: 10 | AP112: 18 | AQ112: 72 | AR112: 17 | AS112: 74 | AT112: 66 | AU112: 12 | AV112: 30 | AW112: 64 | AX112: 23 | AY112: 32 | AZ112: 72 | BA112: 66 | BB112: 16 | BC112: 10 | BD112: 68 | BE112: 12 | BF112: 55
A113: 9885 | B113: 18 | C113: 2021-02-11 | D113: 42 | E113: 28 | F113: 49 | G113: 67 | H113: 33 | I113: 16 | J113: 80 | K113: 54 | L113: 39 | M113: 32 | N113: 67 | O113: 31 | P113: 75 | Q113: 74 | R113: 29 | S113: 43 | T113: 87 | U113: 29 | V113: 46 | W113: 24 | X113: 48 | Y113: 38 | Z113: 85 | AA113: 41 | AB113: 59 | AC113: 5 | AD113: 57 | AE113: 37 | AF113: 15 | AG113: 61 | AH113: 26 | AI113: 39 | AJ113: 48 | AK113: 4 | AL113: 5 | AM113: 5 | AN113: 21 | AO113: 27 | AP113: 17 | AQ113: 66 | AR113: 76 | AS113: 83 | AT113: 20 | AU113: 22 | AV113: 13 | AW113: 30 | AX113: 51 | AY113: 13 | AZ113: 23 | BA113: 67 | BB113: 5 | BC113: 49 | BD113: 29 | BE113: 54 | BF113: 83
A114: 9886 | B114: 19 | C114: 2021-02-13 | D114: 86 | E114: 81 | F114: 70 | G114: 77 | H114: 8 | I114: 31 | J114: 48 | K114: 66 | L114: 68 | M114: 89 | N114: 86 | O114: 21 | P114: 17 | Q114: 45 | R114: 25 | S114: 78 | T114: 66 | U114: 77 | V114: 16 | W114: 63 | X114: 1 | Y114: 45 | Z114: 29 | AA114: 15 | AB114: 9 | AC114: 89 | AD114: 38 | AE114: 1 | AF114: 66 | AG114: 46 | AH114: 16 | AI114: 75 | AJ114: 79 | AK114: 43 | AL114: 49 | AM114: 61 | AN114: 49 | AO114: 11 | AP114: 56 | AQ114: 74 | AR114: 71 | AS114: 42 | AT114: 15 | AU114: 76 | AV114: 85 | AW114: 34 | AX114: 18 | AY114: 14 | AZ114: 31 | BA114: 29 | BB114: 16 | BC114: 47 | BD114: 27 | BE114: 71 | BF114: 4
A115: 9887 | B115: 20 | C115: 2021-02-16 | D115: 45 | E115: 70 | F115: 52 | G115: 19 | H115: 33 | I115: 65 | J115: 10 | K115: 7 | L115: 56 | M115: 34 | N115: 45 | O115: 85 | P115: 46 | Q115: 49 | R115: 90 | S115: 81 | T115: 50 | U115: 31 | V115: 15 | W115: 56 | X115: 14 | Y115: 50 | Z115: 22 | AA115: 63 | AB115: 78 | AC115: 41 | AD115: 31 | AE115: 83 | AF115: 49 | AG115: 29 | AH115: 32 | AI115: 11 | AJ115: 63 | AK115: 4 | AL115: 45 | AM115: 90 | AN115: 37 | AO115: 61 | AP115: 15 | AQ115: 44 | AR115: 11 | AS115: 14 | AT115: 51 | AU115: 15 | AV115: 58 | AW115: 84 | AX115: 85 | AY115: 52 | AZ115: 53 | BA115: 56 | BB115: 34 | BC115: 36 | BD115: 55 | BE115: 44 | BF115: 68
A116: 9888 | B116: 21 | C116: 2021-02-18 | D116: 81 | E116: 20 | F116: 56 | G116: 41 | H116: 65 | I116: 64 | J116: 85 | K116: 90 | L116: 71 | M116: 48 | N116: 41 | O116: 90 | P116: 78 | Q116: 63 | R116: 40 | S116: 40 | T116: 45 | U116: 26 | V116: 76 | W116: 89 | X116: 72 | Y116: 38 | Z116: 7 | AA116: 83 | AB116: 47 | AC116: 54 | AD116: 74 | AE116: 12 | AF116: 31 | AG116: 25 | AH116: 3 | AI116: 71 | AJ116: 57 | AK116: 74 | AL116: 10 | AM116: 47 | AN116: 58 | AO116: 12 | AP116: 34 | AQ116: 7 | AR116: 79 | AS116: 39 | AT116: 83 | AU116: 65 | AV116: 89 | AW116: 39 | AX116: 23 | AY116: 42 | AZ116: 78 | BA116: 82 | BB116: 54 | BC116: 17 | BD116: 12 | BE116: 62 | BF116: 61
A117: 9889 | B117: 22 | C117: 2021-02-20 | D117: 58 | E117: 87 | F117: 55 | G117: 79 | H117: 71 | I117: 61 | J117: 80 | K117: 41 | L117: 1 | M117: 64 | N117: 10 | O117: 37 | P117: 82 | Q117: 17 | R117: 63 | S117: 24 | T117: 1 | U117: 54 | V117: 67 | W117: 69 | X117: 74 | Y117: 73 | Z117: 35 | AA117: 43 | AB117: 23 | AC117: 9 | AD117: 4 | AE117: 39 | AF117: 81 | AG117: 38 | AH117: 90 | AI117: 68 | AJ117: 10 | AK117: 29 | AL117: 13 | AM117: 34 | AN117: 69 | AO117: 21 | AP117: 54 | AQ117: 27 | AR117: 57 | AS117: 58 | AT117: 67 | AU117: 21 | AV117: 70 | AW117: 67 | AX117: 29 | AY117: 70 | AZ117: 56 | BA117: 83 | BB117: 90 | BC117: 84 | BD117: 12 | BE117: 1 | BF117: 13
A118: 9890 | B118: 23 | C118: 2021-02-23 | D118: 42 | E118: 65 | F118: 37 | G118: 2 | H118: 23 | I118: 31 | J118: 72 | K118: 86 | L118: 37 | M118: 33 | N118: 86 | O118: 84 | P118: 68 | Q118: 42 | R118: 71 | S118: 1 | T118: 89 | U118: 70 | V118: 42 | W118: 20 | X118: 20 | Y118: 18 | Z118: 88 | AA118: 65 | AB118: 87 | AC118: 16 | AD118: 11 | AE118: 48 | AF118: 38 | AG118: 69 | AH118: 81 | AI118: 34 | AJ118: 65 | AK118: 68 | AL118: 59 | AM118: 43 | AN118: 50 | AO118: 79 | AP118: 72 | AQ118: 89 | AR118: 41 | AS118: 86 | AT118: 18 | AU118: 31 | AV118: 87 | AW118: 13 | AX118: 53 | AY118: 37 | AZ118: 49 | BA118: 60 | BB118: 55 | BC118: 71 | BD118: 68 | BE118: 9 | BF118: 87
A119: 9891 | B119: 24 | C119: 2021-02-25 | D119: 17 | E119: 74 | F119: 14 | G119: 27 | H119: 5 | I119: 45 | J119: 35 | K119: 88 | L119: 47 | M119: 48 | N119: 58 | O119: 42 | P119: 19 | Q119: 3 | R119: 88 | S119: 42 | T119: 52 | U119: 19 | V119: 1 | W119: 51 | X119: 31 | Y119: 54 | Z119: 70 | AA119: 34 | AB119: 61 | AC119: 48 | AD119: 47 | AE119: 77 | AF119: 17 | AG119: 40 | AH119: 26 | AI119: 30 | AJ119: 23 | AK119: 69 | AL119: 3 | AM119: 52 | AN119: 83 | AO119: 82 | AP119: 17 | AQ119: 16 | AR119: 62 | AS119: 85 | AT119: 88 | AU119: 40 | AV119: 43 | AW119: 26 | AX119: 68 | AY119: 39 | AZ119: 63 | BA119: 42 | BB119: 53 | BC119: 40 | BD119: 89 | BE119: 33 | BF119: 47
A120: 9892 | B120: 25 | C120: 2021-02-27 | D120: 17 | E120: 75 | F120: 30 | G120: 79 | H120: 64 | I120: 85 | J120: 30 | K120: 22 | L120: 73 | M120: 55 | N120: 44 | O120: 75 | P120: 83 | Q120: 32 | R120: 26 | S120: 14 | T120: 47 | U120: 72 | V120: 89 | W120: 82 | X120: 37 | Y120: 20 | Z120: 87 | AA120: 78 | AB120: 38 | AC120: 56 | AD120: 39 | AE120: 72 | AF120: 21 | AG120: 50 | AH120: 45 | AI120: 64 | AJ120: 6 | AK120: 38 | AL120: 17 | AM120: 13 | AN120: 47 | AO120: 43 | AP120: 39 | AQ120: 10 | AR120: 63 | AS120: 34 | AT120: 60 | AU120: 64 | AV120: 58 | AW120: 1 | AX120: 7 | AY120: 4 | AZ120: 65 | BA120: 44 | BB120: 34 | BC120: 72 | BD120: 32 | BE120: 89 | BF120: 73
A121: 9893 | B121: 26 | C121: 2021-03-02 | D121: 74 | E121: 86 | F121: 47 | G121: 24 | H121: 75 | I121: 61 | J121: 25 | K121: 88 | L121: 49 | M121: 60 | N121: 5 | O121: 46 | P121: 65 | Q121: 22 | R121: 1 | S121: 48 | T121: 69 | U121: 78 | V121: 67 | W121: 64 | X121: 15 | Y121: 42 | Z121: 8 | AA121: 44 | AB121: 35 | AC121: 6 | AD121: 67 | AE121: 37 | AF121: 30 | AG121: 9 | AH121: 17 | AI121: 11 | AJ121: 20 | AK121: 46 | AL121: 89 | AM121: 73 | AN121: 25 | AO121: 66 | AP121: 1 | AQ121: 74 | AR121: 37 | AS121: 4 | AT121: 33 | AU121: 5 | AV121: 88 | AW121: 60 | AX121: 75 | AY121: 53 | AZ121: 70 | BA121: 11 | BB121: 28 | BC121: 64 | BD121: 11 | BE121: 75 | BF121: 88 | BH121: =
A122: 9894 | B122: 27 | C122: 2021-03-04 | D122: 24 | E122: 23 | F122: 64 | G122: 69 | H122: 25 | I122: 81 | J122: 36 | K122: 90 | L122: 73 | M122: 47 | N122: 4 | O122: 48 | P122: 63 | Q122: 14 | R122: 42 | S122: 45 | T122: 69 | U122: 89 | V122: 81 | W122: 50 | X122: 36 | Y122: 44 | Z122: 39 | AA122: 10 | AB122: 23 | AC122: 31 | AD122: 14 | AE122: 50 | AF122: 30 | AG122: 23 | AH122: 13 | AI122: 74 | AJ122: 37 | AK122: 9 | AL122: 79 | AM122: 54 | AN122: 14 | AO122: 23 | AP122: 70 | AQ122: 40 | AR122: 6 | AS122: 35 | AT122: 55 | AU122: 39 | AV122: 20 | AW122: 69 | AX122: 1 | AY122: 34 | AZ122: 89 | BA122: 77 | BB122: 15 | BC122: 24 | BD122: 31 | BE122: 80 | BF122: 13
A123: 9895 | B123: 28 | C123: 2021-03-06 | D123: 80 | E123: 51 | F123: 6 | G123: 35 | H123: 76 | I123: 17 | J123: 84 | K123: 66 | L123: 64 | M123: 67 | N123: 18 | O123: 83 | P123: 51 | Q123: 4 | R123: 64 | S123: 45 | T123: 39 | U123: 62 | V123: 67 | W123: 11 | X123: 15 | Y123: 51 | Z123: 70 | AA123: 21 | AB123: 48 | AC123: 73 | AD123: 10 | AE123: 4 | AF123: 54 | AG123: 3 | AH123: 59 | AI123: 41 | AJ123: 83 | AK123: 21 | AL123: 22 | AM123: 7 | AN123: 56 | AO123: 66 | AP123: 15 | AQ123: 24 | AR123: 51 | AS123: 46 | AT123: 19 | AU123: 18 | AV123: 1 | AW123: 4 | AX123: 73 | AY123: 38 | AZ123: 36 | BA123: 13 | BB123: 38 | BC123: 11 | BD123: 44 | BE123: 31 | BF123: 17
A124: 9896 | B124: 29 | C124: 2021-03-09 | D124: 57 | E124: 15 | F124: 66 | G124: 90 | H124: 12 | I124: 71 | J124: 90 | K124: 12 | L124: 72 | M124: 38 | N124: 63 | O124: 2 | P124: 22 | Q124: 40 | R124: 10 | S124: 28 | T124: 62 | U124: 52 | V124: 46 | W124: 89 | X124: 41 | Y124: 2 | Z124: 4 | AA124: 84 | AB124: 35 | AC124: 86 | AD124: 44 | AE124: 77 | AF124: 68 | AG124: 2 | AH124: 86 | AI124: 30 | AJ124: 67 | AK124: 74 | AL124: 87 | AM124: 63 | AN124: 11 | AO124: 62 | AP124: 44 | AQ124: 26 | AR124: 13 | AS124: 42 | AT124: 39 | AU124: 34 | AV124: 51 | AW124: 49 | AX124: 29 | AY124: 80 | AZ124: 51 | BA124: 59 | BB124: 75 | BC124: 44 | BD124: 37 | BE124: 71 | BF124: 90
A125: 9897 | B125: 30 | C125: 2021-03-11 | D125: 78 | E125: 53 | F125: 71 | G125: 66 | H125: 50 | I125: 27 | J125: 51 | K125: 25 | L125: 80 | M125: 55 | N125: 2 | O125: 37 | P125: 18 | Q125: 41 | R125: 47 | S125: 32 | T125: 77 | U125: 84 | V125: 86 | W125: 16 | X125: 58 | Y125: 76 | Z125: 79 | AA125: 36 | AB125: 39 | AC125: 61 | AD125: 90 | AE125: 81 | AF125: 3 | AG125: 35 | AH125: 54 | AI125: 56 | AJ125: 35 | AK125: 64 | AL125: 7 | AM125: 77 | AN125: 23 | AO125: 44 | AP125: 63 | AQ125: 24 | AR125: 44 | AS125: 3 | AT125: 40 | AU125: 38 | AV125: 69 | AW125: 26 | AX125: 34 | AY125: 48 | AZ125: 54 | BA125: 21 | BB125: 17 | BC125: 11 | BD125: 65 | BE125: 8 | BF125: 13
A126: 9898 | B126: 31 | C126: 2021-03-13 | D126: 29 | E126: 56 | F126: 77 | G126: 74 | H126: 31 | I126: 60 | J126: 59 | K126: 29 | L126: 89 | M126: 63 | N126: 69 | O126: 57 | P126: 42 | Q126: 71 | R126: 21 | S126: 26 | T126: 63 | U126: 32 | V126: 71 | W126: 59 | X126: 26 | Y126: 66 | Z126: 6 | AA126: 55 | AB126: 60 | AC126: 63 | AD126: 79 | AE126: 42 | AF126: 32 | AG126: 81 | AH126: 3 | AI126: 30 | AJ126: 13 | AK126: 12 | AL126: 11 | AM126: 71 | AN126: 44 | AO126: 13 | AP126: 6 | AQ126: 48 | AR126: 56 | AS126: 58 | AT126: 37 | AU126: 18 | AV126: 24 | AW126: 3 | AX126: 49 | AY126: 65 | AZ126: 5 | BA126: 70 | BB126: 45 | BC126: 31 | BD126: 8 | BE126: 56 | BF126: 51
A127: 9899 | B127: 32 | C127: 2021-03-16 | D127: 51 | E127: 46 | F127: 32 | G127: 47 | H127: 50 | I127: 85 | J127: 9 | K127: 41 | L127: 50 | M127: 23 | N127: 53 | O127: 29 | P127: 45 | Q127: 18 | R127: 64 | S127: 36 | T127: 27 | U127: 39 | V127: 25 | W127: 4 | X127: 25 | Y127: 51 | Z127: 20 | AA127: 63 | AB127: 50 | AC127: 42 | AD127: 81 | AE127: 9 | AF127: 5 | AG127: 78 | AH127: 26 | AI127: 84 | AJ127: 29 | AK127: 10 | AL127: 34 | AM127: 56 | AN127: 25 | AO127: 81 | AP127: 52 | AQ127: 89 | AR127: 29 | AS127: 4 | AT127: 58 | AU127: 33 | AV127: 79 | AW127: 69 | AX127: 65 | AY127: 71 | AZ127: 30 | BA127: 83 | BB127: 27 | BC127: 86 | BD127: 45 | BE127: 53 | BF127: 81
A128: 9900 | B128: 33 | C128: 2021-03-18 | D128: 12 | E128: 48 | F128: 59 | G128: 32 | H128: 88 | I128: 64 | J128: 50 | K128: 3 | L128: 62 | M128: 76 | N128: 22 | O128: 23 | P128: 85 | Q128: 18 | R128: 7 | S128: 33 | T128: 57 | U128: 10 | V128: 39 | W128: 14 | X128: 13 | Y128: 49 | Z128: 10 | AA128: 27 | AB128: 14 | AC128: 5 | AD128: 64 | AE128: 46 | AF128: 9 | AG128: 32 | AH128: 70 | AI128: 43 | AJ128: 85 | AK128: 13 | AL128: 50 | AM128: 52 | AN128: 60 | AO128: 85 | AP128: 54 | AQ128: 69 | AR128: 74 | AS128: 10 | AT128: 12 | AU128: 29 | AV128: 30 | AW128: 15 | AX128: 50 | AY128: 30 | AZ128: 70 | BA128: 63 | BB128: 78 | BC128: 68 | BD128: 7 | BE128: 26 | BF128: 28
A129: 9901 | B129: 34 | C129: 2021-03-20 | D129: 55 | E129: 11 | F129: 84 | G129: 76 | H129: 72 | I129: 57 | J129: 16 | K129: 44 | L129: 87 | M129: 63 | N129: 70 | O129: 90 | P129: 83 | Q129: 17 | R129: 80 | S129: 37 | T129: 78 | U129: 26 | V129: 41 | W129: 70 | X129: 58 | Y129: 81 | Z129: 24 | AA129: 25 | AB129: 13 | AC129: 13 | AD129: 79 | AE129: 76 | AF129: 46 | AG129: 17 | AH129: 82 | AI129: 7 | AJ129: 4 | AK129: 30 | AL129: 35 | AM129: 37 | AN129: 73 | AO129: 34 | AP129: 47 | AQ129: 36 | AR129: 72 | AS129: 23 | AT129: 13 | AU129: 81 | AV129: 18 | AW129: 67 | AX129: 15 | AY129: 47 | AZ129: 48 | BA129: 43 | BB129: 7 | BC129: 8 | BD129: 52 | BE129: 28 | BF129: 27
A130: 9902 | B130: 35 | C130: 2021-03-23 | D130: 15 | E130: 53 | F130: 52 | G130: 55 | H130: 12 | I130: 48 | J130: 39 | K130: 84 | L130: 1 | M130: 74 | N130: 69 | O130: 39 | P130: 3 | Q130: 13 | R130: 82 | S130: 75 | T130: 79 | U130: 26 | V130: 42 | W130: 1 | X130: 17 | Y130: 61 | Z130: 70 | AA130: 38 | AB130: 25 | AC130: 40 | AD130: 13 | AE130: 60 | AF130: 59 | AG130: 73 | AH130: 64 | AI130: 65 | AJ130: 87 | AK130: 5 | AL130: 34 | AM130: 43 | AN130: 84 | AO130: 14 | AP130: 80 | AQ130: 37 | AR130: 68 | AS130: 53 | AT130: 7 | AU130: 32 | AV130: 45 | AW130: 3 | AX130: 54 | AY130: 77 | AZ130: 4 | BA130: 85 | BB130: 64 | BC130: 90 | BD130: 21 | BE130: 67 | BF130: 49
A131: 9903 | B131: 36 | C131: 2021-03-25 | D131: 55 | E131: 50 | F131: 56 | G131: 46 | H131: 52 | I131: 29 | J131: 70 | K131: 2 | L131: 33 | M131: 19 | N131: 18 | O131: 87 | P131: 62 | Q131: 50 | R131: 21 | S131: 49 | T131: 40 | U131: 74 | V131: 87 | W131: 7 | X131: 1 | Y131: 54 | Z131: 9 | AA131: 52 | AB131: 88 | AC131: 54 | AD131: 65 | AE131: 35 | AF131: 25 | AG131: 15 | AH131: 81 | AI131: 56 | AJ131: 45 | AK131: 76 | AL131: 78 | AM131: 63 | AN131: 51 | AO131: 49 | AP131: 31 | AQ131: 62 | AR131: 82 | AS131: 13 | AT131: 23 | AU131: 63 | AV131: 62 | AW131: 46 | AX131: 80 | AY131: 69 | AZ131: 14 | BA131: 29 | BB131: 16 | BC131: 10 | BD131: 38 | BE131: 72 | BF131: 46
A132: 9904 | B132: 37 | C132: 2021-03-27 | D132: 2 | E132: 66 | F132: 86 | G132: 76 | H132: 79 | I132: 42 | J132: 26 | K132: 15 | L132: 68 | M132: 53 | N132: 35 | O132: 49 | P132: 16 | Q132: 2 | R132: 17 | S132: 45 | T132: 1 | U132: 51 | V132: 65 | W132: 78 | X132: 83 | Y132: 80 | Z132: 40 | AA132: 30 | AB132: 31 | AC132: 15 | AD132: 72 | AE132: 29 | AF132: 71 | AG132: 38 | AH132: 65 | AI132: 52 | AJ132: 77 | AK132: 12 | AL132: 36 | AM132: 20 | AN132: 14 | AO132: 22 | AP132: 23 | AQ132: 72 | AR132: 1 | AS132: 20 | AT132: 15 | AU132: 68 | AV132: 70 | AW132: 14 | AX132: 48 | AY132: 84 | AZ132: 80 | BA132: 60 | BB132: 55 | BC132: 24 | BD132: 25 | BE132: 3 | BF132: 1
A133: 9905 | B133: 38 | C133: 2021-03-30 | D133: 72 | E133: 61 | F133: 88 | G133: 9 | H133: 86 | I133: 47 | J133: 50 | K133: 12 | L133: 75 | M133: 40 | N133: 14 | O133: 13 | P133: 62 | Q133: 69 | R133: 43 | S133: 21 | T133: 66 | U133: 55 | V133: 68 | W133: 14 | X133: 18 | Y133: 23 | Z133: 37 | AA133: 10 | AB133: 35 | AC133: 59 | AD133: 80 | AE133: 64 | AF133: 26 | AG133: 27 | AH133: 67 | AI133: 39 | AJ133: 24 | AK133: 21 | AL133: 58 | AM133: 83 | AN133: 5 | AO133: 50 | AP133: 68 | AQ133: 13 | AR133: 5 | AS133: 31 | AT133: 2 | AU133: 25 | AV133: 27 | AW133: 56 | AX133: 41 | AY133: 8 | AZ133: 43 | BA133: 39 | BB133: 53 | BC133: 75 | BD133: 56 | BE133: 58 | BF133: 2
A134: 9906 | B134: 39 | C134: 2021-04-01 | D134: 30 | E134: 50 | F134: 89 | G134: 51 | H134: 31 | I134: 58 | J134: 47 | K134: 89 | L134: 23 | M134: 70 | N134: 10 | O134: 57 | P134: 9 | Q134: 40 | R134: 33 | S134: 30 | T134: 74 | U134: 70 | V134: 36 | W134: 8 | X134: 89 | Y134: 80 | Z134: 56 | AA134: 53 | AB134: 43 | AC134: 21 | AD134: 47 | AE134: 27 | AF134: 88 | AG134: 58 | AH134: 61 | AI134: 51 | AJ134: 45 | AK134: 18 | AL134: 23 | AM134: 33 | AN134: 32 | AO134: 15 | AP134: 44 | AQ134: 55 | AR134: 9 | AS134: 78 | AT134: 24 | AU134: 53 | AV134: 86 | AW134: 78 | AX134: 33 | AY134: 79 | AZ134: 56 | BA134: 53 | BB134: 68 | BC134: 10 | BD134: 86 | BE134: 70 | BF134: 43
A135: 9907 | B135: 40 | C135: 2021-04-03 | D135: 15 | E135: 78 | F135: 49 | G135: 19 | H135: 12 | I135: 5 | J135: 87 | K135: 25 | L135: 71 | M135: 39 | N135: 35 | O135: 13 | P135: 51 | Q135: 1 | R135: 21 | S135: 40 | T135: 44 | U135: 33 | V135: 62 | W135: 10 | X135: 15 | Y135: 44 | Z135: 73 | AA135: 63 | AB135: 65 | AC135: 31 | AD135: 41 | AE135: 86 | AF135: 29 | AG135: 77 | AH135: 75 | AI135: 40 | AJ135: 18 | AK135: 27 | AL135: 3 | AM135: 51 | AN135: 10 | AO135: 37 | AP135: 59 | AQ135: 38 | AR135: 23 | AS135: 17 | AT135: 56 | AU135: 4 | AV135: 37 | AW135: 38 | AX135: 24 | AY135: 39 | AZ135: 89 | BA135: 15 | BB135: 50 | BC135: 40 | BD135: 84 | BE135: 73 | BF135: 38
A136: 9908 | B136: 41 | C136: 2021-04-06 | D136: 53 | E136: 28 | F136: 38 | G136: 56 | H136: 87 | I136: 51 | J136: 75 | K136: 21 | L136: 39 | M136: 41 | N136: 19 | O136: 8 | P136: 22 | Q136: 86 | R136: 48 | S136: 80 | T136: 40 | U136: 2 | V136: 24 | W136: 72 | X136: 77 | Y136: 21 | Z136: 14 | AA136: 27 | AB136: 11 | AC136: 55 | AD136: 41 | AE136: 42 | AF136: 59 | AG136: 77 | AH136: 5 | AI136: 82 | AJ136: 84 | AK136: 29 | AL136: 28 | AM136: 59 | AN136: 41 | AO136: 79 | AP136: 24 | AQ136: 84 | AR136: 68 | AS136: 74 | AT136: 29 | AU136: 25 | AV136: 73 | AW136: 1 | AX136: 21 | AY136: 44 | AZ136: 11 | BA136: 40 | BB136: 86 | BC136: 12 | BD136: 89 | BE136: 62 | BF136: 15
A137: 9909 | B137: 42 | C137: 2021-04-08 | D137: 24 | E137: 19 | F137: 57 | G137: 21 | H137: 42 | I137: 81 | J137: 32 | K137: 60 | L137: 28 | M137: 54 | N137: 86 | O137: 77 | P137: 81 | Q137: 12 | R137: 75 | S137: 1 | T137: 31 | U137: 78 | V137: 45 | W137: 72 | X137: 45 | Y137: 46 | Z137: 57 | AA137: 3 | AB137: 49 | AC137: 48 | AD137: 7 | AE137: 56 | AF137: 69 | AG137: 1 | AH137: 11 | AI137: 56 | AJ137: 12 | AK137: 61 | AL137: 75 | AM137: 34 | AN137: 74 | AO137: 13 | AP137: 53 | AQ137: 33 | AR137: 80 | AS137: 68 | AT137: 23 | AU137: 88 | AV137: 19 | AW137: 76 | AX137: 34 | AY137: 78 | AZ137: 28 | BA137: 90 | BB137: 45 | BC137: 69 | BD137: 76 | BE137: 54 | BF137: 6
A138: 9910 | B138: 43 | C138: 2021-04-10 | D138: 56 | E138: 82 | F138: 66 | G138: 18 | H138: 11 | I138: 49 | J138: 20 | K138: 83 | L138: 38 | M138: 22 | N138: 36 | O138: 68 | P138: 83 | Q138: 66 | R138: 32 | S138: 42 | T138: 34 | U138: 85 | V138: 17 | W138: 26 | X138: 53 | Y138: 17 | Z138: 14 | AA138: 80 | AB138: 60 | AC138: 70 | AD138: 85 | AE138: 57 | AF138: 81 | AG138: 90 | AH138: 82 | AI138: 43 | AJ138: 89 | AK138: 85 | AL138: 52 | AM138: 30 | AN138: 43 | AO138: 2 | AP138: 61 | AQ138: 80 | AR138: 51 | AS138: 55 | AT138: 89 | AU138: 81 | AV138: 23 | AW138: 70 | AX138: 29 | AY138: 54 | AZ138: 32 | BA138: 27 | BB138: 50 | BC138: 21 | BD138: 69 | BE138: 43 | BF138: 73
A139: 9911 | B139: 44 | C139: 2021-04-13 | D139: 51 | E139: 83 | F139: 12 | G139: 48 | H139: 64 | I139: 7 | J139: 47 | K139: 19 | L139: 78 | M139: 34 | N139: 35 | O139: 75 | P139: 2 | Q139: 12 | R139: 46 | S139: 36 | T139: 48 | U139: 67 | V139: 77 | W139: 87 | X139: 68 | Y139: 49 | Z139: 15 | AA139: 79 | AB139: 73 | AC139: 32 | AD139: 39 | AE139: 60 | AF139: 78 | AG139: 66 | AH139: 22 | AI139: 75 | AJ139: 25 | AK139: 78 | AL139: 82 | AM139: 42 | AN139: 49 | AO139: 90 | AP139: 27 | AQ139: 84 | AR139: 15 | AS139: 85 | AT139: 78 | AU139: 24 | AV139: 44 | AW139: 1 | AX139: 22 | AY139: 82 | AZ139: 55 | BA139: 61 | BB139: 90 | BC139: 38 | BD139: 27 | BE139: 86 | BF139: 55
A140: 9912 | B140: 45 | C140: 2021-04-15 | D140: 26 | E140: 57 | F140: 56 | G140: 51 | H140: 6 | I140: 73 | J140: 76 | K140: 88 | L140: 52 | M140: 15 | N140: 29 | O140: 15 | P140: 72 | Q140: 63 | R140: 84 | S140: 60 | T140: 90 | U140: 46 | V140: 24 | W140: 42 | X140: 26 | Y140: 40 | Z140: 75 | AA140: 3 | AB140: 55 | AC140: 6 | AD140: 79 | AE140: 84 | AF140: 89 | AG140: 73 | AH140: 1 | AI140: 14 | AJ140: 42 | AK140: 54 | AL140: 68 | AM140: 34 | AN140: 37 | AO140: 4 | AP140: 30 | AQ140: 65 | AR140: 76 | AS140: 90 | AT140: 41 | AU140: 17 | AV140: 40 | AW140: 27 | AX140: 4 | AY140: 25 | AZ140: 51 | BA140: 37 | BB140: 17 | BC140: 30 | BD140: 7 | BE140: 24 | BF140: 49
A141: 9913 | B141: 46 | C141: 2021-04-17 | D141: 59 | E141: 61 | F141: 41 | G141: 4 | H141: 32 | I141: 10 | J141: 68 | K141: 19 | L141: 11 | M141: 85 | N141: 41 | O141: 1 | P141: 13 | Q141: 73 | R141: 47 | S141: 44 | T141: 30 | U141: 39 | V141: 88 | W141: 90 | X141: 67 | Y141: 88 | Z141: 33 | AA141: 13 | AB141: 32 | AC141: 44 | AD141: 41 | AE141: 79 | AF141: 80 | AG141: 66 | AH141: 15 | AI141: 59 | AJ141: 4 | AK141: 31 | AL141: 21 | AM141: 46 | AN141: 68 | AO141: 56 | AP141: 78 | AQ141: 58 | AR141: 9 | AS141: 15 | AT141: 84 | AU141: 17 | AV141: 32 | AW141: 81 | AX141: 4 | AY141: 84 | AZ141: 42 | BA141: 35 | BB141: 52 | BC141: 16 | BD141: 63 | BE141: 62 | BF141: 46
A142: 9914 | B142: 47 | C142: 2021-04-20 | D142: 48 | E142: 4 | F142: 61 | G142: 77 | H142: 26 | I142: 72 | J142: 80 | K142: 64 | L142: 55 | M142: 30 | N142: 34 | O142: 87 | P142: 46 | Q142: 4 | R142: 28 | S142: 47 | T142: 35 | U142: 52 | V142: 89 | W142: 18 | X142: 84 | Y142: 56 | Z142: 20 | AA142: 7 | AB142: 5 | AC142: 89 | AD142: 8 | AE142: 10 | AF142: 69 | AG142: 77 | AH142: 28 | AI142: 43 | AJ142: 75 | AK142: 23 | AL142: 10 | AM142: 50 | AN142: 57 | AO142: 21 | AP142: 69 | AQ142: 17 | AR142: 39 | AS142: 43 | AT142: 66 | AU142: 41 | AV142: 85 | AW142: 21 | AX142: 7 | AY142: 48 | AZ142: 12 | BA142: 80 | BB142: 81 | BC142: 72 | BD142: 39 | BE142: 18 | BF142: 37
A143: 9915 | B143: 48 | C143: 2021-04-22 | D143: 60 | E143: 21 | F143: 2 | G143: 8 | H143: 47 | I143: 61 | J143: 19 | K143: 59 | L143: 69 | M143: 56 | N143: 66 | O143: 3 | P143: 75 | Q143: 21 | R143: 51 | S143: 2 | T143: 73 | U143: 76 | V143: 6 | W143: 15 | X143: 70 | Y143: 5 | Z143: 32 | AA143: 64 | AB143: 84 | AC143: 23 | AD143: 26 | AE143: 24 | AF143: 8 | AG143: 29 | AH143: 32 | AI143: 68 | AJ143: 73 | AK143: 48 | AL143: 30 | AM143: 50 | AN143: 61 | AO143: 67 | AP143: 24 | AQ143: 70 | AR143: 1 | AS143: 28 | AT143: 26 | AU143: 67 | AV143: 71 | AW143: 23 | AX143: 86 | AY143: 54 | AZ143: 45 | BA143: 90 | BB143: 15 | BC143: 40 | BD143: 12 | BE143: 29 | BF143: 46
A144: 9916 | B144: 49 | C144: 2021-04-24 | D144: 35 | E144: 10 | F144: 18 | G144: 76 | H144: 54 | I144: 65 | J144: 71 | K144: 26 | L144: 5 | M144: 31 | N144: 80 | O144: 90 | P144: 7 | Q144: 20 | R144: 61 | S144: 82 | T144: 80 | U144: 57 | V144: 61 | W144: 54 | X144: 50 | Y144: 67 | Z144: 16 | AA144: 28 | AB144: 9 | AC144: 47 | AD144: 77 | AE144: 36 | AF144: 68 | AG144: 66 | AH144: 10 | AI144: 71 | AJ144: 73 | AK144: 83 | AL144: 43 | AM144: 60 | AN144: 78 | AO144: 49 | AP144: 58 | AQ144: 82 | AR144: 71 | AS144: 81 | AT144: 46 | AU144: 44 | AV144: 23 | AW144: 60 | AX144: 9 | AY144: 90 | AZ144: 56 | BA144: 86 | BB144: 36 | BC144: 64 | BD144: 35 | BE144: 57 | BF144: 17
A145: 9917 | B145: 50 | C145: 2021-04-27 | D145: 36 | E145: 50 | F145: 56 | G145: 73 | H145: 41 | I145: 4 | J145: 34 | K145: 67 | L145: 32 | M145: 46 | N145: 32 | O145: 70 | P145: 40 | Q145: 33 | R145: 22 | S145: 63 | T145: 47 | U145: 71 | V145: 21 | W145: 38 | X145: 80 | Y145: 7 | Z145: 62 | AA145: 55 | AB145: 88 | AC145: 3 | AD145: 75 | AE145: 20 | AF145: 12 | AG145: 29 | AH145: 70 | AI145: 64 | AJ145: 35 | AK145: 34 | AL145: 54 | AM145: 25 | AN145: 89 | AO145: 14 | AP145: 51 | AQ145: 77 | AR145: 87 | AS145: 74 | AT145: 73 | AU145: 47 | AV145: 60 | AW145: 8 | AX145: 84 | AY145: 9 | AZ145: 10 | BA145: 2 | BB145: 23 | BC145: 83 | BD145: 1 | BE145: 89 | BF145: 17
A146: 9918 | B146: 51 | C146: 2021-04-29 | D146: 87 | E146: 52 | F146: 49 | G146: 10 | H146: 51 | I146: 69 | J146: 67 | K146: 76 | L146: 66 | M146: 24 | N146: 30 | O146: 43 | P146: 10 | Q146: 57 | R146: 66 | S146: 37 | T146: 80 | U146: 57 | V146: 35 | W146: 26 | X146: 18 | Y146: 3 | Z146: 76 | AA146: 16 | AB146: 24 | AC146: 30 | AD146: 46 | AE146: 73 | AF146: 69 | AG146: 18 | AH146: 71 | AI146: 17 | AJ146: 14 | AK146: 63 | AL146: 82 | AM146: 28 | AN146: 89 | AO146: 10 | AP146: 9 | AQ146: 86 | AR146: 28 | AS146: 6 | AT146: 61 | AU146: 81 | AV146: 54 | AW146: 20 | AX146: 68 | AY146: 28 | AZ146: 88 | BA146: 45 | BB146: 89 | BC146: 84 | BD146: 34 | BE146: 80 | BF146: 73
A147: 9919 | B147: 52 | C147: 2021-05-03 | D147: 42 | E147: 57 | F147: 78 | G147: 18 | H147: 43 | I147: 17 | J147: 52 | K147: 50 | L147: 63 | M147: 38 | N147: 70 | O147: 21 | P147: 50 | Q147: 5 | R147: 2 | S147: 23 | T147: 26 | U147: 62 | V147: 83 | W147: 86 | X147: 36 | Y147: 12 | Z147: 76 | AA147: 57 | AB147: 8 | AC147: 57 | AD147: 83 | AE147: 30 | AF147: 56 | AG147: 63 | AH147: 66 | AI147: 49 | AJ147: 40 | AK147: 59 | AL147: 28 | AM147: 63 | AN147: 49 | AO147: 83 | AP147: 58 | AQ147: 59 | AR147: 4 | AS147: 3 | AT147: 79 | AU147: 68 | AV147: 51 | AW147: 50 | AX147: 29 | AY147: 2 | AZ147: 89 | BA147: 11 | BB147: 47 | BC147: 76 | BD147: 5 | BE147: 19 | BF147: 62
A148: 9920 | B148: 53 | C148: 2021-05-04 | D148: 30 | E148: 10 | F148: 84 | G148: 47 | H148: 64 | I148: 17 | J148: 25 | K148: 88 | L148: 85 | M148: 63 | N148: 81 | O148: 15 | P148: 86 | Q148: 80 | R148: 11 | S148: 67 | T148: 37 | U148: 23 | V148: 24 | W148: 64 | X148: 53 | Y148: 87 | Z148: 28 | AA148: 3 | AB148: 48 | AC148: 53 | AD148: 79 | AE148: 77 | AF148: 76 | AG148: 83 | AH148: 21 | AI148: 26 | AJ148: 4 | AK148: 65 | AL148: 76 | AM148: 31 | AN148: 6 | AO148: 65 | AP148: 40 | AQ148: 62 | AR148: 82 | AS148: 87 | AT148: 21 | AU148: 53 | AV148: 79 | AW148: 88 | AX148: 58 | AY148: 75 | AZ148: 15 | BA148: 83 | BB148: 63 | BC148: 90 | BD148: 5 | BE148: 11 | BF148: 68
A149: 9921 | B149: 54 | C149: 2021-05-06 | D149: 29 | E149: 63 | F149: 52 | G149: 60 | H149: 85 | I149: 81 | J149: 1 | K149: 26 | L149: 41 | M149: 70 | N149: 12 | O149: 38 | P149: 33 | Q149: 57 | R149: 36 | S149: 29 | T149: 38 | U149: 79 | V149: 37 | W149: 66 | X149: 78 | Y149: 44 | Z149: 32 | AA149: 66 | AB149: 75 | AC149: 50 | AD149: 43 | AE149: 15 | AF149: 29 | AG149: 16 | AH149: 72 | AI149: 70 | AJ149: 5 | AK149: 53 | AL149: 50 | AM149: 1 | AN149: 69 | AO149: 57 | AP149: 36 | AQ149: 47 | AR149: 26 | AS149: 69 | AT149: 63 | AU149: 68 | AV149: 42 | AW149: 87 | AX149: 71 | AY149: 31 | AZ149: 79 | BA149: 52.88520408 | BB149: 27 | BC149: 18 | BD149: 39 | BE149: 61 | BF149: 86
A150: 9922 | B150: 55 | C150: 2021-05-08 | D150: 68 | E150: 5 | F150: 34 | G150: 17 | H150: 43 | I150: 58 | J150: 67 | K150: 4 | L150: 53 | M150: 82 | N150: 35 | O150: 25 | P150: 9 | Q150: 60 | R150: 3 | S150: 30 | T150: 52 | U150: 41 | V150: 78 | W150: 83 | X150: 65 | Y150: 37 | Z150: 45 | AA150: 70 | AB150: 42 | AC150: 45 | AD150: 22 | AE150: 88 | AF150: 25 | AG150: 75 | AH150: 53 | AI150: 18 | AJ150: 58 | AK150: 16 | AL150: 7 | AM150: 42 | AN150: 36 | AO150: 88 | AP150: 67 | AQ150: 59 | AR150: 25 | AS150: 13 | AT150: 20 | AU150: 77 | AV150: 30 | AW150: 46 | AX150: 35 | AY150: 11 | AZ150: 17 | BA150: 14 | BB150: 28 | BC150: 27 | BD150: 57 | BE150: 25 | BF150: 42
A151: 9923 | B151: 56 | C151: 2021-05-11 | D151: 77 | E151: 67 | F151: 73 | G151: 28 | H151: 63 | I151: 19 | J151: 90 | K151: 43 | L151: 50 | M151: 31 | N151: 31 | O151: 6 | P151: 41 | Q151: 47 | R151: 56 | S151: 38 | T151: 86 | U151: 53 | V151: 26 | W151: 10 | X151: 59 | Y151: 54 | Z151: 68 | AA151: 86 | AB151: 18 | AC151: 20 | AD151: 85 | AE151: 57 | AF151: 49 | AG151: 37 | AH151: 74 | AI151: 11 | AJ151: 17 | AK151: 63 | AL151: 55 | AM151: 60 | AN151: 33 | AO151: 28 | AP151: 51 | AQ151: 15 | AR151: 73 | AS151: 65 | AT151: 35 | AU151: 82 | AV151: 36 | AW151: 71 | AX151: 76 | AY151: 28 | AZ151: 53 | BA151: 59 | BB151: 4 | BC151: 84 | BD151: 70 | BE151: 31 | BF151: 15
A152: 9924 | B152: 57 | C152: 2021-05-13 | D152: 23 | E152: 13 | F152: 56 | G152: 9 | H152: 71 | I152: 70 | J152: 73 | K152: 5 | L152: 8 | M152: 66 | N152: 58 | O152: 17 | P152: 47 | Q152: 64 | R152: 22 | S152: 68 | T152: 43 | U152: 9 | V152: 2 | W152: 19 | X152: 32 | Y152: 38 | Z152: 89 | AA152: 47 | AB152: 80 | AC152: 53 | AD152: 29 | AE152: 42 | AF152: 44 | AG152: 47 | AH152: 79 | AI152: 20 | AJ152: 54 | AK152: 15 | AL152: 90 | AM152: 50 | AN152: 38 | AO152: 72 | AP152: 41 | AQ152: 26 | AR152: 56 | AS152: 18 | AT152: 27 | AU152: 75 | AV152: 41 | AW152: 62 | AX152: 76 | AY152: 41 | AZ152: 63 | BA152: 44 | BB152: 90 | BC152: 24 | BD152: 38 | BE152: 37 | BF152: 55
A153: 9925 | B153: 58 | C153: 2021-05-15 | D153: 88 | E153: 8 | F153: 23 | G153: 43 | H153: 3 | I153: 60 | J153: 4 | K153: 47 | L153: 24 | M153: 82 | N153: 38 | O153: 41 | P153: 44 | Q153: 79 | R153: 86 | S153: 26 | T153: 62 | U153: 27 | V153: 69 | W153: 85 | X153: 60 | Y153: 29 | Z153: 33 | AA153: 15 | AB153: 80 | AC153: 86 | AD153: 1 | AE153: 90 | AF153: 58 | AG153: 2 | AH153: 72 | AI153: 33 | AJ153: 57 | AK153: 21 | AL153: 51 | AM153: 75 | AN153: 39 | AO153: 89 | AP153: 88 | AQ153: 40 | AR153: 41 | AS153: 28 | AT153: 84 | AU153: 30 | AV153: 80 | AW153: 67 | AX153: 6 | AY153: 28 | AZ153: 18 | BA153: 13 | BB153: 64 | BC153: 80 | BD153: 35 | BE153: 26 | BF153: 32
A154: 9926 | B154: 59 | C154: 2021-05-18 | D154: 29 | E154: 19 | F154: 46 | G154: 72 | H154: 23 | I154: 49 | J154: 87 | K154: 14 | L154: 85 | M154: 82 | N154: 33 | O154: 7 | P154: 63 | Q154: 13 | R154: 44 | S154: 88 | T154: 32 | U154: 40 | V154: 77 | W154: 21 | X154: 70 | Y154: 59 | Z154: 85 | AA154: 62 | AB154: 80 | AC154: 42 | AD154: 19 | AE154: 1 | AF154: 28 | AG154: 24 | AH154: 90 | AI154: 79 | AJ154: 26 | AK154: 39 | AL154: 48 | AM154: 79 | AN154: 47 | AO154: 77 | AP154: 17 | AQ154: 71 | AR154: 17 | AS154: 8 | AT154: 50 | AU154: 74 | AV154: 87 | AW154: 4 | AX154: 49 | AY154: 63 | AZ154: 10 | BA154: 85 | BB154: 83 | BC154: 75 | BD154: 13 | BE154: 44 | BF154: 25
A155: 9927 | B155: 60 | C155: 2021-05-20 | D155: 18 | E155: 28 | F155: 45 | G155: 62 | H155: 58 | I155: 57 | J155: 88 | K155: 70 | L155: 15 | M155: 87 | N155: 86 | O155: 30 | P155: 5 | Q155: 58 | R155: 52 | S155: 9 | T155: 81 | U155: 5 | V155: 20 | W155: 35 | X155: 67 | Y155: 47 | Z155: 52 | AA155: 13 | AB155: 5 | AC155: 11 | AD155: 56 | AE155: 37 | AF155: 3 | AG155: 84 | AH155: 51 | AI155: 71 | AJ155: 10 | AK155: 25 | AL155: 60 | AM155: 7 | AN155: 71 | AO155: 90 | AP155: 35 | AQ155: 77 | AR155: 67 | AS155: 58 | AT155: 31 | AU155: 29 | AV155: 4 | AW155: 19 | AX155: 35 | AY155: 55 | AZ155: 5 | BA155: 63 | BB155: 30 | BC155: 70 | BD155: 61 | BE155: 7 | BF155: 4
A156: 9928 | B156: 61 | C156: 2021-05-22 | D156: 38 | E156: 81 | F156: 12 | G156: 87 | H156: 34 | I156: 71 | J156: 39 | K156: 63 | L156: 35 | M156: 56 | N156: 20 | O156: 28 | P156: 29 | Q156: 76 | R156: 72 | S156: 57 | T156: 83 | U156: 18 | V156: 55 | W156: 62 | X156: 29 | Y156: 65 | Z156: 56 | AA156: 45 | AB156: 13 | AC156: 7 | AD156: 59 | AE156: 19 | AF156: 48 | AG156: 73 | AH156: 59 | AI156: 34 | AJ156: 62 | AK156: 49 | AL156: 40 | AM156: 90 | AN156: 49 | AO156: 80 | AP156: 79 | AQ156: 20 | AR156: 2 | AS156: 68 | AT156: 45 | AU156: 34 | AV156: 42 | AW156: 53 | AX156: 60 | AY156: 87 | AZ156: 6 | BA156: 23 | BB156: 86 | BC156: 69 | BD156: 74 | BE156: 85 | BF156: 26
A157: 9929 | B157: 62 | C157: 2021-05-25 | D157: 75 | E157: 43 | F157: 1 | G157: 56 | H157: 31 | I157: 27 | J157: 50 | K157: 80 | L157: 39 | M157: 11 | N157: 16 | O157: 32 | P157: 52 | Q157: 40 | R157: 81 | S157: 85 | T157: 65 | U157: 54 | V157: 90 | W157: 30 | X157: 39 | Y157: 18 | Z157: 66 | AA157: 52 | AB157: 12 | AC157: 14 | AD157: 9 | AE157: 75 | AF157: 7 | AG157: 28 | AH157: 70 | AI157: 16 | AJ157: 69 | AK157: 50 | AL157: 36 | AM157: 27 | AN157: 5 | AO157: 1 | AP157: 12 | AQ157: 8 | AR157: 26 | AS157: 46 | AT157: 2 | AU157: 6 | AV157: 31 | AW157: 82 | AX157: 68 | AY157: 63 | AZ157: 37 | BA157: 47 | BB157: 45 | BC157: 8 | BD157: 26 | BE157: 35 | BF157: 5
A158: 9930 | B158: 63 | C158: 2021-05-27 | D158: 38 | E158: 7 | F158: 87 | G158: 3 | H158: 66 | I158: 75 | J158: 31 | K158: 56 | L158: 32 | M158: 72 | N158: 76 | O158: 83 | P158: 9 | Q158: 82 | R158: 52 | S158: 74 | T158: 61 | U158: 70 | V158: 5 | W158: 83 | X158: 27 | Y158: 6 | Z158: 41 | AA158: 13 | AB158: 88 | AC158: 65 | AD158: 12 | AE158: 67 | AF158: 90 | AG158: 72 | AH158: 22 | AI158: 43 | AJ158: 14 | AK158: 58 | AL158: 51 | AM158: 69 | AN158: 62 | AO158: 16 | AP158: 60 | AQ158: 55 | AR158: 85 | AS158: 89 | AT158: 72 | AU158: 14 | AV158: 25 | AW158: 52 | AX158: 73 | AY158: 81 | AZ158: 76 | BA158: 20 | BB158: 51 | BC158: 6 | BD158: 12 | BE158: 46 | BF158: 41
A159: 9931 | B159: 64 | C159: 2021-05-29 | D159: 13 | E159: 29 | F159: 37 | G159: 63 | H159: 53 | I159: 56 | J159: 28 | K159: 61 | L159: 55 | M159: 82 | N159: 86 | O159: 73 | P159: 69 | Q159: 35 | R159: 9 | S159: 43 | T159: 18 | U159: 52 | V159: 3 | W159: 81 | X159: 77 | Y159: 33 | Z159: 59 | AA159: 88 | AB159: 54 | AC159: 54 | AD159: 71 | AE159: 38 | AF159: 22 | AG159: 65 | AH159: 69 | AI159: 67 | AJ159: 82 | AK159: 6 | AL159: 40 | AM159: 77 | AN159: 55 | AO159: 68 | AP159: 49 | AQ159: 18 | AR159: 73 | AS159: 54 | AT159: 86 | AU159: 52 | AV159: 35 | AW159: 85 | AX159: 10 | AY159: 81 | AZ159: 54 | BA159: 53 | BB159: 15 | BC159: 71 | BD159: 12 | BE159: 21 | BF159: 74
A160: 9932 | B160: 65 | C160: 2021-06-01 | D160: 60 | E160: 46 | F160: 72 | G160: 47 | H160: 9 | I160: 67 | J160: 70 | K160: 53 | L160: 48 | M160: 5 | N160: 67 | O160: 19 | P160: 35 | Q160: 36 | R160: 66 | S160: 64 | T160: 72 | U160: 55 | V160: 87 | W160: 89 | X160: 52 | Y160: 89 | Z160: 50 | AA160: 1 | AB160: 75 | AC160: 36 | AD160: 19 | AE160: 13 | AF160: 4 | AG160: 77 | AH160: 88 | AI160: 64 | AJ160: 22 | AK160: 72 | AL160: 77 | AM160: 55 | AN160: 47 | AO160: 11 | AP160: 89 | AQ160: 3 | AR160: 58 | AS160: 86 | AT160: 12 | AU160: 69 | AV160: 11 | AW160: 29 | AX160: 47 | AY160: 34 | AZ160: 76 | BA160: 69 | BB160: 48 | BC160: 75 | BD160: 31 | BE160: 3 | BF160: 43
A161: 9933 | B161: 66 | C161: 2021-06-03 | D161: 22 | E161: 86 | F161: 81 | G161: 65 | H161: 75 | I161: 59 | J161: 74 | K161: 20 | L161: 28 | M161: 55 | N161: 79 | O161: 81 | P161: 32 | Q161: 12 | R161: 23 | S161: 79 | T161: 4 | U161: 54 | V161: 83 | W161: 76 | X161: 89 | Y161: 49 | Z161: 34 | AA161: 53 | AB161: 48 | AC161: 51 | AD161: 80 | AE161: 57 | AF161: 38 | AG161: 27 | AH161: 74 | AI161: 7 | AJ161: 49 | AK161: 32 | AL161: 90 | AM161: 12 | AN161: 90 | AO161: 32 | AP161: 50 | AQ161: 67 | AR161: 4 | AS161: 46 | AT161: 90 | AU161: 40 | AV161: 80 | AW161: 14 | AX161: 79 | AY161: 12 | AZ161: 36 | BA161: 52 | BB161: 87 | BC161: 77 | BD161: 41 | BE161: 76 | BF161: 48
A162: 9934 | B162: 67 | C162: 2021-06-05 | D162: 86 | E162: 51 | F162: 57 | G162: 79 | H162: 65 | I162: 65 | J162: 89 | K162: 46 | L162: 54 | M162: 68 | N162: 82 | O162: 6 | P162: 80 | Q162: 10 | R162: 84 | S162: 70 | T162: 15 | U162: 60 | V162: 28 | W162: 64 | X162: 4 | Y162: 85 | Z162: 78 | AA162: 83 | AB162: 68 | AC162: 38 | AD162: 29 | AE162: 6 | AF162: 25 | AG162: 11 | AH162: 65 | AI162: 23 | AJ162: 63 | AK162: 6 | AL162: 49 | AM162: 52 | AN162: 49 | AO162: 30 | AP162: 18 | AQ162: 84 | AR162: 55 | AS162: 42 | AT162: 10 | AU162: 85 | AV162: 11 | AW162: 73 | AX162: 71 | AY162: 23 | AZ162: 49 | BA162: 88 | BB162: 62 | BC162: 71 | BD162: 54 | BE162: 2 | BF162: 67
A163: 9935 | B163: 68 | C163: 2021-06-08 | D163: 47 | E163: 6 | F163: 11 | G163: 33 | H163: 41 | I163: 34 | J163: 77 | K163: 52 | L163: 20 | M163: 70 | N163: 49 | O163: 66 | P163: 87 | Q163: 27 | R163: 39 | S163: 64 | T163: 50 | U163: 55 | V163: 35 | W163: 76 | X163: 38 | Y163: 21 | Z163: 89 | AA163: 48 | AB163: 16 | AC163: 34 | AD163: 73 | AE163: 40 | AF163: 22 | AG163: 53 | AH163: 36 | AI163: 53 | AJ163: 72 | AK163: 19 | AL163: 84 | AM163: 6 | AN163: 7 | AO163: 42 | AP163: 17 | AQ163: 63 | AR163: 31 | AS163: 58 | AT163: 24 | AU163: 62 | AV163: 47 | AW163: 65 | AX163: 20 | AY163: 89 | AZ163: 44 | BA163: 66 | BB163: 13 | BC163: 55 | BD163: 44 | BE163: 20 | BF163: 61
A164: 9936 | B164: 69 | C164: 2021-06-10 | D164: 72 | E164: 6 | F164: 63 | G164: 79 | H164: 86 | I164: 56 | J164: 2 | K164: 43 | L164: 30 | M164: 78 | N164: 87 | O164: 82 | P164: 63 | Q164: 17 | R164: 51 | S164: 20 | T164: 5 | U164: 3 | V164: 44 | W164: 59 | X164: 19 | Y164: 78 | Z164: 38 | AA164: 33 | AB164: 82 | AC164: 16 | AD164: 30 | AE164: 62 | AF164: 77 | AG164: 36 | AH164: 4 | AI164: 66 | AJ164: 33 | AK164: 30 | AL164: 61 | AM164: 88 | AN164: 82 | AO164: 60 | AP164: 32 | AQ164: 69 | AR164: 61 | AS164: 60 | AT164: 67 | AU164: 51 | AV164: 4 | AW164: 25 | AX164: 14 | AY164: 35 | AZ164: 74 | BA164: 54 | BB164: 57 | BC164: 84 | BD164: 15 | BE164: 58 | BF164: 47
A165: 9937 | B165: 70 | C165: 2021-06-12 | D165: 70 | E165: 15 | F165: 3 | G165: 11 | H165: 34 | I165: 28 | J165: 25 | K165: 2 | L165: 5 | M165: 37 | N165: 79 | O165: 69 | P165: 31 | Q165: 52 | R165: 40 | S165: 57 | T165: 7 | U165: 50 | V165: 41 | W165: 30 | X165: 24 | Y165: 44 | Z165: 71 | AA165: 60 | AB165: 38 | AC165: 72 | AD165: 39 | AE165: 62 | AF165: 85 | AG165: 35 | AH165: 81 | AI165: 86 | AJ165: 1 | AK165: 4 | AL165: 89 | AM165: 18 | AN165: 29 | AO165: 41 | AP165: 82 | AQ165: 83 | AR165: 55 | AS165: 27 | AT165: 36 | AU165: 16 | AV165: 73 | AW165: 50 | AX165: 61 | AY165: 38 | AZ165: 72 | BA165: 7 | BB165: 42 | BC165: 25 | BD165: 60 | BE165: 51 | BF165: 61
A166: 9938 | B166: 71 | C166: 2021-06-15 | D166: 88 | E166: 81 | F166: 53 | G166: 41 | H166: 90 | I166: 2 | J166: 56 | K166: 59 | L166: 9 | M166: 11 | N166: 13 | O166: 77 | P166: 62 | Q166: 12 | R166: 31 | S166: 28 | T166: 44 | U166: 6 | V166: 85 | W166: 10 | X166: 8 | Y166: 53 | Z166: 1 | AA166: 75 | AB166: 18 | AC166: 89 | AD166: 14 | AE166: 60 | AF166: 11 | AG166: 16 | AH166: 9 | AI166: 38 | AJ166: 50 | AK166: 3 | AL166: 79 | AM166: 66 | AN166: 71 | AO166: 24 | AP166: 62 | AQ166: 36 | AR166: 58 | AS166: 81 | AT166: 17 | AU166: 60 | AV166: 18 | AW166: 83 | AX166: 30 | AY166: 13 | AZ166: 6 | BA166: 66 | BB166: 37 | BC166: 27 | BD166: 30 | BE166: 87 | BF166: 65
A167: 9939 | B167: 72 | C167: 2021-06-17 | D167: 27 | E167: 38 | F167: 71 | G167: 15 | H167: 84 | I167: 68 | J167: 28 | K167: 19 | L167: 22 | M167: 76 | N167: 20 | O167: 18 | P167: 40 | Q167: 45 | R167: 12 | S167: 15 | T167: 70 | U167: 56 | V167: 29 | W167: 16 | X167: 38 | Y167: 63 | Z167: 77 | AA167: 12 | AB167: 33 | AC167: 27 | AD167: 74 | AE167: 63 | AF167: 36 | AG167: 90 | AH167: 75 | AI167: 80 | AJ167: 10 | AK167: 66 | AL167: 74 | AM167: 12 | AN167: 80 | AO167: 53 | AP167: 37 | AQ167: 29 | AR167: 7 | AS167: 71 | AT167: 47 | AU167: 82 | AV167: 75 | AW167: 74 | AX167: 42 | AY167: 85 | AZ167: 78 | BA167: 47 | BB167: 7 | BC167: 18 | BD167: 17 | BE167: 31 | BF167: 47
A168: 9940 | B168: 73 | C168: 2021-06-19 | D168: 7 | E168: 21 | F168: 15 | G168: 54 | H168: 27 | I168: 25 | J168: 2 | K168: 28 | L168: 72 | M168: 53 | N168: 68 | O168: 83 | P168: 46 | Q168: 61 | R168: 15 | S168: 54 | T168: 24 | U168: 45 | V168: 75 | W168: 53 | X168: 36 | Y168: 13 | Z168: 58 | AA168: 1 | AB168: 50 | AC168: 27 | AD168: 88 | AE168: 2 | AF168: 90 | AG168: 51 | AH168: 39 | AI168: 2 | AJ168: 52 | AK168: 20 | AL168: 59 | AM168: 45 | AN168: 80 | AO168: 41 | AP168: 15 | AQ168: 33 | AR168: 44 | AS168: 21 | AT168: 86 | AU168: 10 | AV168: 69 | AW168: 48 | AX168: 21 | AY168: 36 | AZ168: 58 | BA168: 37 | BB168: 52 | BC168: 86 | BD168: 75 | BE168: 9 | BF168: 69
A169: 9941 | B169: 74 | C169: 2021-06-22 | D169: 38 | E169: 69 | F169: 47 | G169: 22 | H169: 46 | I169: 84 | J169: 37 | K169: 9 | L169: 20 | M169: 5 | N169: 65 | O169: 83 | P169: 1 | Q169: 8 | R169: 46 | S169: 44 | T169: 41 | U169: 67 | V169: 54 | W169: 77 | X169: 5 | Y169: 78 | Z169: 84 | AA169: 60 | AB169: 89 | AC169: 88 | AD169: 32 | AE169: 53 | AF169: 54 | AG169: 86 | AH169: 3 | AI169: 31 | AJ169: 67 | AK169: 21 | AL169: 7 | AM169: 13 | AN169: 86 | AO169: 2 | AP169: 24 | AQ169: 83 | AR169: 45 | AS169: 64 | AT169: 89 | AU169: 7 | AV169: 74 | AW169: 63 | AX169: 64 | AY169: 21 | AZ169: 27 | BA169: 53 | BB169: 2 | BC169: 17 | BD169: 19 | BE169: 70 | BF169: 41
A170: 9942 | B170: 75 | C170: 2021-06-24 | D170: 43 | E170: 50 | F170: 77 | G170: 49 | H170: 59 | I170: 86 | J170: 42 | K170: 69 | L170: 70 | M170: 65 | N170: 36 | O170: 33 | P170: 56 | Q170: 15 | R170: 6 | S170: 12 | T170: 57 | U170: 5 | V170: 58 | W170: 78 | X170: 13 | Y170: 66 | Z170: 89 | AA170: 55 | AB170: 10 | AC170: 87 | AD170: 61 | AE170: 26 | AF170: 13 | AG170: 15 | AH170: 8 | AI170: 77 | AJ170: 44 | AK170: 73 | AL170: 45 | AM170: 23 | AN170: 25 | AO170: 86 | AP170: 48 | AQ170: 76 | AR170: 22 | AS170: 51 | AT170: 81 | AU170: 3 | AV170: 10 | AW170: 37 | AX170: 59 | AY170: 79 | AZ170: 90 | BA170: 42 | BB170: 19 | BC170: 77 | BD170: 66 | BE170: 72 | BF170: 82
A171: 9943 | B171: 76 | C171: 2021-06-26 | D171: 27 | E171: 69 | F171: 3 | G171: 1 | H171: 12 | I171: 51 | J171: 47 | K171: 16 | L171: 18 | M171: 22 | N171: 45 | O171: 63 | P171: 55 | Q171: 38 | R171: 85 | S171: 15 | T171: 59 | U171: 33 | V171: 83 | W171: 44 | X171: 63 | Y171: 58 | Z171: 86 | AA171: 34 | AB171: 45 | AC171: 81 | AD171: 52 | AE171: 89 | AF171: 12 | AG171: 20 | AH171: 24 | AI171: 69 | AJ171: 8 | AK171: 27 | AL171: 1 | AM171: 86 | AN171: 14 | AO171: 58 | AP171: 78 | AQ171: 19 | AR171: 44 | AS171: 51 | AT171: 36 | AU171: 14 | AV171: 20 | AW171: 6 | AX171: 76 | AY171: 24 | AZ171: 11 | BA171: 54 | BB171: 3 | BC171: 38 | BD171: 73 | BE171: 10 | BF171: 49
A172: 9944 | B172: 77 | C172: 2021-06-29 | D172: 83 | E172: 51 | F172: 84 | G172: 34 | H172: 5 | I172: 83 | J172: 31 | K172: 27 | L172: 55 | M172: 52 | N172: 84 | O172: 9 | P172: 44 | Q172: 8 | R172: 66 | S172: 29 | T172: 4 | U172: 84 | V172: 52 | W172: 40 | X172: 80 | Y172: 50 | Z172: 76 | AA172: 26 | AB172: 6 | AC172: 49 | AD172: 85 | AE172: 82 | AF172: 14 | AG172: 76 | AH172: 25 | AI172: 41 | AJ172: 47 | AK172: 48 | AL172: 55 | AM172: 2 | AN172: 83 | AO172: 35 | AP172: 27 | AQ172: 82 | AR172: 9 | AS172: 30 | AT172: 4 | AU172: 16 | AV172: 53 | AW172: 6 | AX172: 15 | AY172: 46 | AZ172: 47 | BA172: 27 | BB172: 42 | BC172: 31 | BD172: 70 | BE172: 66 | BF172: 51
A173: 9945 | B173: 78 | C173: 2021-07-01 | D173: 81 | E173: 85 | F173: 48 | G173: 86 | H173: 38 | I173: 36 | J173: 27 | K173: 25 | L173: 69 | M173: 84 | N173: 35 | O173: 36 | P173: 70 | Q173: 18 | R173: 15 | S173: 31 | T173: 9 | U173: 4 | V173: 58 | W173: 21 | X173: 38 | Y173: 49 | Z173: 39 | AA173: 29 | AB173: 40 | AC173: 35 | AD173: 31 | AE173: 61 | AF173: 4 | AG173: 5 | AH173: 67 | AI173: 15 | AJ173: 12 | AK173: 41 | AL173: 45 | AM173: 70 | AN173: 15 | AO173: 59 | AP173: 55 | AQ173: 78 | AR173: 84 | AS173: 42 | AT173: 69 | AU173: 34 | AV173: 73 | AW173: 28 | AX173: 59 | AY173: 52 | AZ173: 11 | BA173: 76 | BB173: 47 | BC173: 60 | BD173: 66 | BE173: 31 | BF173: 28
A174: 9946 | B174: 79 | C174: 2021-07-03 | D174: 11 | E174: 80 | F174: 24 | G174: 90 | H174: 81 | I174: 12 | J174: 19 | K174: 24 | L174: 9 | M174: 66 | N174: 7 | O174: 86 | P174: 63 | Q174: 6 | R174: 11 | S174: 24 | T174: 38 | U174: 76 | V174: 80 | W174: 37 | X174: 68 | Y174: 80 | Z174: 29 | AA174: 23 | AB174: 41 | AC174: 61 | AD174: 39 | AE174: 68 | AF174: 7 | AG174: 1 | AH174: 28 | AI174: 17 | AJ174: 83 | AK174: 71 | AL174: 50 | AM174: 34 | AN174: 21 | AO174: 45 | AP174: 72 | AQ174: 85 | AR174: 15 | AS174: 11 | AT174: 13 | AU174: 82 | AV174: 43 | AW174: 60 | AX174: 39 | AY174: 71 | AZ174: 87 | BA174: 50 | BB174: 23 | BC174: 66 | BD174: 6 | BE174: 7 | BF174: 82
A175: 9947 | B175: 80 | C175: 2021-07-06 | D175: 80 | E175: 18 | F175: 70 | G175: 39 | H175: 65 | I175: 21 | J175: 50 | K175: 7 | L175: 42 | M175: 76 | N175: 53 | O175: 75 | P175: 15 | Q175: 86 | R175: 27 | S175: 10 | T175: 88 | U175: 66 | V175: 30 | W175: 32 | X175: 16 | Y175: 43 | Z175: 9 | AA175: 42 | AB175: 21 | AC175: 77 | AD175: 29 | AE175: 75 | AF175: 42 | AG175: 67 | AH175: 7 | AI175: 36 | AJ175: 40 | AK175: 86 | AL175: 71 | AM175: 20 | AN175: 37 | AO175: 16 | AP175: 25 | AQ175: 68 | AR175: 46 | AS175: 5 | AT175: 3 | AU175: 22 | AV175: 74 | AW175: 48 | AX175: 17 | AY175: 34 | AZ175: 1 | BA175: 70 | BB175: 60 | BC175: 49 | BD175: 27 | BE175: 88 | BF175: 46
A176: 9948 | B176: 81 | C176: 2021-07-08 | D176: 30 | E176: 4 | F176: 62 | G176: 33 | H176: 44 | I176: 12 | J176: 13 | K176: 47 | L176: 63 | M176: 15 | N176: 61 | O176: 20 | P176: 19 | Q176: 77 | R176: 29 | S176: 46 | T176: 45 | U176: 21 | V176: 69 | W176: 7 | X176: 17 | Y176: 73 | Z176: 34 | AA176: 48 | AB176: 81 | AC176: 59 | AD176: 52 | AE176: 22 | AF176: 50 | AG176: 46 | AH176: 25 | AI176: 3 | AJ176: 19 | AK176: 20 | AL176: 75 | AM176: 80 | AN176: 4 | AO176: 56 | AP176: 3 | AQ176: 30 | AR176: 74 | AS176: 78 | AT176: 10 | AU176: 32 | AV176: 47 | AW176: 46 | AX176: 66 | AY176: 74 | AZ176: 30 | BA176: 44 | BB176: 45 | BC176: 78 | BD176: 7 | BE176: 57 | BF176: 42
A177: 9949 | B177: 82 | C177: 2021-07-10 | D177: 88 | E177: 33 | F177: 11 | G177: 53 | H177: 51 | I177: 18 | J177: 6 | K177: 35 | L177: 41 | M177: 73 | N177: 77 | O177: 54 | P177: 43 | Q177: 58 | R177: 20 | S177: 7 | T177: 79 | U177: 27 | V177: 13 | W177: 32 | X177: 23 | Y177: 64 | Z177: 89 | AA177: 65 | AB177: 79 | AC177: 55 | AD177: 72 | AE177: 29 | AF177: 77 | AG177: 25 | AH177: 6 | AI177: 20 | AJ177: 60 | AK177: 17 | AL177: 69 | AM177: 71 | AN177: 4 | AO177: 46 | AP177: 66 | AQ177: 34 | AR177: 29 | AS177: 73 | AT177: 22 | AU177: 30 | AV177: 46 | AW177: 46 | AX177: 4 | AY177: 25 | AZ177: 18 | BA177: 50 | BB177: 60 | BC177: 30 | BD177: 6 | BE177: 82 | BF177: 70
A178: 9950 | B178: 83 | C178: 2021-07-13 | D178: 90 | E178: 32 | F178: 45 | G178: 44 | H178: 62 | I178: 14 | J178: 41 | K178: 50 | L178: 12 | M178: 84 | N178: 6 | O178: 31 | P178: 60 | Q178: 90 | R178: 46 | S178: 51 | T178: 64 | U178: 70 | V178: 69 | W178: 43 | X178: 84 | Y178: 66 | Z178: 3 | AA178: 75 | AB178: 34 | AC178: 83 | AD178: 41 | AE178: 1 | AF178: 37 | AG178: 19 | AH178: 71 | AI178: 15 | AJ178: 73 | AK178: 55 | AL178: 60 | AM178: 65 | AN178: 84 | AO178: 81 | AP178: 64 | AQ178: 7 | AR178: 87 | AS178: 42 | AT178: 2 | AU178: 65 | AV178: 74 | AW178: 4 | AX178: 67 | AY178: 62 | AZ178: 30 | BA178: 14 | BB178: 38 | BC178: 43 | BD178: 78 | BE178: 20 | BF178: 64
A179: 9951 | B179: 84 | C179: 2021-07-15 | D179: 47 | E179: 73 | F179: 44 | G179: 59 | H179: 84 | I179: 4 | J179: 58 | K179: 18 | L179: 37 | M179: 67 | N179: 49 | O179: 59 | P179: 70 | Q179: 80 | R179: 64 | S179: 19 | T179: 77 | U179: 83 | V179: 40 | W179: 42 | X179: 50 | Y179: 76 | Z179: 61 | AA179: 38 | AB179: 74 | AC179: 81 | AD179: 38 | AE179: 13 | AF179: 27 | AG179: 9 | AH179: 78 | AI179: 8 | AJ179: 4 | AK179: 65 | AL179: 39 | AM179: 85 | AN179: 12 | AO179: 10 | AP179: 9 | AQ179: 89 | AR179: 32 | AS179: 17 | AT179: 24 | AU179: 44 | AV179: 6 | AW179: 35 | AX179: 71 | AY179: 76 | AZ179: 89 | BA179: 82 | BB179: 88 | BC179: 45 | BD179: 14 | BE179: 33 | BF179: 31
A180: 9952 | B180: 85 | C180: 2021-07-17 | D180: 26 | E180: 9 | F180: 78 | G180: 48 | H180: 22 | I180: 70 | J180: 21 | K180: 35 | L180: 73 | M180: 62 | N180: 85 | O180: 74 | P180: 32 | Q180: 27 | R180: 21 | S180: 59 | T180: 25 | U180: 63 | V180: 69 | W180: 52 | X180: 43 | Y180: 16 | Z180: 19 | AA180: 88 | AB180: 1 | AC180: 59 | AD180: 42 | AE180: 38 | AF180: 41 | AG180: 2 | AH180: 69 | AI180: 54 | AJ180: 81 | AK180: 86 | AL180: 37 | AM180: 36 | AN180: 35 | AO180: 61 | AP180: 58 | AQ180: 56 | AR180: 37 | AS180: 49 | AT180: 55 | AU180: 26 | AV180: 78 | AW180: 8 | AX180: 47 | AY180: 3 | AZ180: 82 | BA180: 88 | BB180: 88 | BC180: 18 | BD180: 26 | BE180: 1 | BF180: 2
A181: 9953 | B181: 86 | C181: 2021-07-20 | D181: 27 | E181: 89 | F181: 7 | G181: 65 | H181: 85 | I181: 32 | J181: 18 | K181: 9 | L181: 1 | M181: 56 | N181: 5 | O181: 3 | P181: 75 | Q181: 12 | R181: 90 | S181: 10 | T181: 71 | U181: 51 | V181: 17 | W181: 87 | X181: 38 | Y181: 57 | Z181: 12 | AA181: 52 | AB181: 40 | AC181: 26 | AD181: 28 | AE181: 4 | AF181: 6 | AG181: 45 | AH181: 13 | AI181: 44 | AJ181: 39 | AK181: 87 | AL181: 53 | AM181: 50 | AN181: 22 | AO181: 65 | AP181: 41 | AQ181: 7 | AR181: 56 | AS181: 2 | AT181: 59 | AU181: 64 | AV181: 66 | AW181: 89 | AX181: 56 | AY181: 70 | AZ181: 19 | BA181: 85 | BB181: 11 | BC181: 35 | BD181: 2 | BE181: 30 | BF181: 58
A182: 9954 | B182: 87 | C182: 2021-07-22 | D182: 86 | E182: 56 | F182: 14 | G182: 65 | H182: 47 | I182: 59 | J182: 4 | K182: 12 | L182: 64 | M182: 3 | N182: 62 | O182: 74 | P182: 81 | Q182: 36 | R182: 48 | S182: 90 | T182: 31 | U182: 20 | V182: 67 | W182: 68 | X182: 65 | Y182: 15 | Z182: 72 | AA182: 33 | AB182: 54 | AC182: 68 | AD182: 79 | AE182: 70 | AF182: 22 | AG182: 72 | AH182: 45 | AI182: 68 | AJ182: 38 | AK182: 12 | AL182: 69 | AM182: 10 | AN182: 75 | AO182: 32 | AP182: 59 | AQ182: 70 | AR182: 45 | AS182: 66 | AT182: 79 | AU182: 50 | AV182: 38 | AW182: 81 | AX182: 26 | AY182: 9 | AZ182: 69 | BA182: 31 | BB182: 77 | BC182: 31 | BD182: 41 | BE182: 58 | BF182: 8
A183: 9955 | B183: 88 | C183: 2021-07-24 | D183: 81 | E183: 2 | F183: 42 | G183: 55 | H183: 79 | I183: 61 | J183: 9 | K183: 15 | L183: 74 | M183: 56 | N183: 4 | O183: 5 | P183: 7 | Q183: 35 | R183: 37 | S183: 12 | T183: 42 | U183: 13 | V183: 47 | W183: 34 | X183: 23 | Y183: 6 | Z183: 39 | AA183: 12 | AB183: 89 | AC183: 22 | AD183: 80 | AE183: 25 | AF183: 24 | AG183: 41 | AH183: 35 | AI183: 42 | AJ183: 25 | AK183: 3 | AL183: 23 | AM183: 78 | AN183: 13 | AO183: 56 | AP183: 45 | AQ183: 59 | AR183: 61 | AS183: 4 | AT183: 82 | AU183: 65 | AV183: 5 | AW183: 29 | AX183: 67 | AY183: 83 | AZ183: 45 | BA183: 85 | BB183: 47 | BC183: 75 | BD183: 12 | BE183: 31 | BF183: 62
A184: 9956 | B184: 89 | C184: 2021-07-27 | D184: 50 | E184: 65 | F184: 72 | G184: 26 | H184: 38 | I184: 32 | J184: 59 | K184: 9 | L184: 87 | M184: 25 | N184: 41 | O184: 44 | P184: 86 | Q184: 58 | R184: 11 | S184: 19 | T184: 6 | U184: 42 | V184: 4 | W184: 45 | X184: 10 | Y184: 22 | Z184: 53 | AA184: 12 | AB184: 54 | AC184: 5 | AD184: 10 | AE184: 41 | AF184: 12 | AG184: 58 | AH184: 48 | AI184: 34 | AJ184: 7 | AK184: 29 | AL184: 12 | AM184: 31 | AN184: 76 | AO184: 71 | AP184: 58 | AQ184: 67 | AR184: 79 | AS184: 26 | AT184: 59 | AU184: 13 | AV184: 57 | AW184: 84 | AX184: 24 | AY184: 59 | AZ184: 64 | BA184: 28 | BB184: 72 | BC184: 85 | BD184: 25 | BE184: 28 | BF184: 55
A185: 9957 | B185: 90 | C185: 2021-07-29 | D185: 55 | E185: 18 | F185: 78 | G185: 36 | H185: 64 | I185: 14 | J185: 28 | K185: 66 | L185: 39 | M185: 55 | N185: 87 | O185: 3 | P185: 73 | Q185: 15 | R185: 24 | S185: 26 | T185: 22 | U185: 28 | V185: 23 | W185: 74 | X185: 23 | Y185: 83 | Z185: 14 | AA185: 72 | AB185: 41 | AC185: 4 | AD185: 15 | AE185: 88 | AF185: 74 | AG185: 86 | AH185: 86 | AI185: 54 | AJ185: 45 | AK185: 56 | AL185: 57 | AM185: 24 | AN185: 35 | AO185: 90 | AP185: 25 | AQ185: 59 | AR185: 47 | AS185: 40 | AT185: 55 | AU185: 82 | AV185: 18 | AW185: 40 | AX185: 76 | AY185: 63 | AZ185: 29 | BA185: 44 | BB185: 65 | BC185: 35 | BD185: 70 | BE185: 64 | BF185: 63
A186: 9958 | B186: 91 | C186: 2021-07-31 | D186: 73 | E186: 10 | F186: 19 | G186: 26 | H186: 34 | I186: 32 | J186: 44 | K186: 13 | L186: 79 | M186: 19 | N186: 49 | O186: 60 | P186: 72 | Q186: 31 | R186: 80 | S186: 8 | T186: 85 | U186: 70 | V186: 80 | W186: 83 | X186: 54 | Y186: 87 | Z186: 85 | AA186: 46 | AB186: 8 | AC186: 14 | AD186: 60 | AE186: 74 | AF186: 81 | AG186: 17 | AH186: 61 | AI186: 6 | AJ186: 42 | AK186: 49 | AL186: 75 | AM186: 82 | AN186: 13 | AO186: 58 | AP186: 65 | AQ186: 34 | AR186: 52 | AS186: 4 | AT186: 71 | AU186: 68 | AV186: 13 | AW186: 80 | AX186: 34 | AY186: 30 | AZ186: 84 | BA186: 86 | BB186: 18 | BC186: 38 | BD186: 75 | BE186: 68 | BF186: 41
A187: 9959 | B187: 92 | C187: 2021-08-03 | D187: 29 | E187: 69 | F187: 52 | G187: 80 | H187: 88 | I187: 20 | J187: 69 | K187: 37 | L187: 90 | M187: 54 | N187: 81 | O187: 12 | P187: 45 | Q187: 76 | R187: 58 | S187: 38 | T187: 16 | U187: 15 | V187: 20 | W187: 41 | X187: 1 | Y187: 56 | Z187: 26 | AA187: 67 | AB187: 18 | AC187: 40 | AD187: 89 | AE187: 71 | AF187: 50 | AG187: 32 | AH187: 21 | AI187: 79 | AJ187: 32 | AK187: 71 | AL187: 48 | AM187: 50 | AN187: 83 | AO187: 38 | AP187: 73 | AQ187: 77 | AR187: 71 | AS187: 27 | AT187: 11 | AU187: 30 | AV187: 42 | AW187: 8 | AX187: 2 | AY187: 25 | AZ187: 53 | BA187: 47 | BB187: 55 | BC187: 31 | BD187: 22 | BE187: 41 | BF187: 48
A188: 9960 | B188: 93 | C188: 2021-08-05 | D188: 16 | E188: 78 | F188: 19 | G188: 13 | H188: 67 | I188: 24 | J188: 8 | K188: 76 | L188: 11 | M188: 3 | N188: 8 | O188: 75 | P188: 61 | Q188: 88 | R188: 60 | S188: 73 | T188: 59 | U188: 7 | V188: 60 | W188: 33 | X188: 83 | Y188: 84 | Z188: 71 | AA188: 8 | AB188: 70 | AC188: 60 | AD188: 32 | AE188: 20 | AF188: 61 | AG188: 66 | AH188: 5 | AI188: 85 | AJ188: 51 | AK188: 63 | AL188: 64 | AM188: 46 | AN188: 57 | AO188: 1 | AP188: 10 | AQ188: 13 | AR188: 87 | AS188: 51 | AT188: 82 | AU188: 37 | AV188: 67 | AW188: 33 | AX188: 29 | AY188: 40 | AZ188: 47 | BA188: 43 | BB188: 7 | BC188: 51 | BD188: 42 | BE188: 81 | BF188: 13
A189: 9961 | B189: 94 | C189: 2021-08-07 | D189: 26 | E189: 39 | F189: 68 | G189: 9 | H189: 29 | I189: 89 | J189: 68 | K189: 14 | L189: 47 | M189: 62 | N189: 46 | O189: 23 | P189: 17 | Q189: 44 | R189: 47 | S189: 77 | T189: 45 | U189: 66 | V189: 87 | W189: 67 | X189: 47 | Y189: 19 | Z189: 20 | AA189: 79 | AB189: 34 | AC189: 6 | AD189: 70 | AE189: 74 | AF189: 73 | AG189: 86 | AH189: 56 | AI189: 39 | AJ189: 45 | AK189: 17 | AL189: 50 | AM189: 48 | AN189: 42 | AO189: 81 | AP189: 59 | AQ189: 35 | AR189: 69 | AS189: 31 | AT189: 29 | AU189: 67 | AV189: 30 | AW189: 74 | AX189: 84 | AY189: 15 | AZ189: 85 | BA189: 14 | BB189: 57 | BC189: 15 | BD189: 6 | BE189: 43 | BF189: 46
A190: 9962 | B190: 95 | C190: 2021-08-10 | D190: 81 | E190: 39 | F190: 66 | G190: 7 | H190: 12 | I190: 31 | J190: 55 | K190: 78 | L190: 34 | M190: 8 | N190: 54 | O190: 20 | P190: 64 | Q190: 77 | R190: 81 | S190: 9 | T190: 53 | U190: 31 | V190: 34 | W190: 5 | X190: 61 | Y190: 2 | Z190: 17 | AA190: 66 | AB190: 78 | AC190: 42 | AD190: 64 | AE190: 52 | AF190: 48 | AG190: 86 | AH190: 44 | AI190: 55 | AJ190: 19 | AK190: 78 | AL190: 13 | AM190: 25 | AN190: 24 | AO190: 13 | AP190: 15 | AQ190: 11 | AR190: 38 | AS190: 54 | AT190: 47 | AU190: 10 | AV190: 65 | AW190: 4 | AX190: 72 | AY190: 52 | AZ190: 90 | BA190: 79 | BB190: 4 | BC190: 62 | BD190: 56 | BE190: 45 | BF190: 35
A191: 9963 | B191: 96 | C191: 2021-08-12 | D191: 53 | E191: 37 | F191: 86 | G191: 32 | H191: 64 | I191: 15 | J191: 60 | K191: 12 | L191: 63 | M191: 75 | N191: 39 | O191: 29 | P191: 25 | Q191: 62 | R191: 56 | S191: 34 | T191: 88 | U191: 2 | V191: 5 | W191: 30 | X191: 71 | Y191: 26 | Z191: 66 | AA191: 74 | AB191: 1 | AC191: 82 | AD191: 42 | AE191: 44 | AF191: 50 | AG191: 65 | AH191: 2 | AI191: 30 | AJ191: 10 | AK191: 77 | AL191: 82 | AM191: 81 | AN191: 9 | AO191: 13 | AP191: 47 | AQ191: 73 | AR191: 81 | AS191: 6 | AT191: 1 | AU191: 33 | AV191: 58 | AW191: 7 | AX191: 38 | AY191: 56 | AZ191: 2 | BA191: 60 | BB191: 29 | BC191: 4 | BD191: 17 | BE191: 49 | BF191: 24
A192: 9964 | B192: 97 | C192: 2021-08-14 | D192: 30 | E192: 13 | F192: 67 | G192: 83 | H192: 65 | I192: 25 | J192: 13 | K192: 80 | L192: 30 | M192: 12 | N192: 36 | O192: 72 | P192: 40 | Q192: 20 | R192: 82 | S192: 61 | T192: 83 | U192: 59 | V192: 2 | W192: 29 | X192: 36 | Y192: 65 | Z192: 19 | AA192: 61 | AB192: 9 | AC192: 81 | AD192: 33 | AE192: 35 | AF192: 25 | AG192: 84 | AH192: 58 | AI192: 23 | AJ192: 90 | AK192: 16 | AL192: 8 | AM192: 15 | AN192: 19 | AO192: 29 | AP192: 63 | AQ192: 70 | AR192: 4 | AS192: 58 | AT192: 16 | AU192: 18 | AV192: 59 | AW192: 26 | AX192: 80 | AY192: 90 | AZ192: 25 | BA192: 63 | BB192: 7 | BC192: 42 | BD192: 34 | BE192: 86 | BF192: 87
A193: 9965 | B193: 98 | C193: 2021-08-17 | D193: 84 | E193: 48 | F193: 30 | G193: 61 | H193: 2 | I193: 48 | J193: 12 | K193: 61 | L193: 54 | M193: 73 | N193: 58 | O193: 73 | P193: 21 | Q193: 61 | R193: 49 | S193: 1 | T193: 60 | U193: 39 | V193: 36 | W193: 52 | X193: 32 | Y193: 39 | Z193: 23 | AA193: 83 | AB193: 43 | AC193: 83 | AD193: 48 | AE193: 52 | AF193: 89 | AG193: 54 | AH193: 37 | AI193: 47 | AJ193: 55 | AK193: 36 | AL193: 41 | AM193: 42 | AN193: 20 | AO193: 54 | AP193: 26 | AQ193: 71 | AR193: 40 | AS193: 52 | AT193: 22 | AU193: 33 | AV193: 13 | AW193: 51 | AX193: 54 | AY193: 70 | AZ193: 35 | BA193: 22 | BB193: 40 | BC193: 30 | BD193: 78 | BE193: 8 | BF193: 20
A194: 9966 | B194: 99 | C194: 2021-08-19 | D194: 35 | E194: 56 | F194: 53 | G194: 49 | H194: 62 | I194: 2 | J194: 32 | K194: 35 | L194: 79 | M194: 78 | N194: 47 | O194: 17 | P194: 73 | Q194: 48 | R194: 46 | S194: 72 | T194: 42 | U194: 27 | V194: 50 | W194: 60 | X194: 20 | Y194: 19 | Z194: 88 | AA194: 3 | AB194: 48 | AC194: 26 | AD194: 27 | AE194: 83 | AF194: 20 | AG194: 32 | AH194: 10 | AI194: 53 | AJ194: 76 | AK194: 17 | AL194: 22 | AM194: 39 | AN194: 34 | AO194: 50 | AP194: 59 | AQ194: 9 | AR194: 72 | AS194: 39 | AT194: 41 | AU194: 1 | AV194: 50 | AW194: 76 | AX194: 14 | AY194: 82 | AZ194: 23 | BA194: 37 | BB194: 83 | BC194: 88 | BD194: 11 | BE194: 68 | BF194: 19
A195: 9967 | B195: 100 | C195: 2021-08-21 | D195: 74 | E195: 41 | F195: 15 | G195: 69 | H195: 9 | I195: 11 | J195: 50 | K195: 53 | L195: 70 | M195: 24 | N195: 4 | O195: 79 | P195: 87 | Q195: 50 | R195: 56 | S195: 50 | T195: 47 | U195: 72 | V195: 30 | W195: 76 | X195: 56 | Y195: 32 | Z195: 27 | AA195: 16 | AB195: 36 | AC195: 1 | AD195: 71 | AE195: 74 | AF195: 29 | AG195: 6 | AH195: 80 | AI195: 14 | AJ195: 84 | AK195: 60 | AL195: 9 | AM195: 28 | AN195: 31 | AO195: 50 | AP195: 88 | AQ195: 18 | AR195: 53 | AS195: 15 | AT195: 42 | AU195: 84 | AV195: 71 | AW195: 18 | AX195: 75 | AY195: 56 | AZ195: 86 | BA195: 25 | BB195: 19 | BC195: 29 | BD195: 28 | BE195: 86 | BF195: 35
A196: 9968 | B196: 101 | C196: 2021-08-24 | D196: 31 | E196: 32 | F196: 78 | G196: 47 | H196: 66 | I196: 72 | J196: 67 | K196: 3 | L196: 47 | M196: 79 | N196: 56 | O196: 32 | P196: 50 | Q196: 34 | R196: 77 | S196: 82 | T196: 5 | U196: 73 | V196: 15 | W196: 11 | X196: 7 | Y196: 11 | Z196: 22 | AA196: 53 | AB196: 47 | AC196: 51 | AD196: 39 | AE196: 36 | AF196: 21 | AG196: 90 | AH196: 1 | AI196: 40 | AJ196: 14 | AK196: 5 | AL196: 8 | AM196: 11 | AN196: 13 | AO196: 39 | AP196: 69 | AQ196: 50 | AR196: 61 | AS196: 87 | AT196: 82 | AU196: 27 | AV196: 21 | AW196: 55 | AX196: 34 | AY196: 3 | AZ196: 53 | BA196: 27 | BB196: 24 | BC196: 60 | BD196: 20 | BE196: 35 | BF196: 59
A197: 9969 | B197: 102 | C197: 2021-08-26 | D197: 2 | E197: 23 | F197: 12 | G197: 15 | H197: 55 | I197: 75 | J197: 42 | K197: 49 | L197: 36 | M197: 63 | N197: 82 | O197: 49 | P197: 69 | Q197: 80 | R197: 68 | S197: 52 | T197: 79 | U197: 44 | V197: 38 | W197: 85 | X197: 9 | Y197: 32 | Z197: 80 | AA197: 35 | AB197: 38 | AC197: 53 | AD197: 54 | AE197: 87 | AF197: 43 | AG197: 26 | AH197: 39 | AI197: 22 | AJ197: 5 | AK197: 40 | AL197: 34 | AM197: 59 | AN197: 38 | AO197: 36 | AP197: 41 | AQ197: 66 | AR197: 75 | AS197: 26 | AT197: 69 | AU197: 37 | AV197: 32 | AW197: 20 | AX197: 67 | AY197: 88 | AZ197: 90 | BA197: 41 | BB197: 30 | BC197: 83 | BD197: 77 | BE197: 29 | BF197: 87
A198: 9970 | B198: 103 | C198: 2021-08-28 | D198: 78 | E198: 36 | F198: 23 | G198: 68 | H198: 86 | I198: 58 | J198: 9 | K198: 25 | L198: 53 | M198: 60 | N198: 80 | O198: 47 | P198: 68 | Q198: 12 | R198: 52 | S198: 84 | T198: 1 | U198: 73 | V198: 85 | W198: 6 | X198: 64 | Y198: 87 | Z198: 60 | AA198: 83 | AB198: 57 | AC198: 54 | AD198: 14 | AE198: 42 | AF198: 37 | AG198: 41 | AH198: 51 | AI198: 35 | AJ198: 30 | AK198: 39 | AL198: 21 | AM198: 30 | AN198: 22 | AO198: 55 | AP198: 51 | AQ198: 75 | AR198: 75 | AS198: 73 | AT198: 82 | AU198: 86 | AV198: 36 | AW198: 66 | AX198: 72 | AY198: 19 | AZ198: 23 | BA198: 7 | BB198: 62 | BC198: 22 | BD198: 86 | BE198: 18 | BF198: 10
A199: 9971 | B199: 104 | C199: 2021-08-31 | D199: 22 | E199: 57 | F199: 32 | G199: 43 | H199: 79 | I199: 1 | J199: 51 | K199: 26 | L199: 19 | M199: 32 | N199: 59 | O199: 35 | P199: 8 | Q199: 53 | R199: 10 | S199: 39 | T199: 15 | U199: 66 | V199: 76 | W199: 75 | X199: 38 | Y199: 71 | Z199: 69 | AA199: 88 | AB199: 30 | AC199: 44 | AD199: 4 | AE199: 76 | AF199: 32 | AG199: 77 | AH199: 70 | AI199: 16 | AJ199: 64 | AK199: 41 | AL199: 81 | AM199: 25 | AN199: 65 | AO199: 84 | AP199: 63 | AQ199: 17 | AR199: 47 | AS199: 32 | AT199: 74 | AU199: 19 | AV199: 73 | AW199: 73 | AX199: 62 | AY199: 17 | AZ199: 71 | BA199: 27 | BB199: 77 | BC199: 40 | BD199: 80 | BE199: 89 | BF199: 6
A200: 9972 | B200: 105 | C200: 2021-09-02 | D200: 34 | E200: 62 | F200: 15 | G200: 63 | H200: 26 | I200: 14 | J200: 36 | K200: 67 | L200: 10 | M200: 25 | N200: 83 | O200: 59 | P200: 28 | Q200: 21 | R200: 31 | S200: 85 | T200: 53 | U200: 16 | V200: 20 | W200: 29 | X200: 16 | Y200: 86 | Z200: 11 | AA200: 29 | AB200: 76 | AC200: 50 | AD200: 48 | AE200: 70 | AF200: 76 | AG200: 67 | AH200: 83 | AI200: 13 | AJ200: 39 | AK200: 61 | AL200: 17 | AM200: 1 | AN200: 40 | AO200: 82 | AP200: 44 | AQ200: 22 | AR200: 5 | AS200: 20 | AT200: 8 | AU200: 49 | AV200: 13 | AW200: 71 | AX200: 65 | AY200: 80 | AZ200: 36 | BA200: 24 | BB200: 69 | BC200: 36 | BD200: 68 | BE200: 13 | BF200: 3
... 22 more rows

Sheet Ritardatari
A1: Ruota e posiz | B1: Numero | C1: tot | D1: Num ADD | E1: N° IN Ritr | F1: =COUNTIF(C2:C1000,0) -> 2 | H1: 1 | I1: 82 | J1: Bari
A2: GE2 | B2: 12 | C2: 0 | D2: 49 | E2: =IF(MOD(B2+D2,90),MOD(B2+D2,90),90) -> 61 | H2: 2 | I2: 73 | BA2: BA1
A3: PA3 | B3: 90 | C3: 0 | D3: 9 | E3: 9 | H3: 3 | I3: 44 | BA3: BA2
A4: BA2 | C4: 1 | D4: 18 | E4: 18 | H4: 4 | I4: 34 | BA4: BA3
A5: BA2 | C5: 1 | D5: 46 | E5: 46 | H5: 5 | I5: 26 | BA5: BA4
A6: BA4 | C6: 1 | D6: 50 | E6: 50 | H6: 1 | I6: 85 | J6: Cagliari | K6: Ult. Aggior. | BA6: BA5
A7: FI1 | C7: 1 | D7: 89 | E7: 89 | H7: 2 | I7: 70 | K7: 2021-10-23T22:19:00 | BA7: CA1
A8: GE3 | C8: 1 | D8: 33 | E8: 33 | H8: 3 | I8: 67 | K8: 2021-10-23T22:19:00 | BA8: CA2
A9: GE4 | C9: 1 | D9: 17 | E9: 17 | H9: 4 | I9: 44 | K9: 44492.92986 | BA9: CA3
A10: GE4 | C10: 1 | D10: 27 | E10: 27 | H10: 5 | I10: 34 | BA10: CA4
A11: GE5 | C11: 1 | D11: 78 | E11: 78 | H11: 1 | I11: 32 | J11: Firenze | BA11: CA5
A12: MI1 | C12: 1 | D12: 2 | E12: 2 | H12: 2 | I12: 41 | BA12: FI1
A13: MI4 | C13: 1 | D13: 55 | E13: 55 | H13: 3 | I13: 14 | BA13: FI2
A14: PA2 | C14: 1 | D14: 61 | E14: 61 | H14: 4 | I14: 55 | BA14: FI3
A15: PA2 | C15: 1 | D15: 68 | E15: 68 | H15: 5 | I15: 87 | BA15: FI4
A16: PA4 | C16: 1 | D16: 14 | E16: 14 | H16: 1 | I16: 20 | J16: Genova | BA16: FI5
A17: PA4 | C17: 1 | D17: 52 | E17: 52 | H17: 2 | I17: 12 | BA17: GE1
A18: RO1 | C18: 1 | D18: 86 | E18: 86 | H18: 3 | I18: 9 | BA18: GE2
A19: RO2 | C19: 1 | D19: 1 | E19: 1 | H19: 4 | I19: 69 | BA19: GE3
A20: RO2 | C20: 1 | D20: 62 | E20: 62 | H20: 5 | I20: 5 | BA20: GE4
A21: RO4 | C21: 1 | D21: 17 | E21: 17 | H21: 1 | I21: 24 | J21: Milano | BA21: GE5
A22: RO4 | C22: 1 | D22: 90 | E22: 90 | H22: 2 | I22: 1 | BA22: MI1
A23: VE1 | C23: 1 | D23: 90 | E23: 90 | H23: 3 | I23: 78 | BA23: MI2
A24: VE5 | C24: 1 | D24: 2 | E24: 2 | H24: 4 | I24: 64 | BA24: MI3
A25: NZ2 | C25: 1 | D25: 6 | E25: 6 | H25: 5 | I25: 38 | BA25: MI4
A26: NZ3 | C26: 1 | D26: 43 | E26: 43 | H26: 1 | I26: 63 | J26: Napoli | BA26: MI5
A27: NZ4 | C27: 1 | D27: 90 | E27: 90 | H27: 2 | I27: 20 | BA27: NA1
A28: BA1 | C28: 2 | D28: 19 | E28: 19 | H28: 3 | I28: 9 | BA28: NA2
A29: BA1 | C29: 2 | D29: 36 | E29: 36 | H29: 4 | I29: 32 | BA29: NA3
A30: BA2 | C30: 2 | D30: 33 | E30: 33 | H30: 5 | I30: 90 | BA30: NA4
A31: BA2 | C31: 2 | D31: 74 | E31: 74 | H31: 1 | I31: 79 | J31: Palermo | BA31: NA5
A32: BA3 | C32: 2 | D32: 54 | E32: 54 | H32: 2 | I32: 65 | BA32: PA1
A33: BA3 | C33: 2 | D33: 87 | E33: 87 | H33: 3 | I33: 90 | BA33: PA2
A34: BA4 | C34: 2 | D34: 18 | E34: 18 | H34: 4 | I34: 57 | BA34: PA3
A35: BA4 | C35: 2 | D35: 45 | E35: 45 | H35: 5 | I35: 75 | BA35: PA4
A36: BA4 | C36: 2 | D36: 49 | E36: 49 | H36: 1 | I36: 27 | J36: Roma | BA36: PA5
A37: BA4 | C37: 2 | D37: 65 | E37: 65 | H37: 2 | I37: 70 | BA37: RO1
A38: BA5 | C38: 2 | D38: 75 | E38: 75 | H38: 3 | I38: 78 | BA38: RO2
A39: CA1 | C39: 2 | D39: 90 | E39: 90 | H39: 4 | I39: 61 | BA39: RO3
A40: CA2 | C40: 2 | D40: 17 | E40: 17 | H40: 5 | I40: 39 | BA40: RO4
A41: CA4 | C41: 2 | D41: 40 | E41: 40 | H41: 1 | I41: 39 | J41: Torino | BA41: RO5
A42: CA5 | C42: 2 | D42: 56 | E42: 56 | H42: 2 | I42: 40 | BA42: TO1
A43: CA5 | C43: 2 | D43: 57 | E43: 57 | H43: 3 | I43: 28 | BA43: TO2
A44: CA5 | C44: 2 | D44: 71 | E44: 71 | H44: 4 | I44: 38 | BA44: TO3
A45: FI1 | C45: 2 | D45: 25 | E45: 25 | H45: 5 | I45: 31 | BA45: TO4
A46: FI1 | C46: 2 | D46: 69 | E46: 69 | H46: 1 | I46: 89 | J46: Venezia | BA46: TO5
A47: FI2 | C47: 2 | D47: 4 | E47: 4 | H47: 2 | I47: 45 | BA47: VE1
A48: FI3 | C48: 2 | D48: 24 | E48: 24 | H48: 3 | I48: 29 | BA48: VE2
A49: FI4 | C49: 2 | D49: 34 | E49: 34 | H49: 4 | I49: 30 | BA49: VE3
A50: FI4 | C50: 2 | D50: 37 | E50: 37 | H50: 5 | I50: 27 | BA50: VE4
A51: FI4 | C51: 2 | D51: 55 | E51: 55 | H51: 1 | I51: 16 | J51: Nazionale | BA51: VE5
A52: FI4 | C52: 2 | D52: 66 | E52: 66 | H52: 2 | I52: 47 | BA52: NZ1
A53: FI5 | C53: 2 | D53: 21 | E53: 21 | H53: 3 | I53: 6 | BA53: NZ2
A54: FI5 | C54: 2 | D54: 60 | E54: 60 | H54: 4 | I54: 39 | BA54: NZ3
A55: FI5 | C55: 2 | D55: 83 | E55: 83 | H55: 5 | I55: 71 | BA55: NZ4
A56: FI5 | C56: 2 | D56: 87 | E56: 87 | BA56: NZ5
A57: GE1 | C57: 2 | D57: 35 | E57: 35
A58: GE1 | C58: 2 | D58: 53 | E58: 53
A59: GE1 | C59: 2 | D59: 85 | E59: 85
A60: GE2 | C60: 2 | D60: 19 | E60: 19
A61: GE3 | C61: 2 | D61: 22 | E61: 22
A62: GE5 | C62: 2 | D62: 66 | E62: 66
A63: GE5 | C63: 2 | D63: 71 | E63: 71
A64: MI1 | C64: 2 | D64: 72 | E64: 72
A65: MI2 | C65: 2 | D65: 77 | E65: 77
A66: MI4 | C66: 2 | D66: 6 | E66: =IF(MOD(B66+D66,90),MOD(B66+D66,90),90) -> 6
A67: MI4 | C67: 2 | D67: 49 | E67: 49
A68: MI4 | C68: 2 | D68: 59 | E68: 59
A69: MI5 | C69: 2 | D69: 57 | E69: 57
A70: MI5 | C70: 2 | D70: 77 | E70: 77
A71: NA1 | C71: 2 | D71: 2 | E71: 2
A72: NA1 | C72: 2 | D72: 36 | E72: 36
A73: NA1 | C73: 2 | D73: 41 | E73: 41
A74: NA2 | C74: 2 | D74: 69 | E74: 69
A75: NA2 | C75: 2 | D75: 86 | E75: 86
A76: NA3 | C76: 2 | D76: 5 | E76: 5
A77: NA3 | C77: 2 | D77: 30 | E77: 30
A78: NA3 | C78: 2 | D78: 76 | E78: 76
A79: NA4 | C79: 2 | D79: 38 | E79: 38
A80: NA4 | C80: 2 | D80: 65 | E80: 65
A81: NA4 | C81: 2 | D81: 67 | E81: 67
A82: PA2 | C82: 2 | D82: 51 | E82: 51
A83: PA3 | C83: 2 | D83: 59 | E83: 59
A84: PA4 | C84: 2 | D84: 89 | E84: 89
A85: PA5 | C85: 2 | D85: 32 | E85: 32
A86: PA5 | C86: 2 | D86: 60 | E86: 60
A87: RO1 | C87: 2 | D87: 77 | E87: 77
A88: RO2 | C88: 2 | D88: 21 | E88: 21
A89: RO4 | C89: 2 | D89: 28 | E89: 28
A90: RO4 | C90: 2 | D90: 42 | E90: 42
A91: RO4 | C91: 2 | D91: 80 | E91: 80
A92: RO5 | C92: 2 | D92: 27 | E92: 27
A93: RO5 | C93: 2 | D93: 72 | E93: 72
A94: TO1 | C94: 2 | D94: 54 | E94: 54
A95: TO2 | C95: 2 | D95: 25 | E95: 25
A96: TO2 | C96: 2 | D96: 51 | E96: 51
A97: TO3 | C97: 2 | D97: 71 | E97: 71
A98: TO3 | C98: 2 | D98: 88 | E98: 88
A99: TO4 | C99: 2 | D99: 51 | E99: 51
A100: TO5 | C100: 2 | D100: 5 | E100: 5
A101: TO5 | C101: 2 | D101: 12 | E101: 12
A102: VE2 | C102: 2 | D102: 34 | E102: 34
A103: VE2 | C103: 2 | D103: 47 | E103: 47
A104: VE3 | C104: 2 | D104: 21 | E104: 21
A105: VE3 | C105: 2 | D105: 50 | E105: 50
A106: VE4 | C106: 2 | D106: 3 | E106: 3
A107: VE4 | C107: 2 | D107: 49 | E107: 49
A108: VE4 | C108: 2 | D108: 76 | E108: 76
A109: VE5 | C109: 2 | D109: 73 | E109: 73
A110: NZ1 | C110: 2 | D110: 90 | E110: 90
A111: NZ2 | C111: 2 | D111: 8 | E111: 8
A112: NZ3 | C112: 2 | D112: 44 | E112: 44
A113: NZ3 | C113: 2 | D113: 82 | E113: 82
A114: NZ5 | C114: 2 | D114: 41 | E114: 41
A115: NZ5 | C115: 2 | D115: 57 | E115: 57
A116: NZ5 | C116: 2 | D116: 84 | E116: 84
A117: BA1 | C117: 3 | D117: 8 | E117: 8
A118: BA1 | C118: 3 | D118: 56 | E118: 56
A119: BA1 | C119: 3 | D119: 82 | E119: 82
A120: BA2 | C120: 3 | D120: 36 | E120: 36
A121: BA2 | C121: 3 | D121: 62 | E121: 62
A122: BA2 | C122: 3 | D122: 71 | E122: 71
A123: BA2 | C123: 3 | D123: 72 | E123: 72
A124: BA3 | C124: 3 | D124: 23 | E124: 23
A125: BA3 | C125: 3 | D125: 27 | E125: 27
A126: BA3 | C126: 3 | D126: 42 | E126: 42
A127: BA3 | C127: 3 | D127: 57 | E127: 57
A128: BA3 | C128: 3 | D128: 83 | E128: 83
A129: BA4 | C129: 3 | D129: 1 | E129: 1
A130: BA4 | C130: 3 | D130: 23 | E130: =IF(MOD(B130+D130,90),MOD(B130+D130,90),90) -> 23
A131: BA4 | C131: 3 | D131: 24 | E131: 24
A132: BA4 | C132: 3 | D132: 39 | E132: 39
A133: BA4 | C133: 3 | D133: 51 | E133: 51
A134: BA4 | C134: 3 | D134: 57 | E134: 57
A135: BA5 | C135: 3 | D135: 25 | E135: 25
A136: BA5 | C136: 3 | D136: 57 | E136: 57
A137: BA5 | C137: 3 | D137: 80 | E137: 80
A138: CA1 | C138: 3 | D138: 16 | E138: 16
A139: CA1 | C139: 3 | D139: 23 | E139: 23
A140: CA1 | C140: 3 | D140: 28 | E140: 28
A141: CA1 | C141: 3 | D141: 36 | E141: 36
A142: CA2 | C142: 3 | D142: 2 | E142: 2
A143: CA2 | C143: 3 | D143: 31 | E143: 31
A144: CA2 | C144: 3 | D144: 48 | E144: 48
A145: CA2 | C145: 3 | D145: 64 | E145: 64
A146: CA2 | C146: 3 | D146: 73 | E146: 73
A147: CA2 | C147: 3 | D147: 85 | E147: 85
A148: CA3 | C148: 3 | D148: 10 | E148: 10
A149: CA3 | C149: 3 | D149: 20 | E149: 20
A150: CA3 | C150: 3 | D150: 24 | E150: 24
A151: CA3 | C151: 3 | D151: 46 | E151: 46
A152: CA3 | C152: 3 | D152: 49 | E152: 49
A153: CA3 | C153: 3 | D153: 57 | E153: 57
A154: CA3 | C154: 3 | D154: 58 | E154: 58
A155: CA3 | C155: 3 | D155: 79 | E155: 79
A156: CA3 | C156: 3 | D156: 84 | E156: 84
A157: CA3 | C157: 3 | D157: 90 | E157: 90
A158: CA4 | C158: 3 | D158: 50 | E158: 50
A159: CA4 | C159: 3 | D159: 61 | E159: 61
A160: CA4 | C160: 3 | D160: 78 | E160: 78
A161: CA5 | C161: 3 | D161: 21 | E161: 21
A162: CA5 | C162: 3 | D162: 27 | E162: 27
A163: FI1 | C163: 3 | D163: 23 | E163: 23
A164: FI1 | C164: 3 | D164: 36 | E164: 36
A165: FI1 | C165: 3 | D165: 39 | E165: 39
A166: FI1 | C166: 3 | D166: 54 | E166: 54
A167: FI2 | C167: 3 | D167: 22 | E167: 22
A168: FI2 | C168: 3 | D168: 27 | E168: 27
A169: FI2 | C169: 3 | D169: 33 | E169: 33
A170: FI2 | C170: 3 | D170: 54 | E170: 54
A171: FI2 | C171: 3 | D171: 81 | E171: 81
A172: FI2 | C172: 3 | D172: 82 | E172: 82
A173: FI3 | C173: 3 | D173: 21 | E173: 21
A174: FI3 | C174: 3 | D174: 51 | E174: 51
A175: FI3 | C175: 3 | D175: 63 | E175: 63
A176: FI3 | C176: 3 | D176: 72 | E176: 72
A177: FI3 | C177: 3 | D177: 87 | E177: 87
A178: FI3 | C178: 3 | D178: 88 | E178: 88
A179: FI4 | C179: 3 | D179: 16 | E179: 16
A180: FI4 | C180: 3 | D180: 18 | E180: 18
A181: FI5 | C181: 3 | D181: 15 | E181: 15
A182: FI5 | C182: 3 | D182: 39 | E182: 39
A183: FI5 | C183: 3 | D183: 43 | E183: 43
A184: FI5 | C184: 3 | D184: 46 | E184: 46
A185: FI5 | C185: 3 | D185: 67 | E185: 67
A186: FI5 | C186: 3 | D186: 68 | E186: 68
A187: GE1 | C187: 3 | D187: 21 | E187: 21
A188: GE1 | C188: 3 | D188: 59 | E188: 59
A189: GE1 | C189: 3 | D189: 75 | E189: 75
A190: GE2 | C190: 3 | D190: 14 | E190: 14
A191: GE2 | C191: 3 | D191: 63 | E191: 63
A192: GE2 | C192: 3 | D192: 88 | E192: 88
A193: GE3 | C193: 3 | D193: 6 | E193: 6
A194: GE3 | C194: 3 | D194: 10 | E194: =IF(MOD(B194+D194,90),MOD(B194+D194,90),90) -> 10
A195: GE3 | C195: 3 | D195: 25 | E195: 25
A196: GE3 | C196: 3 | D196: 44 | E196: 44
A197: GE3 | C197: 3 | D197: 46 | E197: 46
A198: GE3 | C198: 3 | D198: 51 | E198: 51
A199: GE4 | C199: 3 | D199: 2 | E199: 2
A200: GE4 | C200: 3 | D200: 8 | E200: 8
... 4751 more rows

Sheet agenda (hidden)
J3: =SUM(J5:J13) -> 35 | U3: =SUM(U5:U13) -> -4
F4: N° Record | G4: Ruota | H4: Giocata | I4: N° Di Punt | J4: € tot Spesi | K4: 1Ma Data Estr. | M4: N°1 | N4: N°2 | O4: N°3 | P4: N°4 | Q4: N°5 | R4: N°6 | S4: Ultima data Estr. | U4: Entrate | V4: AP/CH | AA4: Date Ricariche | AC4: =SUM(AC5:AC11) -> 10
E5: 1 | F5: 9992 | G5: Roma | H5: Ambo | I5: 2 | J5: 2 | K5: 2021-10-19 | L5: =K5 -> 2021-10-19 | M5: 5 | N5: 16 | O5: 29 | P5: 56 | S5: 2021-10-21 | T5: =S5 -> 2021-10-21 | U5: -2 | V5: C | AA5: 2021-10-12 | AB5: =AA5 -> 2021-10-12 | AC5: 10
E6: 2 | F6: 9993 | G6: Milano | H6: Ambo | I6: 2 | J6: 2 | K6: 2021-10-21 | L6: =IF(K6="","-",K6) -> 2021-10-21 | M6: 19 | N6: 66 | O6: 70 | P6: 76 | S6: 2021-10-23 | T6: =IF(S6="","-",S6) -> 2021-10-23 | U6: -2 | V6: C | AB6: =IF(AA6="","-",AA6) -> - | BA6: Bari | BB6: A | BC6: Ambata
E7: 3 | F7: 9994 | G7: Milano | H7: Ambo | I7: 3 | J7: 3 | K7: 2021-10-23 | L7: =IF(K7="","-",K7) -> 2021-10-23 | M7: 20 | N7: 26 | O7: 37 | P7: 79 | S7: 2021-10-28 | T7: =IF(S7="","-",S7) -> 2021-10-28 | V7: A | AB7: =IF(AA7="","-",AA7) -> - | BA7: Cagliari | BB7: C | BC7: Ambo
E8: 4 | F8: 994 | G8: Torino | H8: Ambata | I8: 3 | J8: 4 | K8: 2021-10-23 | L8: =IF(K8="","-",K8) -> 2021-10-23 | M8: 78 | N8: 6 | S8: 2021-10-28 | T8: =IF(S8="","-",S8) -> 2021-10-28 | V8: T | AB8: - | BA8: Firenze | BB8: T | BC8: Terno
E9: 5 | F9: 9994 | G9: Roma | H9: Ambata | I9: 3 | J9: 12 | K9: 2021-10-23 | L9: 2021-10-23 | M9: 70 | N9: 73 | O9: 9 | S9: 2021-10-28 | T9: 2021-10-28 | V9: T | AB9: - | BA9: Genova | BC9: Quaterna
E10: 6 | F10: 9995 | G10: Bari | H10: Ambata | I10: 3 | J10: 12 | K10: 2021-10-26 | L10: 2021-10-26 | M10: 61 | N10: 9 | S10: 2021-10-30 | T10: 2021-10-30 | V10: T | AB10: - | BA10: Milano | BC10: Cinquina
E11: 7 | L11: - | T11: - | AB11: - | BA11: Napoli
E12: 8 | L12: - | T12: - | BA12: Palermo
E13: 9 | L13: - | T13: - | BA13: Roma
E14: 10 | L14: - | T14: - | BA14: Torino
E15: 11 | L15: - | T15: - | BA15: Venezia
E16: 12 | L16: - | T16: - | BA16: Nazionale
E17: 13 | L17: - | T17: -
E18: 14 | L18: =IF(K18="","-",K18) -> - | T18: =IF(S18="","-",S18) -> -
E19: 15 | L19: - | T19: -
E20: 16 | L20: - | T20: -
E21: 17 | L21: - | T21: -
E22: 18 | L22: - | T22: -
E23: 19 | L23: - | T23: -
E24: 20 | L24: - | T24: -
E25: 21 | L25: - | T25: -
E26: 22 | L26: - | T26: -
E27: 23 | L27: - | T27: -
E28: 24 | L28: - | T28: -
E29: 25 | L29: - | T29: -
E30: 26 | L30: - | T30: -
E31: 27 | L31: - | T31: -
E32: 28 | L32: - | T32: -
E33: 29 | L33: - | T33: -
E34: 30 | L34: - | T34: -
E35: 31 | L35: - | T35: -
E36: 32 | L36: - | T36: -
E37: 33 | L37: - | T37: -
E38: 34 | L38: - | T38: -
E39: 35 | L39: - | T39: -
E40: 36 | L40: - | T40: -
E41: 37 | L41: - | T41: -
E42: 38 | L42: - | T42: -
E43: 39 | L43: - | T43: -
E44: 40 | L44: - | T44: -
E45: 41 | L45: - | T45: -
E46: 42 | L46: - | T46: -

Sheet Servizio (hidden)
H4: =#REF! ->  | J4: Ruota e posiz | K4: Num ADD
C5: Meno 40 | D5: =D7-40+1 -> 9954 | E5: =IFERROR(VLOOKUP(D5,Archivio!A3:C4998,3),"manca") -> 2021-07-22 | G5: 1 | H5: Bari | J5: VE2 | K5: 71 | N5: AMBATA SU 3 NUMERI x 4 Volte
C6: Meno 128 | D6: =D7-128+1 -> 9866 | E6: =IFERROR(VLOOKUP(D6,Archivio!A3:C4999,3),"manca") -> 2020-12-29 | G6: 2 | H6: Cagliari | J6: PA5 | K6: 12 | M6: 1 | N6: TOT N° | O6: x 1 N° | P6: Spesa | Q6: tot sp | R6: x 11 | S6: Netto -6% | T6: in % | AK6: PROMEMORIA
C7: Record N° | D7: 9993 | E7: =IFERROR(VLOOKUP(D7,Archivio!A3:C5000,3),"manca") -> 2021-10-21 | G7: 3 | H7: Firenze | J7: MI5 | K7: 88 | M7: 1 | N7: 3 | O7: 1 | P7: =N7*O7 -> 3 | Q7: =P7 -> 3 | R7: =O7*11.22 -> 11.22 | S7: =R7-(R7*6%)-P7 -> 7.5468 | T7: =S7/Q7 -> 2.5156 | V7: 1mo estr | W7: MI | X7: Data Punt. | Y7: GG | Z7: i 3 numeri | AC7: punto | AD7: Punto x3 | AE7: Esito | AF7: Netto | AK7: N° Record A2 | AL7: Ruota | AM7: Addendi | AN7: Ritard.
C8: Piu 128 | D8: =D7+128-1 -> 10120 | E8: =IFERROR(VLOOKUP(D8,Archivio!A3:C5001,3),"manca") -> 2021-10-23 | G8: 4 | H8: Genova | J8: VE5 | K8: 72 | M8: 2 | N8: 3 | O8: 1.5 | P8: =N8*O8 -> 4.5 | Q8: =P8+Q7 -> 7.5 | R8: =O8*11.22 -> 16.83 | S8: =(R8-(R8*6%)-Q8) -> 8.3202 | T8: =S8/Q8 -> 1.10936 | W8: 1 | X8: 2021-10-23 | Y8: =IF(X8="","-",X8) -> 2021-10-23 | Z8: 5 | AA8: 23 | AB8: 15 | AC8: 2 | AD8: =AC8*3 -> 6 | AE8: p | AK8: 9866 | AL8: Bari | AM8: 4 | AN8: 2
C9: Piu 40 | D9: =D7+40-1 -> 10032 | E9: =IFERROR(VLOOKUP(D9,Archivio!A3:C5002,3),"manca") -> 2021-10-23 | G9: 5 | H9: Milano | M9: 3 | N9: 3 | O9: 2 | P9: =N9*O9 -> 6 | Q9: =P9+Q8 -> 13.5 | R9: 22.44 | S9: =(R9-(R9*6%)-Q9) -> 7.5936 | T9: 0.5624888889 | W9: 2 | X9: 2021-10-26 | Y9: =IF(X9="","-",X9) -> 2021-10-26 | Z9: 5 | AA9: 23 | AB9: 15 | AC9: 2.5 | AD9: =AC9*3 -> 7.5
C10: Rec. in A2 | D10: 9848 | E10: =IFERROR(VLOOKUP(D10,Archivio!A5:C5003,3),"manca") -> 2020-11-17 | G10: 6 | H10: Napoli | M10: 4 | N10: 3 | O10: 3 | P10: =N10*O10 -> 9 | Q10: 22.5 | R10: 33.66 | S10: =(R10-(R10*6%)-Q10) -> 9.1404 | T10: 0.40624 | V10: 9994 | W10: 3 | X10: 2021-10-28 | Y10: 2021-10-28 | Z10: 5 | AA10: 23 | AB10: 15 | AD10: 0
C11: Rec.finale | D11: =D10+(128)-1 -> 9975 | E11: =IFERROR(VLOOKUP(D11,Archivio!A6:C5004,3),"manca") -> 2021-09-09 | G11: 7 | H11: Palermo | V11: Progr N° 3 | W11: 4 | X11: 2021-10-30 | Y11: 2021-10-30 | Z11: 5 | AA11: 23 | AB11: 15 | AD11: 0
C12: Rec.in Script | D12: =D10-1+88 -> 9935 | E12: =IFERROR(VLOOKUP(D12,Archivio!A7:C5005,3),"manca") -> 2021-06-08 | G12: 8 | H12: Roma
C13: Rec. Script | D13: 9935 | E13: =IFERROR(VLOOKUP(D13,Archivio!A8:C5006,3),"manca") -> 2021-06-08 | G13: 9 | H13: Torino | M13: 2 | N13: TOT N° | O13: x 1 N° | P13: Spesa | Q13: tot sp | R13: x 11 | S13: Netto -6% | T13: in %
C14: Rec.finale | D14: =D15+128-1 -> 9975 | E14: =IFERROR(VLOOKUP(D14,Archivio!A9:C5007,3),"manca") -> 2021-09-09 | G14: 10 | H14: Venezia | M14: 1 | N14: 3 | O14: 1.5 | P14: =N14*O14 -> 4.5 | Q14: =N14*11.22 -> 33.66 | R14: =O14*11 -> 16.5 | S14: =R14-(R14*6%)-P14 -> 11.01 | T14: =S14/Q14 -> 0.3270944742 | V14: 1mo estr | W14: MI | X14: Data Punt. | Y14: GG | Z14: i 3 numeri | AC14: punto | AD14: Punto x3 | AE14: Esito | AF14: Netto
C15: Rec. In A2 | D15: =D13-88+1 -> 9848 | E15: =IFERROR(VLOOKUP(D15,Archivio!A10:C5008,3),"manca") -> 2020-11-17 | G15: 11 | H15: Nazionale | M15: 2 | N15: 3 | O15: 2 | P15: =N15*O15 -> 6 | Q15: =N15*11.22 -> 33.66 | R15: =O15*11 -> 22 | S15: =(R15-(R15*6%)-Q15) -> -12.98 | T15: =S15/Q15 -> -0.385620915 | W15: 1 | Y15: =IF(X15="","-",X15) -> - | AC15: 2 | AD15: =AC15*3 -> 6
C16: 9992 | M16: 3 | N16: 3 | O16: 2.5 | P16: =N16*O16 -> 7.5 | Q16: 33.66 | R16: =O16*11 -> 27.5 | S16: =(R16-(R16*6%)-Q16) -> -7.81 | T16: -0.2320261438 | W16: 2 | Y16: =IF(X16="","-",X16) -> - | AC16: 2.5 | AD16: =AC16*3 -> 7.5
C17: Rec. in FGL Cicli 32 (A2) | E17: =#REF! ->  | G17: 1na Punt | H17: 2 | M17: 4 | N17: 3 | O17: 4 | P17: =N17*O17 -> 12 | Q17: 33.66 | R17: 44 | S17: =(R17-(R17*6%)-Q17) -> 7.7 | T17: 0.2287581699 | V17: 99990 | W17: 3 | Y17: - | AC17: 3 | AD17: 9
C18: N° di Iniz. analisi fgl cicli32 | E18: =E17-1 ->  | G18: Max Esposiz. | H18: 88 | V18: Progr N° 3 | W18: 4 | Y18: - | AD18: 0
C19: Record NON Analizz 22X4 | E19: 88 | G19: N°Puntate | H19: =H18/(4*H17) -> 11
C20: N° da inserire nello Script | E20: =E18+E19 ->  | F20: =E23-E21 ->  | M20: 3 | N20: TOT N° | O20: x 1 N° | P20: Spesa | Q20: tot sp | R20: x 11 | S20: Netto -6% | T20: in %
D21: DA | E21: =IFERROR(VLOOKUP(E20,Archivio!A3:C5008,3),"manca") -> manca | M21: 1 | N21: 3 | O21: 2 | P21: =N21*O21 -> 6 | Q21: =P21 -> 6 | R21: =O21*11.22 -> 22.44 | S21: =R21-(R21*6%)-P21 -> 15.0936 | T21: =S21/Q21 -> 2.5156 | V21: 1mo estr | W21: MI | X21: Data Punt. | Y21: GG | Z21: i 3 numeri | AC21: punto | AD21: Punto x3 | AE21: Esito | AF21: Netto
C22: Ultimo Record in Fgl 32 | E22: =#REF! ->  | M22: 2 | N22: 3 | O22: 2.5 | P22: =N22*O22 -> 7.5 | Q22: =P22+Q21 -> 13.5 | R22: =O22*11.22 -> 28.05 | S22: =(R22-(R22*6%)-Q22) -> 12.867 | T22: =S22/Q22 -> 0.9531111111 | W22: 1 | Y22: =IF(X22="","-",X22) -> - | AC22: 2 | AD22: =AC22*3 -> 6
D23: A | E23: =IFERROR(VLOOKUP(E22,Archivio!A3:C5010,3),"manca") -> manca | M23: 3 | N23: 3 | O23: 3 | P23: =N23*O23 -> 9 | Q23: =P23+Q22 -> 22.5 | R23: 33.66 | S23: =(R23-(R23*6%)-Q23) -> 9.1404 | T23: 0.40624 | V23: 2021-10-12 | W23: 2 | Y23: =IF(X23="","-",X23) -> - | AC23: 2.5 | AD23: =AC23*3 -> 7.5
C24: =INT($F$20/360)&" Anni "&INT(MOD($F$20,360)/30)&" Mesi "& $F$20-(INT($F$20/360)*360)-INT(MOD($F$20,360)/30)*30 & " Giorni" ->  | M24: 4 | N24: 3 | O24: 4 | P24: =N24*O24 -> 12 | Q24: 34.5 | R24: 44.88 | S24: =(R24-(R24*6%)-Q24) -> 7.6872 | T24: 0.2228173913 | V24: 9989 | W24: 3 | Y24: - | AC24: 3 | AD24: 9
C25: Lo SCRIPT Analizza Ultime Estraz | E25: =E22-E20 ->  | V25: Progr N° 3 | W25: 4 | Y25: - | AC25: 4 | AD25: 12
N27: AMBATA SU 4 NUMERI x 4 Volte
M28: 4 | N28: TOT N° | O28: x 1 N° | P28: Spesa | Q28: tot sp | R28: x 11 | S28: Netto -6% | T28: in %
M29: 1 | N29: 4 | O29: 1 | P29: =N29*O29 -> 4 | Q29: =P29 -> 4 | R29: =O29*11.22 -> 11.22 | S29: =R29-(R29*6%)-P29 -> 6.5468 | T29: =S29/Q29 -> 1.6367
M30: 2 | N30: 4 | O30: 2 | P30: =N30*O30 -> 8 | Q30: =P30+Q29 -> 12 | R30: =O30*11.22 -> 22.44 | S30: =(R30-(R30*6%)-Q30) -> 9.0936 | T30: =S30/Q30 -> 0.7578
M31: 3 | N31: 4 | O31: 3.5 | P31: =N31*O31 -> 14 | Q31: =P31+Q30 -> 26 | R31: 39.27 | S31: =(R31-(R31*6%)-Q31) -> 10.9138 | T31: 0.4197615385
M32: 4 | N32: 4 | O32: 5.5 | P32: =N32*O32 -> 22 | Q32: 48 | R32: 61.71 | S32: =(R32-(R32*6%)-Q32) -> 10.0074 | T32: 0.2084875
M35: 5 | N35: TOT N° | O35: x 1 N° | P35: Spesa | Q35: tot sp | R35: x 11 | S35: Netto -6% | T35: in %
M36: 1 | N36: 4 | O36: 2 | P36: =N36*O36 -> 8 | Q36: =P36 -> 8 | R36: =O36*11.22 -> 22.44 | S36: =R36-(R36*6%)-P36 -> 13.0936 | T36: =S36/Q36 -> 1.6367
M37: 2 | N37: 4 | O37: 2.5 | P37: =N37*O37 -> 10 | Q37: =P37+Q36 -> 18 | R37: =O37*11.22 -> 28.05 | S37: =(R37-(R37*6%)-Q37) -> 8.367 | T37: =S37/Q37 -> 0.4648333333
M38: 3 | N38: 4 | O38: 4 | P38: =N38*O38 -> 16 | Q38: =P38+Q37 -> 34 | R38: 44.88 | S38: =(R38-(R38*6%)-Q38) -> 8.1872 | T38: 0.2408
M39: 4 | N39: 4 | O39: 6 | P39: =N39*O39 -> 24 | Q39: 58 | R39: 67.32 | S39: =(R39-(R39*6%)-Q39) -> 5.2808 | T39: 0.09104827586
M42: 6 | N42: TOT N° | O42: x 1 N° | P42: Spesa | Q42: tot sp | R42: x 11 | S42: Netto -6% | T42: in %
M43: 1 | N43: 4 | O43: 2.5 | P43: =N43*O43 -> 10 | Q43: =P43 -> 10 | R43: =O43*11.22 -> 28.05 | S43: =R43-(R43*6%)-P43 -> 16.367 | T43: =S43/Q43 -> 1.6367
M44: 2 | N44: 4 | O44: 3 | P44: =N44*O44 -> 12 | Q44: =P44+Q43 -> 22 | R44: =O44*11.22 -> 33.66 | S44: =(R44-(R44*6%)-Q44) -> 9.6404 | T44: =S44/Q44 -> 0.4382
M45: 3 | N45: 4 | O45: 4.5 | P45: =N45*O45 -> 18 | Q45: =P45+Q44 -> 40 | R45: 50.49 | S45: =(R45-(R45*6%)-Q45) -> 7.4606 | T45: 0.186515
M46: 4 | N46: 4 | O46: 7 | P46: =N46*O46 -> 28 | Q46: 68 | R46: 78.54 | S46: =(R46-(R46*6%)-Q46) -> 5.8276 | T46: 0.0857
